{"text_format":"1","workbook":"xlsx","n_sheets":10,"sheets":["Нүүр","Заавар","Аюулын нэр томьёоны товч тайлба","Эрсдэлийн матриц","Мэдээлэл","Таамаглал","Эрсдэлийн үнэлгээ","Үнэлгээний оноо","Эрсдэлийн дүн","Эмзэг байдлын тайлан"],"not_rendered":{"charts":6,"images":10,"macros":1,"external_links":0,"defined_names":15,"comments":0,"pivot_tables":0},"unopened":[],"bounds":{"document_bytes":16777216,"sheet_cells":100000,"rows_first":2000,"rows_last":500,"rows_between":2000,"halvings":0,"cell_chars":16384,"cell_head_chars":4096},"cells_cut":0,"cells_raw":0,"read":"whole","date_system":"1900"}

{"sheet":"Нүүр","index":0,"n_rows":7,"n_cols":2,"rows_kept":7,"cut":false,"hidden":false,"merged":[]}
[]
[]
[]
[]
[]
[]
[null,"Гамшгийн эрсдэлийг тооцоолох түргэвчилсэн арга"]

{"sheet":"Заавар","index":1,"n_rows":196,"n_cols":2,"rows_kept":196,"cut":false,"hidden":false,"merged":[]}
[{"$f":"MdlTle","v":"Гамшгийн эрсдэлийг тооцоолох түргэвчилсэн арга"}]
[{"$f":"MID(CELL(\"filename\",A1),FIND(\"]\",CELL(\"filename\",A1))+1,255)","v":"Заавар"}]
[]
[]
[null,"Гамшигт тэсвэртэй хот нь шаардлагатай барилга байгууламж, үйлчилгээг сэргээн босгох замаар түргэн хугацаанд үр дүнтэй байдлаар аюулын нөлөөлийг бууруулах, тэсвэрлэх, сэргээн босгох чадвартай байдаг."]
[]
[null,"Зорилго"]
[]
[null,"Гамшгийн эрсдэлийг тооцоолох түргэвчилсэн арга нь хүн ам, нийгэм, үйлдвэрлэл, дэд бүтцэд учрах өнөөгийн болон болзошгүй эрсдэлийг тодорхойлох, ойлголтыг нэмэгдүүлэх зорилготой. Энэхүү аргаар эрсдэлийг бүх талаас нь үнэлэх боломжгой хэдий ч эрсдэлийн үнэлгээнд оролцогч талуудыг нэгдсэн ойлголтод хүргэж, оролцоог хангахад чиглэнэ. Хүн ам, нийгэм, үйлдвэрлэл, дэд бүтцэд учрах эрсдэлийг тодорхойлох, тодорхойлсон томоохон эрсдэлээс үүсэж болох нөлөөлөл, хор уршиг, өртөх газар нутаг, өртөх зүйлс зэрэг эрсдэлийн үнэлгээний хяналт загварчлалыг гамшгийн эрсдэлийг тооцоолох түргэвчилсэн аргаар тооцон гаргана."]
[null,"НҮБ-ын Гамшгийн эрсдэлийг бууруулах газраас гаргасан аюулын ангиллыг эрсдэлийг тооцоолох түргэвчилсэн аргад ашиглав. Тус аргачлалыг \"Аюулгүй, гамшигт тэсвэртэй хот\" санаачлагын 10 үндсэн чиглэлээр үнэлэх онооны карт болон Гамшгийн эрсдэлийг бууруулах чиглэлээр 2015-2030 онд авч хэрэгжүүлэх Сендайн үйл ажиллагааны хүрээ баримт бичиг, Тогтвортой хөгжлийн зорилттой уялдан боловсруулсан."]
[]
[]
[null,"Энэ аргыг хэн хэрэглэж болох вэ?"]
[]
[]
[null," "]
[null,"\"Аюулгүй, гамшигт тэсвэртэй хот\" санаачлагын 10 үндсэн чиглэлийг хэрэгжүүлж буй байгууллага, оролцогч талууд болон хотууд."]
[null,"Хотын удирдах эрх бүхий байгууллага, хот төлөвлөлтийн ажилтан, эрсдэлийн удирдлагын ажилтан, үер болон гамшгийн эрсдэл, онцгой байдлын үед хор уршгийг арилгах чиглэлээр үүрэг гүйцэтгэдэг ажилтан нар."]
[null,"Гамшгийн эрсдэлийг тооцоолох түргэвчилсэн аргыг олон салбарын төлөөлөл хамтдаа гамшгийн эрсдэлийг үнэлэхэд зориулав. Энэ аргыг хэн нэгэн хувь хүн ганцаараа үнэлгээ хийхэд зориулаагүй болно."]
[]
[null,"Хэрэглэгчдэд зориулсан зааварчилгаа"]
[]
[null,"Өөрийн оршин сууж буй нутаг дэвсгэр, бүтээгдэхүүн үйлдвэрлэлийн салбар болон бусад салбарт учирч болох гамшгийн эрсдэлийг энгийн аргаар үнэлж болох арга юм. Та бүхний хийж буй энэ дасгал ажил нь өөрсдийн хуримтлуулсан туршлага, нотолгоо, эрдэм шинжилгээ судалгааны үр дүнд гарсан ололт, холбогдох талуудтай зөвшилцсөн санал зэрэгт суурилан өөрсдөө гамшгийн эрсдэлээ үнэлж байгаа үйл явц юм."]
[]
[null,"Гамшгийн эрсдэлээ үнэлэхдээ дараах алхмыг баримтлана уу. Үүнд:"]
[]
[null,"1 дүгээр алхам: Байрлал, бүс нутаг, бусад холбогдох мэдээллийг оруулах"]
[null,"Гамшгийн эрсдэлийг тооцоолох түргэвчилсэн аргыг ашиглахын өмнө \"Мэдээлэл\" (Information) хэсэгт нэвтэрч гамшгийн үнэлгээ хийх орон нутаг (аймаг, сум)-ийн нэрс, бусад ерөнхий мэдээллийг оруулж хийх үнэлгээний цар хүрээг тодорхойлно."]
[]
[null,"2 дугаар алхам: Аюулын бүлэг, дэд бүлгийг тодорхойлох"]
[null,"Эрсдэлийн үнэлгээ буюу аюулын мэдээлэл оруулах (Hazard Data Entry) хэсгийн \"В\" баганыг харна уу."]
[null,"> Энэ хэсгээс үнэлгээ хийж буй нутагт тохиолддог аюулын бүлэг, дэд бүлгийг сонгоно."]
[]
[null,"Сендайн үйл ажиллагааны хүрээ баримт бичгийг хэрэгжүүлэх хүрээнд НҮБ-ын Гамшгийн эрсдэлийг бууруулах газраас батлан гаргасан аюулын төрлөөс аюулын бүлэг, дэд бүлэгт оруулав. \"Нэр томьёоны товч тайлбар\" (Hazard Glossary) хэсэгт аюул бүрийн тайлбарыг оруулав. \"Таамаглал\" (Assumptions) хэсэгт аюулын бүлэг, дэд бүлэг болон аюулт үзэгдэл, ослын жагсаалтыг оруулсан. 2,3,4 дүгээр алхмуудыг гүйцэтгэхэд \"Нэр томьёоны товч тайлбар\" ашиглаарай. Аюулын бүлэг, дэд бүлгийг тодорхойлоход тухайн газар нутаг, гамшгийн тохиолдлын онцлогоос хамааран зарим аюулын бүлэг, дэд бүлэг өөрчлөгдөж болохыг анхааруулъя."]
[]
[null,"Судалгаа:"]
[null,"Энэхүү судалгаа нь Австрали Улсын Күйнсланд мужийн Макай хотын Дебби халуун орны шуурга дээр хийгдсэн (2017 оны 3 дугаар сар)."]
[null,"Макай хот нь Австралийн зүүн эргийн Хойд Күйнсландын хэсэгт оршдог. Уг хот нь Пионер голын дэргэд орших ба Кларк Ренж нь хотын баруун хэсгийг даган байрлана. Макай хот нь Австралийн хамгийн том чихрийн нишингэний фирмийн аж ахуйтай. 120.000-аас илүү хүн амтай бөгөөд, хүн ам нь эргийн, жижиг бүс нутгийн гэх мэт амьжиргааны өргөн боломжтой."]
[null,"Макай хотын халуун бүсийн уур амьсгал болон гамшгийн түүх зэргээс үзэхэд уг хот нь үер, хөрсний гулгалт, хүчтэй мөндрөн шуурга, салхи, ойн түймэр, халууны урсгал, хар салхи, газар хөдлөлт, хүчтэй давалгаа зэрэг гамшигт өртөмтгий."]
[null,"Энэхүү эрсдэлийн үнэлгээний зорилго нь доорх аюулын эрсдэлийн түвшинг ойлгох, тодорхойлох, авч хэрэгжүүлэх үйл ажиллагааны дарааллыг тогтооход чиглэгдсэн: \nүер, хөрсний гулгалт, хүчтэй давалгаа, халуун орны хар салхи."]
[null,"Дээр дурдсан бүх аюул нь \"Аюулын бүлэг/дэд бүлэг\"-т хамаарна (UNISDR classification for Sendai framework)."]
[null,"Холбогдох аюул, ослыг тодорхойлохын тулд \"Нэр томьёоны товч тайлбар\" хэсгийг харна уу"]
[null," - Геофизикийн аюул"]
[null," - Усны гаралтай аюул"]
[null," - Цаг уурын гаралтай томоохон аюул"]
[null," - Уур амьсгалын гаралтай аюул"]
[null," - Биологийн гаралтай аюул"]
[null," - Хүний үйл ажиллагаанаас үүдэлтэй аюул"]
[]
[]
[null,"3 дугаар алхам: Гол аюулыг тодорхойлох"]
[null,"Эрсдэлийн үнэлгээ буюу аюулын мэдээлэл оруулах (Hazard Data Entry) хэсгийн \"В\", \"С\" баганыг харна уу."]
[null,"> 2 дугаар алхамд өгүүлсэн аюулын бүлэг, дэд бүлэгт гол гол аюулын мэдээллийг багтаасан байгаа. Үүнээс үнэлгээ хийх тухайн орон нутагт тохиолдох гол гол аюулыг сонгон авна."]
[null,"> Сонгож авахдаа аюулын бүлэг, дэд бүлгийн ард байх сумны дүрс дээр дарж автоматаар бичигдсэн аюулын нэрийг сонгоно."]
[]
[null,"Судалгаа:"]
[null,"Сонгож авсан хотын ерөнхий мэдээллийг \"Мэдээлэл\" хэсэгт, оруулна.  \"Эрсдэлийн үнэлгээ\" хэсэгт мэдээлэл оруулахдаа \"Аюулын нэр томьёо\" хэсгийг харан, аюулын дэд бүлэг бүрт аюулт үзэгдэл, ослыг А баганад байрлах сонгох цэснээс оруулна."]
[null," - Усны гаралтай аюул: Үер, хөрсний гулгалт, давалгаа (нэг нүдэнд нэг аюулыг сонгоно)."]
[null," - Цаг агаарын гаралтай томоохон аюул: Хар салхи (нэг мөрөнд тухайн сонгогдсон аюулын талаарх мэдээллийг оруулна)."]
[]
[null,"4 дүгээр алхам: Аюулт үзэгдэл, ослыг тодорхойлох"]
[null,"Эрсдэлийн үнэлгээ буюу аюулын мэдээлэл оруулах (Hazard Data Entry) хэсгийн \"С\" баганыг харна уу."]
[null,"> Гол гол аюулыг тодорхойлсон болохоор түүнтэй холбоотой үүсэх аюулт үзэгдэл, ослыг өгөгдсөн эгнээний нүднээс сонгоно. 1 эгнээний нүдэнд нэг аюулт үзэгдэл, ослыг сонгож оруулна уу."]
[]
[null,"Жич: Нэг аюулын бүлэг, дэд бүлэгт 5 эгнээ оруулсан байгаа тул үнэлгээ хийх явцад нэмэлт эгнээ оруулах шаардлага гарвал \"Нэр томьёоны товч тайлбар\" (Hazard Glossary) хэсэгт нэмэлт хийж болно."]
[]
[null,"Судалгаа:"]
[null,"Сонгогдсон аюулт үзэгдэл, осол нь Макай хотын ойлголт, тохиолдсон гамшгийн хохирол, эрсдэлийн мэдээлэл, судалгаа болон холбогдох талуудтай хийсэн зөвлөгөөн дээр үндэслэсэн болно. \"Нэр томьёоны товч тайлбар\"-той танилцсаны дараа \"Таамаглал\" хэсэгт С баганад байрлах цэснээс аюулт үзэгдэл, ослыг сонгоно.  "]
[null," - Үер: Гэнэтийн үер, голын ус халилтаас үүсэх үер. (нэг мөрөнд зөвхөн тухайн сонгогдсон аюулын талаарх мэдээллийг оруулна)"]
[null," - Хөрсний гулгалт: Хөрсний гулгалт"]
[null," - Хүчтэй давалгаа: Эргийн үер"]
[null," - Хар салхи: Салхи, хүчтэй шуурга. (нэг мөрөнд зөвхөн тухайн сонгогдсон аюулын талаарх мэдээллийг оруулна)"]
[null," - Flood: Riverine flood"]
[null," - Convective Storm: Hail; Wind. Please note one row is to be used per each selected peril."]
[null," - Wildfire: Land Fire of Brush/Bush/Pasture"]
[null," - Earthquake: Ground movement; Landslide following event. Please note one row is to be used per each selected peril."]
[]
[null,"5 дугаар алхам: Өртөнги байдлыг үнэлэх "]
[null,"Эрсдэлийн үнэлгээ буюу аюулын мэдээлэл оруулах (Hazard Data Entry) хэсгийн “D” баганыг харна уу."]
[null,">Сонгосон аюулт үзэгдэл, осол тус бүрийн хувьд үнэлгээ хийж буй орон нутгийн өртөнги байдлыг 0-100 хувь (%)-аар тооцож үнэлнэ. “Таамаглал” (Assumptions) хэсгээс хувиар тооцож үнэлэх жагсаалтыг бүтнээр нь харж болно. "]
[null,">“N” баганад байгаа “Тэмдэглэл” гэсэн хэсэгт өртөнгийг яагаад ... % гэж тооцож байгаа шалтгааныг тодруулан бичих нь зүйтэй. Тус тэмдэглэл нь өртөнгийг бууруулах чиглэлээр цаашид авах арга хэмжээг тодорхойлоход хэрэглэгдэнэ. "]
[]
[null,"Exposure refers to people, property, assets, systems, or other elements present in hazard zones that are thereby subject to potential losses (UNISDR Terminology, 2009). This includes population, building stock, essential facilities and critical infrastructure. Critical facilities are the primary physical structures, technical facilities and systems which are socially, economically or operationally essential to the functioning of a society or community, both in routine circumstances and in the extreme circumstances of an emergency (UNISDR Terminology, 2009)."]
[]
[null,"Судалгаа:"]
[null,"Макай хотын тохиолдсон гамшиг, судалгаа, холбогдох талуудын зөвлөгөөн зэрэг өнөөгийн мэдээлэл (хүн ам, барилга, шаардлагатай тоног төхөөрөмж болон дэд бүтэц)-д тургуурласан аюулт үзэгдэл, ослын өртөнги байдлын үнэлгээний оноо \"D\" баганад харагдана:"]
[null," - үер: Голын ус халилтаас үүсэх үер, гэнэтийн үер.(нэг мөрөнд тухайн сонгогдсон аюулын талаарх мэдээллийг оруулна) Үерт өртөх магадлал өндөр"]
[null," - Хөрсний гулгалт: Хөрсний гулгалт: Өртөх магадлал дунд зэрэг."]
[null," - Давалгаа: Эргийн үер: өртөх магадлал өндөр"]
[null," - Хар салхи: Салхи: Өртөх магадлал маш өндөр. Хүчтэй шуурга: Өртөх магадлал өндөр."]
[null,"Бүх үнэлгээний дүн \"К\" баганад харагдана."]
[]
[null,"6 дугаар алхам: Эмзэг байдлыг үнэлэх "]
[null,"Аюулын мэдээлэл оруулах (Hazard Data Entry) хэсгийн “E - H” баганыг харна уу."]
[null,"> Сонгосон аюулт үзэгдэл, осол тус бүрийн хувьд эмзэг байдлыг 4 төрөлд хувааж үзүүлсэн төрөл тус бүрээр 0-100 хувь (%)-аар тооцож үнэлнэ. “Таамаглал” (Assumptions) хэсгээс хувиар тооцож үнэлэх жагсаалтыг бүтнээр нь харж болно.\n>Эдгээр эмзэг байдлын 4 төрөлд дараах агуулгыг багтаан тооцно. Үүнд:\na. Дэд бүтэц (зам, тээвэр, төмөр зам, усан зам, гүүр, байшин барилга, орон сууц гэх мэт бүх төрөл хамаарах)\nb. Бүтээгдэхүүн үйлдвэрлэлийн салбар (ялангуяа амьжиргаанд нөлөөлөх эрхэлж буй үйлдвэрлэлийн бизнес, шууд бусаар нөлөөлөх ажил эрхлэлт, ажлын зах зээл)\nc. Тусгай болон үндсэн хэрэгцээний үйлчилгээ (эрүүл мэнд, харилцаа холбоо, ус хангамж, цахилгаан эрчим хүч гэх мэт) d.Хүн ам (хүний аюулгүй байдал, өртөх, шилжин суурьших хүмүүс гэх мэт)"]
[null,"> “N” баганад байгаа “Тэмдэглэл” гэсэн хэсэгт эмзэг байдлыг яагаад ... % гэж тооцож байгаа шалтгааныг тодруулан бичих нь зүйтэй. Тус тэмдэглэл нь эмзэг байдлыг бууруулах чиглэлээр цаашид авах арга хэмжээг тодорхойлоход хэрэглэгдэнэ. "]
[]
[null,"Эмзэг байдал нь нийгмийн бүлэг, систем болон эд хөрөнгийн болзошгүй аюулд өртөх боломж бүхий сул тал (UNISDR Terminology, 2009). Эмзэг байдал нь хүрээлэн буй орчин, нийгэм, эдийн засаг болон биет байдал зэргээс хамааран олон төрлийн ойлголттой байна. Жишээлбэл: чанаргүй баридга байгууламж,  эд хөрөнгийн хамгаалалтгүй байдал, олон нийтийн гамшгийн талаарх мэдлэг, ойлголт дутмаг байдал, эрсдэл, бэлэн байдлын талаар авах арга хэмжээний хязгаарлагдмал байдал, уналтад орсон байгаль орчны менежмент. Нийгмийн бүлэг, цаг үеийн байдлаас хамааран эмзэг байдал бүр өөр өөр байна. This definition identifies vulnerability as a characteristic of the element of interest (community, system or asset) which is independent of its exposure. "]
[]
[null,"Судалгаа:"]
[null,"Макай хотын биет барилга багууламж, нийгэм, эдийн засаг, хүрээлэн буй орчинд хийгдсэн эрсдэлийн үнэлгээний оноо \"E-H\" баганад харагдана:"]
[null," - Үер: Голын ус халилтаас үүсэх үер: Уг аюулын төрөлд өгөгдсөн дөрвөн төрөл нь дараах эмзэг байдлын түвшинд хамрагдана: Дэд бүтэц: Өндөр, Үйлдвэрлэлийн салбар: Өндөр, Тусгай болон үндсэн харилцааны үйлчилгээ: Өндөр, Хүн ам, нийгмийн байдал: Өндөр"]
[null," - Үер: Гэнэтийн үер: Уг аюулын төрөлд өгөгдсөн дөрвөн төрөл нь дараах эмзэг байдлын түвшинд хамрагдана: Дэд бүтэц: Маш өндөр, Үйлдвэрлэлийн салбар: Маш өндөр,  Тусгай болон үндсэн харилцааны үйлчилгээ: Маш өндөр,  Хүн ам, нийгмийн байдал: Маш өндөр"]
[null," - Хөрсний гулгалт: хөрсний гулгалт: Уг аюулын төрөлд өгөгдсөн дөрвөн төрөл нь дараах эмзэг байдлын түвшинд хамрагдана: Дэд бүтэц: Дунд зэрэг, Үйлдвэрлэлийн салбар: Дунд зэрэг,  Тусгай болон үндсэн харилцааны үйлчилгээ: Өндөр,  Хүн ам, нийгмийн байдал: Өндөр"]
[null," - Давалгаа: Эргийн үер: Уг аюулын төрөлд өгөгдсөн дөрвөн төрөл нь дараах эмзэг байдлын түвшинд хамрагдана: Дэд бүтэц: Өндөр, Үйлдвэрлэлийн салбар: Өндөр,  Тусгай болон үндсэн харилцааны үйлчилгээ: Өндөр,  Хүн ам, нийгмийн байдал: Өндөр"]
[null," - Халуун орны хар салхи: Салхи: Уг аюулын төрөлд өгөгдсөн дөрвөн төрөл нь дараах байдалд хамрагдана: Дэд бүтэц: Маш өндөр, Үйлдвэрлэлийн салбар: Маш өндөр,  Тусгай болон үндсэн харилцааны үйлчилгээ: Маш өндөр,  Хүн ам, нийгмийн байдал: Маш өндөр"]
[]
[null,"\"N\" баганад гарсан үнэлгээний онооны тайлбарыг бичнэ үү"]
[]
[null,"7 дугаар алхам: Хариу арга хэмжээний өнөөгийн түвшин, чадавхыг үнэлэх"]
[null,"Эрсдэлийн үнэлгээ буюу аюулын мэдээлэл оруулах (Hazard Data Entry) хэсгийн “J” баганыг харна уу. "]
[null,"> Сонгосон аюулт үзэгдэл, осол тус бүрийн хувьд үнэлгээ хийж буй орон нутгаас авч хэрэгжүүлж буй хариу арга хэмжээний өнөөгийн түвшин, чадавхыг “авч хэрэгжүүлж буй арга хэмжээ байхгүй гэдгээс маш сайн арга хэмжээ авч байгаа” гэж 0-100 хувь (%)-аар тооцож үнэлнэ. “Таамаглал” (Assumptions) хэсгээс хувиар тооцож үнэлэх жагсаалтыг бүтнээр нь харж болно. "]
[null,"> “N” баганад байгаа “Тэмдэглэл” гэсэн хэсэгт яагаад ... % гэж тооцож байгаа шалтгааныг тодруулан бичих нь зүйтэй. Тус тэмдэглэл нь цаашид авах арга хэмжээг тодорхойлоход хэрэглэгдэнэ. "]
[]
[null,"Current actions or measures undertaken: activities and measures to avoid and/or address existing and new disaster risks (UNISDR Terminology, 2009). It indicates the current level of disaster-resilience of the specified location."]
[]
[null,"Судалгаа:"]
[null,"Макай хот нь тухайн бүс нутгийнхаа тодорхой гамшгийн нөлөө тэдгээрийг зохицуулах Гамшгийн менежментийн төлөвлөгөө болон Гамшгийн дараах сэргээн босгох зэрэг хэд хэдэн стратеги, төлөвлөгөөтэй. Мөн орон нутгийн төлөвлөгөө, гамшгийн хариу арга хэмжээ авахад бизнесийн салбарыг оролцуулах, ард иргэдийн гамшгийн талаарх мэдлэгийг дээшлүүлэхэд чиглэсэн арга хэмжээг авч хэрэгжүүлдэг. Өнөөгийн чадавхыг үнэлэх, холбогдох талуудтай зөвшилцөх, авч хэрэгжүүлж буй арга хэмжээг ойлгох, тухайн хотын бэлэн байдлыг дээшлүүлэх зэрэг оноонууд нь \"Н\" баганад байрлана:"]
[null," - Үер: Голын ус халилтаас үүсэх үер: Одоогийн авч хэрэгжүүлж буй арга хэмжээний түвшин: Зарим арга хэмжээг авч хэрэгжүүлж байна."]
[null," - Үер: Гэнэтийн үер: Одоогийн авч хэрэгжүүлж буй арга хэмжээний түвшин: Зарим арга хэмжээг авч хэрэгжүүлж байна."]
[null," - хөрсний гулгалт: Хөрсний гулгалт: Одоогийн авч хэрэгжүүлж буй арга хэмжээний түвшин: \"Авч хэрэгжүүлж буй арга хэмжээ цөөхөн\"."]
[null," - Давалгаа: Эргийн үер: Одоогийн авч хэрэгжүүлж буй арга хэмжээний түвшин: \"Авч хэрэгжүүлж буй арга хэмжээ маш бага\"."]
[null," - Хар салхи: Салхи: Одоогийн авч хэрэгжүүлж буй арга хэмжээний түвшин: \"Авч хэрэгжүүлж буй арга хэмжээ цөөхөн\"."]
[null," - Хар салхи: Хүчтэй шуурга: Одоогийн авч хэрэгжүүлж буй арга хэмжээний түвшин: \"Авч хэрэгжүүлж буй арга хэмжээ маш бага\"."]
[null,"\"N\" баганад гарсан үнэлгээний онооны тайлбарыг бичнэ үү"]
[]
[null,"8 дугаар алхам: Гарсан үр дүнд шинжилгээ хийх, дүгнэх "]
[null,"Эрсдэлийн үнэлгээ буюу аюулын мэдээлэл оруулах (Hazard Data Entry) хэсгийн “K, L, M” баганыг харна уу."]
[null,"> 5-7 дугаар алхамд оруулсан мэдээлэлд үндэслэн энэхүү Гамшгийн эрсдэлийг тооцоолох түргэвчилсэн аргын программ нь автоматаар сүүлийн үр дүн болох магадлалын зэрэг ба учрах хор уршгийн зэргийг тооцон үзүүлнэ. Мөн үнэлсэн эрсдэлийн зэргийг “Эрсдэлийн матриц”-д зааснаар тодорхойлон үзүүлнэ. "]
[null,"  a) Магадлалын зэрэглэлийн оноо: Энэ нь тухайн орон нутагт тохиолдож болзошгүй гамшгийн өртөнги, эмзэг байдал, эрсдэлийг бууруулах арга хэмжээний өнөөгийн түвшин, чадавхтай харьцуулсан магадлал юм. Магадлалын зэрэглэлийн оноо бага гарвал авах арга хэмжээ бага байж болно, өндөр гарвал гамшгийн эрсдэлийг бууруулах хариу арга хэмжээг өндөр түвшинд авах шаардлагатай гэдгийг харуулна. Гэхдээ энэ дүн нь статистик дүн биш гэдгийг санах хэрэгтэй. Зөвхөн үнэлгээ хийсэн орон нутагт ямар гамшгийн аюул өндөр байгааг эрэмбэлж, гамшгийн эрсдэлийг бууруулах чиглэлээр авч хэрэгжүүлэх арга хэмжээг төлөвлөхөд зориулагдсан болно. "]
[null,"  b) Учрах хор уршгийн зэрэглэл: Тухайн орон нутгийн болзошгүй гамшгийн үр дагавар, учрах нөлөөллийн түвшинг 1-100 гэсэн зэрэглэлээр тооцно. 1 нь хамгийн бага, 100 хамгийн их.  "]
[null,"  c) Эрсдэлийн зэрэглэл: “Эрсдэлийн матриц”-д өгүүлснээр эрсдэлийг Маш бага гэдгээс Сүйрлийн хэмжээ хүртэл зэрэглэсэн. Энэ зэрэг нь магадлал, учрах хор уршгийн зэрэглэлээс хамаарна."]
[]
[null,"Тайлбар:"]
[null," - A (negative) severity rating indicates you are outside the threshold of a material risk to invest in a response to."]
[null," - Учрах хор уршгийн түвшин \"0\" буюу сөрөг гарсан бол тухайн аюулыг даван туулахад одоогийн авч хэргэжүүлж буй арга хэмжээний үнэлгээ бодит бус байх магадлалтай."]
[null," - Эрсдэлийн түвшин, учрах хор уршгийн түвшин зэргийг тодорхойлохдоо тухайн аюулын дэд бүлэг, аюулт үзэгдэл, ослын мэдээллийг харьяалагдах бүх баганад оруулна."]
[]
[null,"Тайлагнах"]
[null,"> Аюулын мэдээлэлийн хариу нь \"Үнэлгээний оноо\" цонхонд автоматаар гарч ирнэ. This tab includes a summary of the criteria scores obtained as a result of the assessment that will be unlocked for the user to use as required.\n> Гамшгийн эрсдэлийг тооцоолох түргэвчилсэн арга нь дараалсан хуудсанд хоёр төрлийн тайлан гаргана: Эрсдэлийн дүн болон Эмзэг байдлын тайлан.\na) The Risk Summary maps the Disaster Likelihood and Severity in the first table compared against all hazards/perils assessed. The second table maps the Disaster Exposure and Vulnerability compared against all hazards/perils assessed.\nb) The Vulnerability Report maps the four Vulnerability Categories exposure and vulnerability ratings individually.\nThese Reports provide a visual representation or 'Dashboard' of the results of the assessment, assisting you in analysing the outcomes of your exercise and in developing potential current and future risk scenarios.\n"]
[]
[null,"Судалгаа"]
[null,"Дээрх өгсөн үнэлгээнд үндэслэн QRE дараах магадлалын оноо, учрах хор уршиг, эрсдэлийн түвшин зэргийг аюулт үзэгдэл, осол тус бүрээр гаргана. Энэ нь \"Үнэлгээний оноо\" хэсэгт харагдах бөгөөд, гол аюулуудад хооронд нь харьцуулалт хийх боломж оргоно."]
[null," - Үер: Голын ус халихаас үүсэх үер: Эмзэг байдлын түвшин: 100-аас 80; Магадлалын оноо: 100-аас 8; Учрах хор уршгийн түвшин: 100-аас 40 ; Эрсдэлийн түвшин: M6"]
[null," - үер: Гэнэтийн үер: Эмзэг байдлын түвшин: 100-аас 88; Магадлалын оноо: 100-аас 8; Учрах хор уршгийн түвшин: 100-аас 40 ; Эрсдэлийн түвшин: M6"]
[null," - Хөрсний гулгалт: Хөрсний гулгалт: Эмзэг байдлын түвшин: 100-аас 58; Магадлалын оноо: 100-аас 5; Учрах хор уршгийн түвшин: 100-аас 40; Эрсдэлийн түвшин: L4"]
[null," - Давалгаа: Эргийн үер: Эмзэг байдлын түвшин: 100-аас 88; Магадлалын оноо: 100-аас 8; Учрах хор уршгийн түвшин: 100-аас 70 ; Эрсдэлийн түвшин: H7"]
[null," - Хар салхи: Салхи: Эмзэг байдлын түвшин: 100-аас 90; Магадлалын оноо: 100-аас 9; Учрах хор уршгийн түвшин:100-аас 40 ; Эрсдэлийн түвшин: H7"]
[null," - Хар салхи: Ширүүн шуурга: Эмзэг байдлын түвшин: 100-аас 93; Магадлалын оноо: 100-аас 8; Учрах хор уршгийн түвшин: 100-аас 60 ; Эрсдэлийн түвшин: H7"]
[]
[]
[null,"Эрсдэлийн матриц"]
[null,"Гамшгийн эрсдэлийг тооцоолох түргэвчилсэн арга нь таны дүгнэсэн үнэлгээн дээр үндэслэсэн өнөөгийн болон ирээдүйд учрах эрсдэлийг тооцоолох,  эрсдэлийг бууруулах, цагийн байдлыг тодорхойлоход тусална. Цагийн байдал нь тухайн хотын өртөнги, эмзэг байдал, гамшгаас үүдэлтэй хохирол, сүйрэл, хүн амын  нас баралт зэрэгт суурилсан аюулын магадлал, сүйрэл түүний нөлөөлөлийн талаарх цогц үнэлгээ юм. Цагийн байдлыг тодорхойлох нь гамшиг тус бүрийн эрсдэлийн түвшин, тэдгээрийн бүс нутаг бүрт үзүүлэх нөлөөлийг ойлгоход маш чухал. Энэхүү гамшгийн эрсдэлийг тооцоолох түргэвчилсэн арга нь хотуудыг өнөөгийн байгаа гамшгийг тэсвэрлэх чадавхад тохирсон арга хэмжээ авах, нэн тэргүүний хөрөнгө оруулалт, үйл ажиллагааг тодорхойлох, мөн өөрсдийн гамшгийг тэсвэрлэх чадавхыг сайжруулах үйл ажиллагааг сайжруулах боловжийг олгоно."]
[null,"Гамшгийн эрсдэлийг тооцоолох түргэвчилсэн арга нь өөр өөр эрсдэлийн байдлыг боловсруулахад ашиглагдаж болно.\n"]
[null," 1) Аюулын дэд бүлэг доторх тодорхой нэг гол аюулт үзэгдэл, осол. Жишээлбэл: газар хөдлөлт (геофизикийн гаралтай аюул доторх гол аюулт үзэгдэл) нь эргийн дагуу байрлах хотуудад тохиолддог цунамигаас үүдэлтэй газрын чичирхийлэл."]
[null," 2) Нэгдмэл эрсдэл: Нэг төрлийн аюулын дэд бүлэгт хамаарагдах хоёр буюу түүнээс дээш төрлийн гол аюул. Жишээлбэл: ган (уур амьсгалын гаралтай томоохон аюулын дэд бүлэг доторх гол аюулт үзэгдэл) болон хээрийн түймэр (уур амьсгалын гаралтай томоохон аюулын дэд бүлэг доторх гол аюулт үзэгдэл) нь хэт хуурайшсанаас үүдэн ойн түймэр гарах ба эдгээр аюулд зориулсан хосолсон эрсдэлийн төлөвлөгөө."]
[null," 3) Өөр өөр аюулын дэд бүлагт хамаарагдах хосолсон гол аюул. Жишээлбэл: галт уулын идэвхжилт (геофизикийн аюулын дэд бүлэгт багтах гол аюулт үзэгдэл) ба хөрсний гулгалт (усны гаралтай аюулын дэд бүлгийн гол аюулт үзэгдэл), эдгээр нь нийлж хөрсний шилжилт, лаав болон хог хаягдалын урсгалыг үүсгэх ба энэ нь хот суурин болон орон нутгийн хүрээлэн буй орчинд хосолсон нөлөөтэй."]
[null,"Тайлбар:"]
[null,"  - Within hazard families cumulative severity representing a number of main hazards and associated perils can be assessed by using the totals calculated and shown in the Criteria Scores & Family Plots tab. For example, in the current example Cell H9 in the 'Criteria Scores & Family Plots' tab indicates a Total Severity Score across the Hazard Family of 215. This total severity score can be used to quickly identify the Hazard Family with the most severe combination of hazards/perils for the purposes of prioritising response measures."]
[]
[null,"\"Эрсдэлийн матриц\" цэсэнд байгаа матрицийг ашиглан цагийн байдал тус бүрийн эрсдэлийн түвшинг тодорхойлно. Цагийн байдал тус бүр нь тодорхойлогдсон эрсдэлийн түвшин дээр тулгуурлан эрэмбэлэгднэ. Энэ нь тодорхойлогдсон эрсдэлд тохирсон нэн тэргүүний арга хэмжээг авч хэрэгжүүлэх, хяналт шинжилгээ хийх, шинэчлэх гэх мэт арга хэмжээг авч хэрэгжүүлэхэд дэмжлэг үзүүлнэ. \"Эрсдэлийн матриц\" цэсэнд \"Магадлалыг үнэлэх заавар\" багтсан болно. Уг заавар нь үнэлгээ хийж буй хүмүүст магадлалыг ойлгох, эрсдэлийн түвшний ангиллыг тодорхойлогдоход зориулагдсан."]
[]
[null,"Судалгаа:"]
[null,"Макай хотын үнэлгээний үр дүн дээр үндэслэсэн хэд хэдэн төлөвлөгөө боловсруулагдаж болно. Дээр дурдсанаар цагийн байдлууд нь аюулын дэд бүлэг болон гол аюулт үзэгдэл, осол дээр үндэслэгдэн гарна. Энэ судалгаанд 3 боломжит цагийн байдал тодорхойлогдсон:"]
[]
[null,"1) Цагийн байдал #1: Голын ус халилтаас үүсэх үер."]
[null,"2) Цагийн байдал #2: Мөндөр болон хүчтэй салхинаас үүсэх шуурга."]
[null,"3) Цагийн байдал #3: Газар хөдлөлтөөс үүсэх газрын чичирхийлэл, хөрсний гулгалт болон голын ус халилтаас үүдсэн үер."]
[]
[null,"Цагийн байдлыг тооцоолох гол мэдээлэл болон томьёо:"]
[null,"  - Голын ус халилтаас үүсэх үер тохиолдох магадлалын оноо 8.5, учрах хор уршгийн түвшин 65.0."]
[null,"  - Шуурга тохиолдох магадлалын түвшин 4.0 (мөндөртэй), 7.0 (салхитай), учрах хор уршигийн түвшин 5.0 (мөндөртэй), 4.0 (салхитай)."]
[null,"  - Газар хөдлөлтөөс үүсэх газрын газрын чичирхийлэл тохиолдох  магадлалын түвшин 6.5, учрах хор уршгийн түвшин 45.0."]
[null,"  - Газар хөдлөлтөөс үүсэх хөрсний гулгалт тохиолдох магадлалын түвшин 7.5, учрах хор уршгийн түвшин 60.0."]
[]
[null,"  - Дундаж тохиолдох магадлалын түвшин (LR): LR1 + LR2 + LR3 нь нийт үнэлэгдсэн магадлалын түвшинд (LR) хуваагдана."]
[null,"  - Weighted Average Severity Rating (ASR): (LR1 x SR1) + (LR2 x SR2) divided by 10, where SR is the Severity Rating for each peril assessed."]
[]
[null,"Өгөгдсөн эрсдэлийн матрицийг цагийн байдалын түвшин тус бүрийг тодорхойлохдоо ашигласан."]
[]
[null,"1) Цагийн байдал #1: "]
[null,"     - Өртөнги болон эмзэг байдал дээр суурилсан магадлалын түвшин (8.5)-г бусад цагийн байдлтай харьцуулахад Макай хот нь \"Маш өндөр\" эрсдэлийн бүлэгт хамрагдна."]
[null,"     - Аюулаас учрах хор уршгийн түвшин (65.0) \"Өндөр"]
[null,"     - Нэгдсэн эрсдэлийн түвшин \"Н8\"."]
[null,"2) Цагийн байдал #2:"]
[null,"     -  Нэг аюулын дэд бүлэгт хамрагдах хоёр төрлийн аюулт үзэгдэл, осол дээр суурилсан цагийн байдал #2-ын аюулын тохиолдох магадлалын дундаж оноо нь аюулт үзэгдэл, осол тус бүрт тооцоологдон гарсан. Энэ нөхцөлд магадлалын дундаж оноо нь \"5.5\" (4.0 + 7.0 / 2), тиймээс уг цагийн байдлын өртөнги байдал болон эмзэг байдал дээр үндэслэсэн магадлалын дундаж онооноос харахад Макай хот нь аюулын \"Дундаж\" бүлэг багтана."]
[null,"     - Учрах хор уршгийн дундаж оноо нь аюулт үзэгдэл, осол бүрийн учрах хор уршгийн оноог аюулт үзэгдэл, осол бүрийн тагадлалын түвшний оноонд хэмжин гарсан. Уг цагийн байдлын учрах хор уршгийн түвшин 30 (4.0 х 5.0 + 7.0 х 40.0 / 10), тиймээс уг цагийн байдлын учрах хор уршгийн түвшин \"Дундаж\" болно."]
[null,"     - Эцсийн байдлаар эрсдэлийн түвшин \"ДЗ5\"."]
[null,"3) Цагийн байдал #3: "]
[null,"     - 3 төрлийн аюулт үзэгдэл, осол дээр үндэслэсэн цагийн байдал #3-ын магадлалын дундаж оноо нь аюулт үзэгдэл осол тус бүрийн магадлалын оноог тооцоолон гаргасан. Уг цагийн байдалд магадлалын дундаж оноо 7.5 (6.5 + 7.5 +8.5 / 3), тиймээс өртөнги байдал болон эмзэг байдалд үндэслэсэн магадлалын дундаж оноог Макай хотын бусад цагийн байдалтай харьцуулан үзэхэд уг хот нь эрсдэлийн \"Өндөр\" түвшинд багтана."]
[null,"     - Аюулын өөр өөр дэд бүлэгт хамаарагдах аюулт үзэгдэл, осол (геофизикийн аюулын дэд бүлгээс хоёр төрлийн аюулот үзэгдэл, осол, Усны гаралтай аюулын дэд бүлэг дотроос нэг аюулт үзэгдэл, осол) дээр үнэлэгдсэн учрах хор, уршгийн дундаж оноо нь дараах байдлаар тооцоологдсон: 1. нэг аюулын дэд бүлгийн өөр өөр аюулт үзэгдэл, осол (газрын шилжилт, хөрсний гулгалт)-ын дундаж оноо нь аюулт үзэгдэл, осол тус бүрийн учрах хор, уршгийн оноог аюулт үзэгдэл, осол тус бүрийн магадалын оноонд тооцоолон гаргана  (74.25; [6.5 x 45.0] + [7.5 X 60.0] / 10); 2.  Гурав дах аюулт үзэгдэл осол (үер) нь өөрийн магадлалын оноонд үржигдэн гарна (55.25; [8.5 X 65.0] / 10); 3. Дээрх хоёр тооцоологдсон дундаж оноог тооцно (64.75; [74.25 + 55.25] / 2 );\nУг цагийн байдлын учрах хор уршгийн дундаж оноо 64.74 ба учрах хор уршгийн \"Өндөр\" түвшинд багтана."]
[null,"     - Үр дүнд нь: Эрсдэлийн түвшин \"Ө7\" болно."]
[]
[null,"Дээрх цагийн байдлууд нь тухайн эрсдэлийн түвшинээс хамаарч цагийн байдал #1 > Цагийн байдал #3 > Цагйин байдал #2 гэж эрэмбэлэгднэ. Энэ нь Макай хотын цаашдын үйл ажиллаагааг төлөвлөгөөний дагуу хэрэгжүүлэхэд тусална."]
[]
["End"]

{"sheet":"Аюулын нэр томьёоны товч тайлба","index":2,"n_rows":94,"n_cols":16384,"rows_kept":94,"cut":false,"hidden":false,"merged":[[8,1,12,1]]}
[{"$f":"MdlTle","v":"Гамшгийн эрсдэлийг тооцоолох түргэвчилсэн арга"}]
[{"$f":"MID(CELL(\"filename\",A1),FIND(\"]\",CELL(\"filename\",A1))+1,255)","v":"Аюулын нэр томьёоны товч тайлба"}]
[]
[]
[null,"Term","Definition"]
[null,"Агаарын дэлбэрэлт \nAirburst","Газарт чичирхийлэлт үүсгэхгүйгээр дэлхийн агаар мандлын доторхи сүүлт од, метроноридын дэлбэрэлт"]
[null,"Мал, амьтдын осол\nAnimal Incident ","Хүн ам суурьшсан хөдөө, хот суурин газарт аюултай, хэвийн бус байдалтай үрэгдсэн амьтад."]
[null,"Галт уулын үнс\nAsh Fall","Галт уулын дэлбэрэлтийн үеэр 4-өөс бага диаметртэй нягтраагүй галт уулын хаягдал урт хугацааны туршид зайд агаар мандалд тархан оршдог."]
[null,"Нуранги\nAvalanche","Таталцлын хүчний дагуу их хэмжээний цас, мөс болон бусад материал өндөр уулнаас хурдтай гулсан нурж ирэх"]
[]
[null,null,"• Цасны нуранги: Цас, мөс холилдон өндөр уулнаас хурдтай гулсан нурж ирэх "]
[]
[null,null,"• Чулуулаг хэсгийн нуранги: Чулуулаг болон хөрсний жижиг хэсгүүд гэнэтийн маш хурдацтай гулсан нурна. Эдгээр жижиг хэсгүүд нь хүйтэн, халуун гэсэн 2 төрөлтэй. Чулуулаг болон хөрсний хүйтэн жижиг хэсгүүд нь уул хадны тогтоц муутай налуугийн гэнэтийн нуралтаас үүсэх бол халуун жижиг хэсгүүд галт уулын дэлбэрэлтийн нөлөөгөөр үүснэ."]
[null,"Иргэний агаарын тээврийн осол\nAviation Accident","To be updated"]
[null,"Бактерын гаралтай өвчин\nBacterial Disease","Арьс, салст, амьсгалын замын бактераар халдварлах тохиолдол ихээхэн нэмэгдсээр байна. Жишээ нь: салмонела, холер гэх мэт."]
[null,"Биологийн аюул\nBiological Hazard","Амьд организмд хорт бодисууд (жишээлбэл, хор, хөгц), вектораар дамжин халдварлах аюул. Жишээ нь паразит, бактери, вирус гэх зэрэг өвчин үүсгэгч нян агуулсан шумуул, хорт ургамал, хорт ан амьтад, хортон шавьжаар халдварлах өвчний аюул. Тухайлбал халуун хумхаа өвчин."]
[null,"Химийн аюул \nChemical Spill","To be updated"]
[null,"Уур амьсгалаас үүдэлтэй аюул\nClimatological Hazard","Бичил түвшнээс макро түвшин хүртэлх агаарын улирлын чанартай цаг уурын өөрчлөлтөөс эхлээд хэдэн арван жил үргэлжлэх урт хугацааны уур амьсгалын өөрчлөлтөөс үүсэх аюул."]
[null,"Далайн эргийн хөрсний элэгдэл\nCoastal Erosion","Далайн давалгаа, түрлэг, салхи болон хүний үйл ажиллагаанаас үүдэлтэй далайн эрэг орчмын ихээхэн хэмжээний хуурай газар, тунадамал чулуулгийн байнгын болон түр зуурын элэгдэл."]
[null,"Далайн эргийн усанд автах\nCoastal Flood","Ширүүн усархаг бороо болон далайн түрлэгийн улмаас усны түвшин ердийнхөөс ихсэн үерийн аюултай байдалд хүргэдэг. Энэ байдал нь хэдэн долоо хоногоор үргэлжилдэг."]
[null,"Хүйтний урсгал\nCold Wave ","Цаг агаарын хүйтэн үе. Ерөнхийдөө хэт хүйтны эрчим нь хоёр буюу түүнээс олон хоног үргэлжлэх бөгөөд хүчтэй салхитай хавсарна. Хүйтний урсгалын температур нь газар зүйн байршлаар өөр өөр хэлбэлзэлтэй байна."]
[null,"Халуун салхи\nConvective Storm","Халсан агаар, агаарын чийг ба агаарын массын тогтворгүй байдлаас үүссэн цаг уурын аюул. Халуун салхи  нь мезо түвшинд хэдэн өдрөөр ч үргэлжилж шуурга, аадар бороо, бороо, мөндөр, аянга, хүчтэй хуй салхиар үргэлжилнэ."]
[null,"Чулуулгийн жижиг хэсгүүд нуран урсах, шавар урсах, хад чулуу нурах\nDebris Flow, Mud Flow, Rock Fall","Газрын таталцлын хүчний дагуу хүчтэй бороо, цас/мөс хурдацтай хайлсны улмаас хөрс, ургамал, шавар, хайрга чулуулгийг өндрөөс нуран урсгадаг хөрсний гулсалтын хэлбэрүүд."]
[null,"Хүчтэй салхи\nDerecho","Шуургатай холбоотой үүссэн өргөн газар нутгийг хамарч үргэлжлэх, маш хурдан өрнөх хүчтэй салхи, шуурга. Энэхүү хүчтэй салхи нь өндөр босоо хэлбэрийн салхи шулуун чиглэлтэй салхитай мөргөлдөх үзэгдэл юм. Үүнээс  учрах хохирол нь торнода салхинаас учрах хохиролтой төстэй байдаг."]
[null,"Халдварт өвчин\nDisease","Тухайн бүс нутагт өмнө нь байсан (томуу, суулга), эсвэл шинээр гарч байгаа (тахал, полио гэх мэт) халдварт өвчний тохиолдол хэвийн бус байдлаар эсвэл гэнэт ихсэх. "]
[null,"Ган\nDrought","An extended period of unusually low precipitation that produces a shortage of water for people, animals and plants. Drought is different from most other hazards in that it develops slowly, sometimes even over years, and its onset is generally difficult to detect. Drought is not solely a physical phenomenon because its impacts can be exacerbated by human activities and water supply demands. Drought is therefore often defined both conceptually and operationally. Operational definitions of drought, meaning the degree of precipitation reduction that constitutes a drought, vary by locality, climate and environmental sector.\nУрт хугацаагаар хур тундасны хэмжээ бага байснаас хүн, амьтан, ургамалд усны хомсдол үүсэхийг хэлнэ. Гангийн аюул нь хэдэн жил хүртэл сунаж удаан үүсч бий болох боломжтойгоороо бусад аюлаас онцлог бөгөөд илрүүлэхэд илүү бэрхшээлтэй. Ган нь дан байгалийн үзэгдэл биш бөгөөд хүний үйл ажиллагаа болон усны хэрэглээнээс хамаарч илүү хүндэрч болно."]
[null,"Газар хөдлөлт\nEarthquake","Дэлхийн бөмбөрцгийн геологийн хавтангийн гэнэтийн хөдөлгөөнөөс үүдэн газар чичирхийлэхийг хэлнэ. "]
[null,"Эрчим хүчний үйлчилгээтэй биетээс ялгарах хий\nEnergetic Particles","Нарны цацрагийн шуургаас ялгарсан маш өндөр хурдтай хөдлөх бодис (протон болон бусад цэнэгтэй тоосонцор). Соронзон мандал болон агаар мандал нь (нарны) эрчим хүчний тоосонцрыг дэлхий дээрх хүмүүст хүрэхээс хамгаалдаг. Гэвч, сансрын зориоулалттай техник техниологиудыг (хиймэл дагуул гэх мэт) гэмтээх бөгөөд сансард байгаа амьд биетэд болон өндөрт нисэх онгоцнуудад цацрагийн аюул үүсгэж байна. "]
[null,"Хэрэглэгдсэн шавар шороо\nExpansive Soil","Газрын хөрс нэн ялангуяа шаварлаг шороо нь норох, хөлдөх, хуурайшихаас үүдэн тэлэх агших зэргээр барилга бүтээцүүдийн суурийг гэмтээх. Агшилтыг ерөнхийд нь хаталт гэж тодорхойлдог."]
[null,"Дэлхийгээс гадна орших биетийн аюул\nExtraterrestrial Hazard","Солир, солирын бороо болон сүүлт од нь дэлхийтэй ойр өнгөрөх, дэлхийн мандалд нэвтрэх, дэлхийтэй мөргөлдөх болон гариг хоорондын нөцөлд нөлөөлснөөр дэлхийн соронзон давхарга, ион давхарга, болон дулааны орчинд нөлөөлөх. "]
[null,"Extratropical Storm","Дунд болон өндөрлөг өргөрөгт орших бага даралтын хар салхины систем ба ихэнхдээ агаар мандалд байгаа хөндлөн чиглэлийн температураас энерги авдаг. "]
[null,"Хэт халуун/хүйтэн агаарын хэм\nExtreme Temperature","Агаарын хэмийн хэвийн нөхцлөөс дээш (хэт халалт) эсвэл доош (хэт хүйтэн) өөрчлөлтийг тодорхойлолт."]
[null,"Гал түймэр\nFire","To be updated"]
[null,"Газар хөдлөлтөөс үүсэлтэй гал түймэр\nFire following Earthquake","Газар хөдлөлтөөс үүдэн хот дахь гал түймэр үүсдэг. Нягт суурьшилтай, уугуул хийцтэй модон барилгуудтай, газар хөдлөлт нь усны болон хийн хоолойг гэмтээсэн бүсүүдэд гарах магадлал өндөр. Жижиг гал түймрүүд нь нийлж хотын томоохон бүсийг устгах аюултай. "]
[null,"Гэнэтийн үер\nFlash Flood","Богино хугацаанд их хэмжээний бороо орсноос урсгал ус үүсгэж борооны үед эсвэл борооны дараа хэдхэн минут эсвэл хэдэн цагийн дотор үерийн нөхцөл байдал үүсгэхийг хэлнэ. "]
[null,"Үер\nFlood","Ус урсгалаасаа хальж жирийн үед хуурай байх газрыг усанд автуулах (усны сав газар), усны түвшин хэвийнээс давж нуур, усны резервуарыг тойрон эсвэл хур тундас ихээр орсон газарт (гэнэтийн үер) тогтоол ус үүсгэх"]
[null,"Манан\nFog","Газрын гадаргад ойр агаарт тогтсон усны дуслууд. Манан нь газарт буусан үүл юм. "]
[null,"Ойн түймэр\nForest Fire ","Модтой бүсэд гарсан түймэр."]
[null,"Хөлдөлт\nFrost","Хөлдөлт нь хэт хүйтнээс үүдэн газар, хөрсний гадарга дээр төрөл бүрийн хэлбэрээр мөсөн талст үүсэхийг хэлнэ. Хяруу нь газрын гадаргын хэм тэгээс доош ороход агаар дахь чийг хүйтэн газрын гадарга дээр хатуу биет үүсгэхийг хэлнэ. Хөлдөлт нь томоохон хэмжээний газарт урт хугацаагаар агаарын хэм (32oF/0oC) эсвэл түүнээс доош ороход үүснэ. Хөлдөлт үүсэхэд салхи болон бусад орчны нөхцөл байдал мөн нөлөөлнө. Хөлдөлт болон хяруу нь ургац хураалтын үеэр нэн их хохирол учруулдаг. "]
[null,"Мөөгөнцөрийн өвчин\nFungal Disease","Мөөгөнцөрт арьсаар хүрэх, аманд орох эсвэл үрийг нь амьсгалснаас мөөгөнцрийн өвчин туссан тохиолдол ихэссэнийг хэлнэ. Жишээлбэл: мөөгөнцрийн хатгаа, мөөгөнцрийн менингит, гэх мэт."]
[null,"Газрын соронзон салхи\nGeomagnetic Storm","Нэгэн төрлийн дэлхийгээс гадна орших төрлийн аюул. Дэлхийн соронзон давхаргад нарны хүчтэй долгион түр нөлөөлснөөс үүснэ. Газрын соронзон салхи нь цахилгаан шугам сүлжээг тасалдуулах, сансрын хөлөг онгоцны ажиллагаа болон хиймэл дагуулын ажиллагаанд нөлөөлнө."]
[null,"Геофизикийн аюул\nGeophysical Hazard","Хатуулаг хөрс шорооноос үүсэх аюул. Энэхүү томъёолол нь геологийн аюултай адил аль аль томъёоллыг ашиглах боломжтой. "]
[null,"Цэвдэгт мөсөн гол хайлалтаас үүсэх үер\nGlacial Lake Outburst","Мөс эсвэл хурдасаар хаагдсан байсан ус гэнэт чөлөөлөгдөж үер үүсгэхийг хэлнэ. Мөстсөн нуур нь захлан мөстсөн (эргийн мөстлөг) эсвэл мөсөн давхаргын доогуур мөстсөн (хагас мөстсөн нуур) байж болно"]
[null,"Газрын чичирхийлэлт\nGround Movement","Газар хөдлөлт эсвэл галт уулын дэлбэрэлтээс үүдэлтэй газрын чичиргээнээс газар дээрх биетүүд хөдөлгөөнд орохыг хэлнэ. "]
[null,"Мөндөр\nHail ","5 мм-ээс илүү диаметртэй бөмбөлөг хэлбэртэй мөсөн хатуулаг хур тундасыг хэлнэ. "]
[null,"Халууны урсгал\nHeat Wave ","Тодорхой хугацаанд үргэлжлэх хэвийн бус халуун мөн/эсвэл чийглэг цаг уурын нөхцлийг хэлнэ. Халууны урсгал ихэвчлэн 2-3 өдөр үргэлжилнэ. Халууны урсгалыг тодорхойлох хэм нь байршлаас хамаарч өөр байна. "]
[null,"Усны аюул\nHydrological Hazard","Цэвэр болон давстай ус илрэх, усны хөдөлгөөн, хөрсний гадарга дээрх болон түүний доогуурх урсгалаас үүсэх аюул. "]
[null,"Мөсний бөөгнөрлөөс үүсэх үер\nIce Jam Flood","Хөвж буй мөс нь бөөгнөрч гол, ус зайлуулах суваг зэргийн урсгалыг бөглөх урсацыг хязгаарлах. Мөсний бөөгнөрөл нь ихэвчлэн голын тохой эсвэл саад бүхий хэсэгт (гүүр) үүсдэг. "]
[null,"Нөлөөлөл\nImpact","Солир, солирын бороо, сүүлт од нь дэлхийтэй мөргөлдсөнөөс үүсэх дэлхийгээс гадна орших аюул. "]
[null,"Үйлдвэрийн гамшиг\nIndustrial Disaster","To be updated"]
[null,"Үйлдвэрийн тэсрэлт\nIndustrial Explosion","To be updated"]
[null,"Шавьж шимэгчийн халдвар\nInsect Infestation","Өргөн хэмжээний шавжны шилжилт хөдөлгөөн, бөөгнөрөл, өндөглөлт нь хүн, амьтан, ургац болон бусад богино хадгалалттай хүнсэнд нөлөөлөх. Жишээ: царцааны нүүдэл, Африкийн цох."]
[null,"Лаав\nLahar","Галт уулын тэсрэлтийн үеэр эсвэл тэсрэлтийн дараа халуун эсвэл хүйтэн газрын хөрс шороо нь галт уулын бэлээр урсах."]
[null,"Газар хөдлөлтөөс үүсэлтэй хөрсний гулсалт\nLandslide following Earthquake","Газар хөдлөлтөөс үүдэлтэй хөрс усны их хэмжээний хөдөлгөөн."]
[null,"Лаавны урсгал\nLava Flow","Галт уулын дэлбэрэлтээс гадагшилсан шингэн төлвийн лаав нь уулын бэлээр доош урсах."]
[null,"Цахилгаан цахих\nLightning","Дуу цахилгаантай борооны дараа аянга цахихад өндөр хүчдэлийн нүдэнд үзэгдэх цахилгаан гүйдэл үүсэхийг хэлнэ. "]
[null,"Хөрсний шигшилтээс үүсэх ус\nLiquefaction","Газар хөдлөлтөөс үүдэн ус нь ялгарсан хөрс нь хуурай хөрснөөс ялгарч шингэн төлөвт орохыг хэлнэ. Энэ нь хөрсний бат бэх байдлыг алдагдуудж барилга нурахад нөлөөлдөг. "]
[null,"Масс хөдөлгөөн\nMass Movement","Хөрс шорооны уруу чиглэлийн хөдөлгөөн."]
[null,"Цаг агаараас үүсэлтэй аюул\nMeteorological Hazard","Богино хугацааны багаас их хэмжээний цаг агаарын нөхцөл байдлыг хэлнэ. Хэдхэн минутаас хэдэн өдөр үргэлжилж болно."]
[null,"Уурхайн осол, гамшиг\nMine Disaster","To be updated"]
[null,"Усан онгоцны осол\nNavigation Accident","To be updated"]
[null,"Газрын тосны осол\nOil Spill","To be updated"]
[null,"Шимэгч хорхойгоос үүсэх өвчин\nParasitic Disease","Шимэгч биет хүн амьтны биед халдах тохиолдол хэвийнээс ихээр тохиолдох. Шимэгч халдах тохиолдол нь ихэвчлэн бохир ус, хүнс, шавж эсвэл амьтантай (зооноз) харьцсанаас үүснэ. Жишээ: хумхай, chagas, giardiasis and trichinellosis."]
[null,"Эрчим хүчний алдагдал\nPower Outage","To be updated"]
[null,"Prion Disease","Прионы уургаас үүдэлтэй биологийн аюул. Прионы өвчин эсвэл Халдварт хөөсөн биет энцефалопати нь хувьсах сэтгэцэд нөлөөлөх бүлгийн өвчин бөгөөд хүн болоод амьтан тусна. Өвчний шинж тэмдэг урт хугацаагаар илрэхгүй байж байгаад мэдээ алдалт үүсгэдэг. Жишээ нь: Bovine Spongiform Encephalopathy (BSE), Creutzfeldt-Jakob-Disease (CJD), Kuru гэх мэт. "]
[null,"Пирокластик урсгал\nPyroclastic Flow","Маш халуун Цельсийн 1000 хэмээс халуун хий, үнс болон бусад материал нь галт уулын дэлбэрэлтийн үед уулыг даган урсахыг (700 км/ц-аас илүү) хэлнэ. "]
[null,"Цацраг идэвхт бодисын осол\nRadiation contamination (e.g. nuclear incident)","To be updated"]
[null,"Радио сарниулалт\nRadio Disturbance","Нарнаас ялгарсан рентген туяа нь дэлхийн агаар мандалд орж ион мандалд нөлөөлснөөр радио дохионы өндөр болон нам хэлбэлзлийг сарниулах. Энэ нь хиймэл дагуулын радио холбоо болон GPS-д нөлөөлнө. "]
[null,"Төмөр замын осол\nRail Accident","To be updated"]
[null,"Бороо\nRain","Усны уур нь агаар мандал руу ууршиж усны жижиг дуслыг үүсгэснээр газарт буухыг хэлнэ."]
[null,"Гол ус халилтаас үүсэх үер\nRiverine Flood ","Голын ус урсгалаасаа хальж жирийн үед хуурай байх  үерын татам газрыг усанд автуулан үер үүсгэх "]
[null,"Замын осол\nRoad Accident","To be updated"]
[null,"Ширүүн шуурга \nRogue Wave ","Далайн голд үүссэн жирийн бус маш өндөр мөн/эсвэл огцом давалгаа"]
[null,"Элсэн/шороон шуурга\nSandstorm, Dust Storm","Хүчтэй салхи элсний ширхэгтэй 15 метр хүртэл хэмжээгээр хязгаарлагдсан газарт шуурахыг хэлнэ. Хуурай эсвэл хагас хуурайшсан газар элбэг. Шороор шуурга нь мөн элс биш тоос шороо агуулан томоохон газрыг хамран шуурч болно. "]
[null,"Сейши\nSeiche","Хагас болон бүэн хаалттай ус бүхий газарт (нуур, эрэг) хүчтэй салхи мөн/эсвэл барометрийн өндөр даралтаас gradient.p үүссэн давалгаа."]
[null,"Хүчтэй долгион\nShockwave","Хүчтэй долгион нь эрчим хүчний ялгарал биетээр дамжуулан (хатуу, шингэн, хий) долгион үүсгэж өндөр хурдаар тодорхой зайг туулахыг хэлнэ. Энэ аюул дэлхийгээс гаднах биетийн дэлбэрэлтээс эсвэл солирын мөргөлтөөс үүдсэн шил хагарах, хана нурах хүртэл хэмжээний долгионыг үүсгэнэ. "]
[null,"Цөмөрсөн нүх\nSinkhole","Газрын хөрсний доод давхарга болох чулуу, шохой уснаас үүдэн хөдөлгөөнд орсноос өнгөн давхарга нуран унах."]
[null,"Цас/мөс\nSnow, Ice","Цас нь агаар дахь хөлдсөн усны уур талсжин цасан ширхэг болж буух хур тундас. Мөс нь бороо хүйтэн газарт бууж хөлдсөнөөр үүснэ. "]
[null,"Агаар мандалд үүсэх осол\nSpace Accident","To be updated"]
[null,"Сансрын цаг агаар\nSpace Weather","Нарнаас ялгаран гарах дэлхийгээс гадна үүсэх цаг агаарын нөхцөл. Жишээ нь: геосоронзон шуурга, радио хэлбэлзлийн саатал, нарны эрчим хүчний тоосонцор зэргээс "]
[null,"Далайн салхи\nStorm Surge","Халуун бүсйин циклон эсвэл хүчтэй шуурганаас үүдэн далайн түвшин хэвийнээс ихээр нэмэгдэх."]
[null,"Барилгын нуралт\nStructural Collapse","To be updated"]
[null,"Хөрсний суулт\nSubsidence","Хөрсний суулт нь газрын гүний усыг авах, шохой чулуу арилах (газрын цөмрөлт), байгалийн хий олборлох, газар хөдлөлт зэргээс үүснэ."]
[null,"Торнадо салхи\nTornado","Газар эсвэл усны гадарга хүрэх хүчтэй эргэлдэх босоо салхи"]
[null,"Халуун бүсийн далайн хар салхи/циклон\nTropical Cyclone","Халуун, дулаан орны уснаас үүсдэг халуун орны хар салхи. Уг далайн хар салхи нь үүсэн бий болох бүс нутгаасаа хамаараад хар салхи (Hurricanes; Атлантын далай, Номхон далайн зүүн хойд бүс Хуй салхи (Typhoons; Номхон далайн баруун хойд бүс); Хар салхи (Cyclones; Номхон далайн өмнөд бүс, Энэтхэгийн далай)."]
[null,"Цунами\nTsunami","Усан доорх газар хөдлөлт, галт уулын дэлбэрэлт болон хөрсний гулгалтаас үүссэн цуврал давалгаа. Цунамигийн давалгаа далай дээгүүр маш хурдан тархдаг бөгөөд нам түвшний усруу орж ирэх үед удааширч давалгаа нь улам эгц болдог."]
[null,"Галт уулын идэвхжилт\nVolcanic Activity","Галт уулын дэлбэрэлт, үнс,  пирзластикийн материал, халуун уур  болон хий зэрэг нь задгай гадаргуу дээр гарах галт уулын үзэгдлүүд."]
[null,"Давалгаа\nWave Action ","Салхинаас үүдэн далай тэнгис, гол, нуур гэх мэт усны гадарга дээр давалгаа үүсэх. Давалгааны хэмжээ салхины хүч болон туулсан замаас хамаарна."]
[null,"Түймэр (ой, хээр)\nWildfire","Байгалийн орчинд ой, хээр, бут сөөг, тундра зэрэг газар хяналтгүй шатаж хүрээлэн буй орчны нөхцлөөс хамааран байгалд үүсэх түймэр."]
[null,"Салхи\nWind","Агаарын даралтын зөрүүгээс агаарын хэвтээ хөдөлгөөн үүсэхийг хэлнэ. Агаарын даралтын зөрүү өндөр байх тусам салхи мөн хүчтэй болно. Салхи нь өндөр даралтын орноос нам даралт руу чиглэнэ. "]
[null,"Цасан шуурга\nWinter Storm, Blizzard","Өвлийн саруудад нам даралттай үед их хэмжээний цас, хөлдөх шахам бороо, мөс ихээр хуримтлагдахыг хэлнэ. Цасан шуурга 3-4 цагхүртэл 56 км/ц-аас илүү хурдтай цасаар шуурахыг хэлнэ."]
[]
[]
["End",null,null,null,null,null,null,null,null,null,null,null,"End","End","End","End","End","End","End","End","End","End","End","End","End","End","End","End","End","End","End","End","End","End","End","End","End","End","End","End","End","End","End","End","End","End","End","End","End","End","End","End","End","End","End","End","End","End","End","End","End","End","End","End","End","End","End","End","End","End","End","End","End","End","End","End","End","End","End","End","End","End","End","End","End","End","End","End","End","End","End","End","End","End","End","End","End","End","End","End","End","End","End","End","End","End","End","End","End","End","End","End","End","End","End","End","End","End","End","End","End","End","End","End","End","End","End","End","End","End","End","End","End","End","End","End","End","End","End","End","End","End","End","End","End","End","End","End","End","End","End","End","End","End","End","End","End","End","End","End","End","End","End","End","End","End","End","End","End","End","End","End","End","End","End","End","End","End","End","End","End","End","End","End","End","End","End","End","End","End","End","End","End","End","End","End","End","End","End","End","End","End","End","End","End","End","End","End","End","End","End","End","End","End","End","End","End","End","End","End","End","End","End","End","End","End","End","End","End","End","End","End","End","End","End","End","End","End","End","End","End","End","End","End","End","End","End","End","End","End","End","End","End","End","End","End","End","End","End","End","End","End","End","End","End","End","End","End","End","End","End","End","End","End","End","End","End","End","End","End","End","End","End","End","End","End","End","End","End","End","End","End","End","End","End","End","End","End","End","End","End","End","End","End","End","End","End","End","End","End","End","End","End","End","End","End","End","End","End","End","End","End","End","End","End","End","End","End","End","End","End","End","End","End","End","End","End","End","End","End","End","End","End","End","End","End","End","End","End","End","End","End","End","End","End","End","End","End","End","End","End","End","End","End","End","End","End","End","End","End","End","End","End","End","End","End","End","End","End","End","End","End","End","End","End","End","End","End","End","End","End","End","End","End","End","End","End","End","End","End","End","End","End","End","End","End","End","End","End","End","End","End","End","End","End","End","End","End","End","End","End","End","End","End","End","End","End","End","End","End","End","End","End","End","End","End","End","End","End","End","End","End","End","End","End","End","End","End","End","End","End","End","End","End","End","End","End","End","End","End","End","End","End","End","End","End","End","End","End","End","End","End","End","End","End","End","End","End","End","End","End","End","End","End","End","End","End","End","End","End","End","End","End","End","End","End","End","End","End","End","End","End","End","End","End","End","End","End","End","End","End","End","End","End","End","End","End","End","End","End","End","End","End","End","End","End","End","End","End","End","End","End","End","End","End","End","End","End","End","End","End","End","End","End","End","End","End","End","End","End","End","End","End","End","End","End","End","End","End","End","End","End","End","End","End","End","End","End","End","End","End","End","End","End","End","End","End","End","End","End","End","End","End","End","End","End","End","End","End","End","End","End","End","End","End","End","End","End","End","End","End","End","End","End","End","End","End","End","End","End","End","End","End","End","End","End","End","End","End","End","End","End","End","End","End","End","End","End","End","End","End","End","End","End","End","End","End","End","End","End","End","End","End","End","End","End","End","End","End","End","End","End","End","End","End","End","End","End","End","End","End","End","End","End","End","End","End","End","End","End","End","End","End","End","End","End","End","End","End","End","End","End","End","End","End","End","End","End","End","End","End","End","End","End","End","End","End","End","End","End","End","End","End","End","End","End","End","End","End","End","End","End","End","End","End","End","End","End","End","End","End","End","End","End","End","End","End","End","End","End","End","End","End","End","End","End","End","End","End","End","End","End","End","End","End","End","End","End","End","End","End","End","End","End","End","End","End","End","End","End","End","End","End","End","End","End","End","End","End","End","End","End","End","End","End","End","End","End","End","End","End","End","End","End","End","End","End","End","End","End","End","End","End","End","End","End","End","End","End","End","End","End","End","End","End","End","End","End","End","End","End","End","End","End","End","End","End","End","End","End","End","End","End","End","End","End","End","End","End","End","End","End","End","End","End","End","End","End","End","End","End","End","End","End","End","End","End","End","End","End","End","End","End","End","End","End","End","End","End","End","End","End","End","End","End","End","End","End","End","End","End","End","End","End","End","End","End","End","End","End","End","End","End","End","End","End","End","End","End","End","End","End","End","End","End","End","End","End","End","End","End","End","End","End","End","End","End","End","End","End","End","End","End","End","End","End","End","End","End","End","End","End","End","End","End","End","End","End","End","End","End","End","End","End","End","End","End","End","End","End","End","End","End","End","End","End","End","End","End","End","End","End","End","End","End","End","End","End","End","End","End","End","End","End","End","End","End","End","End","End","End","End","End","End","End","End","End","End","End","End","End","End","End","End","End","End","End","End","End","End","End","End","End","End","End","End","End","End","End","End","End","End","End","End","End","End","End","End","End","End","End","End","End","End","End","End","End","End","End","End","End","End","End","End","End","End","End","End","End","End","End","End","End","End","End","End","End","End","End","End","End","End","End","End","End","End","End","End","End","End","End","End","End","End","End","End","End","End","End","End","End","End","End","End","End","End","End","End","End","End","End","End","End","End","End","End","End","End","End","End","End","End","End","End","End","End","End","End","End","End","End","End","End","End","End","End","End","End","End","End","End","End","End","End","End","End","End","End","End","End","End","End","End","End","End","End","End","End","End","End","End","End","End","End","End","End","End","End","End","End","End","End","End","End","End","End","End","End","End","End","End","End","End","End","End","End","End","End","End","End","End","End","End","End","End","End","End","End","End","End","End","End","End","End","End","End","End","End","End","End","End","End","End","End","End","End","End","End","End","End","End","End","End","End","End","End","End","End","End","End","End","End","End","End","End","End","End","End","End","End","End","End","End","End","End","End","End","End","End","End","End","End","End","End","End","End","End","End","End","End","End","End","End","End","End","End","End","End","End","End","End","End","End","End","End","End","End","End","End","End","End","End","End","End","End","End","End","End","End","End","End","End","End","End","End","End","End","End","End","End","End","End","End","End","End","End","End","End","End","End","End","End","End","End","End","End","End","End","End","End","End","End","End","End","End","End","End","End","End","End","End","End","End","End","End","End","End","End","End","End","End","End","End","End","End","End","End","End","End","End","End","End","End","End","End","End","End","End","End","End","End","End","End","End","End","End","End","End","End","End","End","End","End","End","End","End","End","End","End","End","End","End","End","End","End","End","End","End","End","End","End","End","End","End","End","End","End","End","End","End","End","End","End","End","End","End","End","End","End","End","End","End","End","End","End","End","End","End","End","End","End","End","End","End","End","End","End","End","End","End","End","End","End","End","End","End","End","End","End","End","End","End","End","End","End","End","End","End","End","End","End","End","End","End","End","End","End","End","End","End","End","End","End","End","End","End","End","End","End","End","End","End","End","End","End","End","End","End","End","End","End","End","End","End","End","End","End","End","End","End","End","End","End","End","End","End","End","End","End","End","End","End","End","End","End","End","End","End","End","End","End","End","End","End","End","End","End","End","End","End","End","End","End","End","End","End","End","End","End","End","End","End","End","End","End","End","End","End","End","End","End","End","End","End","End","End","End","End","End","End","End","End","End","End","End","End","End","End","End","End","End","End","End","End","End","End","End","End","End","End","End","End","End","End","End","End","End","End","End","End","End","End","End","End","End","End","End","End","End","End","End","End","End","End","End","End","End","End","End","End","End","End","End","End","End","End","End","End","End","End","End","End","End","End","End","End","End","End","End","End","End","End","End","End","End","End","End","End","End","End","End","End","End","End","End","End","End","End","End","End","End","End","End","End","End","End","End","End","End","End","End","End","End","End","End","End","End","End","End","End","End","End","End","End","End","End","End","End","End","End","End","End","End","End","End","End","End","End","End","End","End","End","End","End","End","End","End","End","End","End","End","End","End","End","End","End","End","End","End","End","End","End","End","End","End","End","End","End","End","End","End","End","End","End","End","End","End","End","End","End","End","End","End","End","End","End","End","End","End","End","End","End","End","End","End","End","End","End","End","End","End","End","End","End","End","End","End","End","End","End","End","End","End","End","End","End","End","End","End","End","End","End","End","End","End","End","End","End","End","End","End","End","End","End","End","End","End","End","End","End","End","End","End","End","End","End","End","End","End","End","End","End","End","End","End","End","End","End","End","End","End","End","End","End","End","End","End","End","End","End","End","End","End","End","End","End","End","End","End","End","End","End","End","End","End","End","End","End","End","End","End","End","End","End","End","End","End","End","End","End","End","End","End","End","End","End","End","End","End","End","End","End","End","End","End","End","End","End","End","End","End","End","End","End","End","End","End","End","End","End","End","End","End","End","End","End","End","End","End","End","End","End","End","End","End","End","End","End","End","End","End","End","End","End","End","End","End","End","End","End","End","End","End","End","End","End","End","End","End","End","End","End","End","End","End","End","End","End","End","End","End","End","End","End","End","End","End","End","End","End","End","End","End","End","End","End","End","End","End","End","End","End","End","End","End","End","End","End","End","End","End","End","End","End","End","End","End","End","End","End","End","End","End","End","End","End","End","End","End","End","End","End","End","End","End","End","End","End","End","End","End","End","End","End","End","End","End","End","End","End","End","End","End","End","End","End","End","End","End","End","End","End","End","End","End","End","End","End","End","End","End","End","End","End","End","End","End","End","End","End","End","End","End","End","End","End","End","End","End","End","End","End","End","End","End","End","End","End","End","End","End","End","End","End","End","End","End","End","End","End","End","End","End","End","End","End","End","End","End","End","End","End","End","End","End","End","End","End","End","End","End","End","End","End","End","End","End","End","End","End","End","End","End","End","End","End","End","End","End","End","End","End","End","End","End","End","End","End","End","End","End","End","End","End","End","End","End","End","End","End","End","End","End","End","End","End","End","End","End","End","End","End","End","End","End","End","End","End","End","End","End","End","End","End","End","End","End","End","End","End","End","End","End","End","End","End","End","End","End","End","End","End","End","End","End","End","End","End","End","End","End","End","End","End","End","End","End","End","End","End","End","End","End","End","End","End","End","End","End","End","End","End","End","End","End","End","End","End","End","End","End","End","End","End","End","End","End","End","End","End","End","End","End","End","End","End","End","End","End","End","End","End","End","End","End","End","End","End","End","End","End","End","End","End","End","End","End","End","End","End","End","End","End","End","End","End","End","End","End","End","End","End","End","End","End","End","End","End","End","End","End","End","End","End","End","End","End","End","End","End","End","End","End","End","End","End","End","End","End","End","End","End","End","End","End","End","End","End","End","End","End","End","End","End","End","End","End","End","End","End","End","End","End","End","End","End","End","End","End","End","End","End","End","End","End","End","End","End","End","End","End","End","End","End","End","End","End","End","End","End","End","End","End","End","End","End","End","End","End","End","End","End","End","End","End","End","End","End","End","End","End","End","End","End","End","End","End","End","End","End","End","End","End","End","End","End","End","End","End","End","End","End","End","End","End","End","End","End","End","End","End","End","End","End","End","End","End","End","End","End","End","End","End","End","End","End","End","End","End","End","End","End","End","End","End","End","End","End","End","End","End","End","End","End","End","End","End","End","End","End","End","End","End","End","End","End","End","End","End","End","End","End","End","End","End","End","End","End","End","End","End","End","End","End","End","End","End","End","End","End","End","End","End","End","End","End","End","End","End","End","End","End","End","End","End","End","End","End","End","End","End","End","End","End","End","End","End","End","End","End","End","End","End","End","End","End","End","End","End","End","End","End","End","End","End","End","End","End","End","End","End","End","End","End","End","End","End","End","End","End","End","End","End","End","End","End","End","End","End","End","End","End","End","End","End","End","End","End","End","End","End","End","End","End","End","End","End","End","End","End","End","End","End","End","End","End","End","End","End","End","End","End","End","End","End","End","End","End","End","End","End","End","End","End","End","End","End","End","End","End","End","End","End","End","End","End","End","End","End","End","End","End","End","End","End","End","End","End","End","End","End","End","End","End","End","End","End","End","End","End","End","End","End","End","End","End","End","End","End","End","End","End","End","End","End","End","End","End","End","End","End","End","End","End","End","End","End","End","End","End","End","End","End","End","End","End","End","End","End","End","End","End","End","End","End","End","End","End","End","End","End","End","End","End","End","End","End","End","End","End","End","End","End","End","End","End","End","End","End","End","End","End","End","End","End","End","End","End","End","End","End","End","End","End","End","End","End","End","End","End","End","End","End","End","End","End","End","End","End","End","End","End","End","End","End","End","End","End","End","End","End","End","End","End","End","End","End","End","End","End","End","End","End","End","End","End","End","End","End","End","End","End","End","End","End","End","End","End","End","End","End","End","End","End","End","End","End","End","End","End","End","End","End","End","End","End","End","End","End","End","End","End","End","End","End","End","End","End","End","End","End","End","End","End","End","End","End","End","End","End","End","End","End","End","End","End","End","End","End","End","End","End","End","End","End","End","End","End","End","End","End","End","End","End","End","End","End","End","End","End","End","End","End","End","End","End","End","End","End","End","End","End","End","End","End","End","End","End","End","End","End","End","End","End","End","End","End","End","End","End","End","End","End","End","End","End","End","End","End","End","End","End","End","End","End","End","End","End","End","End","End","End","End","End","End","End","End","End","End","End","End","End","End","End","End","End","End","End","End","End","End","End","End","End","End","End","End","End","End","End","End","End","End","End","End","End","End","End","End","End","End","End","End","End","End","End","End","End","End","End","End","End","End","End","End","End","End","End","End","End","End","End","End","End","End","End","End","End","End","End","End","End","End","End","End","End","End","End","End","End","End","End","End","End","End","End","End","End","End","End","End","End","End","End","End","End","End","End","End","End","End","End","End","End","End","End","End","End","End","End","End","End","End","End","End","End","End","End","End","End","End","End","End","End","End","End","End","End","End","End","End","End","End","End","End","End","End","End","End","End","End","End","End","End","End","End","End","End","End","End","End","End","End","End","End","End","End","End","End","End","End","End","End","End","End","End","End","End","End","End","End","End","End","End","End","End","End","End","End","End","End","End","End","End","End","End","End","End","End","End","End","End","End","End","End","End","End","End","End","End","End","End","End","End","End","End","End","End","End","End","End","End","End","End","End","End","End","End","End","End","End","End","End","End","End","End","End","End","End","End","End","End","End","End","End","End","End","End","End","End","End","End","End","End","End","End","End","End","End","End","End","End","End","End","End","End","End","End","End","End","End","End","End","End","End","End","End","End","End","End","End","End","End","End","End","End","End","End","End","End","End","End","End","End","End","End","End","End","End","End","End","End","End","End","End","End","End","End","End","End","End","End","End","End","End","End","End","End","End","End","End","End","End","End","End","End","End","End","End","End","End","End","End","End","End","End","End","End","End","End","End","End","End","End","End","End","End","End","End","End","End","End","End","End","End","End","End","End","End","End","End","End","End","End","End","End","End","End","End","End","End","End","End","End","End","End","End","End","End","End","End","End","End","End","End","End","End","End","End","End","End","End","End","End","End","End","End","End","End","End","End","End","End","End","End","End","End","End","End","End","End","End","End","End","End","End","End","End","End","End","End","End","End","End","End","End","End","End","End","End","End","End","End","End","End","End","End","End","End","End","End","End","End","End","End","End","End","End","End","End","End","End","End","End","End","End","End","End","End","End","End","End","End","End","End","End","End","End","End","End","End","End","End","End","End","End","End","End","End","End","End","End","End","End","End","End","End","End","End","End","End","End","End","End","End","End","End","End","End","End","End","End","End","End","End","End","End","End","End","End","End","End","End","End","End","End","End","End","End","End","End","End","End","End","End","End","End","End","End","End","End","End","End","End","End","End","End","End","End","End","End","End","End","End","End","End","End","End","End","End","End","End","End","End","End","End","End","End","End","End","End","End","End","End","End","End","End","End","End","End","End","End","End","End","End","End","End","End","End","End","End","End","End","End","End","End","End","End","End","End","End","End","End","End","End","End","End","End","End","End","End","End","End","End","End","End","End","End","End","End","End","End","End","End","End","End","End","End","End","End","End","End","End","End","End","End","End","End","End","End","End","End","End","End","End","End","End","End","End","End","End","End","End","End","End","End","End","End","End","End","End","End","End","End","End","End","End","End","End","End","End","End","End","End","End","End","End","End","End","End","End","End","End","End","End","End","End","End","End","End","End","End","End","End","End","End","End","End","End","End","End","End","End","End","End","End","End","End","End","End","End","End","End","End","End","End","End","End","End","End","End","End","End","End","End","End","End","End","End","End","End","End","End","End","End","End","End","End","End","End","End","End","End","End","End","End","End","End","End","End","End","End","End","End","End","End","End","End","End","End","End","End","End","End","End","End","End","End","End","End","End","End","End","End","End","End","End","End","End","End","End","End","End","End","End","End","End","End","End","End","End","End","End","End","End","End","End","End","End","End","End","End","End","End","End","End","End","End","End","End","End","End","End","End","End","End","End","End","End","End","End","End","End","End","End","End","End","End","End","End","End","End","End","End","End","End","End","End","End","End","End","End","End","End","End","End","End","End","End","End","End","End","End","End","End","End","End","End","End","End","End","End","End","End","End","End","End","End","End","End","End","End","End","End","End","End","End","End","End","End","End","End","End","End","End","End","End","End","End","End","End","End","End","End","End","End","End","End","End","End","End","End","End","End","End","End","End","End","End","End","End","End","End","End","End","End","End","End","End","End","End","End","End","End","End","End","End","End","End","End","End","End","End","End","End","End","End","End","End","End","End","End","End","End","End","End","End","End","End","End","End","End","End","End","End","End","End","End","End","End","End","End","End","End","End","End","End","End","End","End","End","End","End","End","End","End","End","End","End","End","End","End","End","End","End","End","End","End","End","End","End","End","End","End","End","End","End","End","End","End","End","End","End","End","End","End","End","End","End","End","End","End","End","End","End","End","End","End","End","End","End","End","End","End","End","End","End","End","End","End","End","End","End","End","End","End","End","End","End","End","End","End","End","End","End","End","End","End","End","End","End","End","End","End","End","End","End","End","End","End","End","End","End","End","End","End","End","End","End","End","End","End","End","End","End","End","End","End","End","End","End","End","End","End","End","End","End","End","End","End","End","End","End","End","End","End","End","End","End","End","End","End","End","End","End","End","End","End","End","End","End","End","End","End","End","End","End","End","End","End","End","End","End","End","End","End","End","End","End","End","End","End","End","End","End","End","End","End","End","End","End","End","End","End","End","End","End","End","End","End","End","End","End","End","End","End","End","End","End","End","End","End","End","End","End","End","End","End","End","End","End","End","End","End","End","End","End","End","End","End","End","End","End","End","End","End","End","End","End","End","End","End","End","End","End","End","End","End","End","End","End","End","End","End","End","End","End","End","End","End","End","End","End","End","End","End","End","End","End","End","End","End","End","End","End","End","End","End","End","End","End","End","End","End","End","End","End","End","End","End","End","End","End","End","End","End","End","End","End","End","End","End","End","End","End","End","End","End","End","End","End","End","End","End","End","End","End","End","End","End","End","End","End","End","End","End","End","End","End","End","End","End","End","End","End","End","End","End","End","End","End","End","End","End","End","End","End","End","End","End","End","End","End","End","End","End","End","End","End","End","End","End","End","End","End","End","End","End","End","End","End","End","End","End","End","End","End","End","End","End","End","End","End","End","End","End","End","End","End","End","End","End","End","End","End","End","End","End","End","End","End","End","End","End","End","End","End","End","End","End","End","End","End","End","End","End","End","End","End","End","End","End","End","End","End","End","End","End","End","End","End","End","End","End","End","End","End","End","End","End","End","End","End","End","End","End","End","End","End","End","End","End","End","End","End","End","End","End","End","End","End","End","End","End","End","End","End","End","End","End","End","End","End","End","End","End","End","End","End","End","End","End","End","End","End","End","End","End","End","End","End","End","End","End","End","End","End","End","End","End","End","End","End","End","End","End","End","End","End","End","End","End","End","End","End","End","End","End","End","End","End","End","End","End","End","End","End","End","End","End","End","End","End","End","End","End","End","End","End","End","End","End","End","End","End","End","End","End","End","End","End","End","End","End","End","End","End","End","End","End","End","End","End","End","End","End","End","End","End","End","End","End","End","End","End","End","End","End","End","End","End","End","End","End","End","End","End","End","End","End","End","End","End","End","End","End","End","End","End","End","End","End","End","End","End","End","End","End","End","End","End","End","End","End","End","End","End","End","End","End","End","End","End","End","End","End","End","End","End","End","End","End","End","End","End","End","End","End","End","End","End","End","End","End","End","End","End","End","End","End","End","End","End","End","End","End","End","End","End","End","End","End","End","End","End","End","End","End","End","End","End","End","End","End","End","End","End","End","End","End","End","End","End","End","End","End","End","End","End","End","End","End","End","End","End","End","End","End","End","End","End","End","End","End","End","End","End","End","End","End","End","End","End","End","End","End","End","End","End","End","End","End","End","End","End","End","End","End","End","End","End","End","End","End","End","End","End","End","End","End","End","End","End","End","End","End","End","End","End","End","End","End","End","End","End","End","End","End","End","End","End","End","End","End","End","End","End","End","End","End","End","End","End","End","End","End","End","End","End","End","End","End","End","End","End","End","End","End","End","End","End","End","End","End","End","End","End","End","End","End","End","End","End","End","End","End","End","End","End","End","End","End","End","End","End","End","End","End","End","End","End","End","End","End","End","End","End","End","End","End","End","End","End","End","End","End","End","End","End","End","End","End","End","End","End","End","End","End","End","End","End","End","End","End","End","End","End","End","End","End","End","End","End","End","End","End","End","End","End","End","End","End","End","End","End","End","End","End","End","End","End","End","End","End","End","End","End","End","End","End","End","End","End","End","End","End","End","End","End","End","End","End","End","End","End","End","End","End","End","End","End","End","End","End","End","End","End","End","End","End","End","End","End","End","End","End","End","End","End","End","End","End","End","End","End","End","End","End","End","End","End","End","End","End","End","End","End","End","End","End","End","End","End","End","End","End","End","End","End","End","End","End","End","End","End","End","End","End","End","End","End","End","End","End","End","End","End","End","End","End","End","End","End","End","End","End","End","End","End","End","End","End","End","End","End","End","End","End","End","End","End","End","End","End","End","End","End","End","End","End","End","End","End","End","End","End","End","End","End","End","End","End","End","End","End","End","End","End","End","End","End","End","End","End","End","End","End","End","End","End","End","End","End","End","End","End","End","End","End","End","End","End","End","End","End","End","End","End","End","End","End","End","End","End","End","End","End","End","End","End","End","End","End","End","End","End","End","End","End","End","End","End","End","End","End","End","End","End","End","End","End","End","End","End","End","End","End","End","End","End","End","End","End","End","End","End","End","End","End","End","End","End","End","End","End","End","End","End","End","End","End","End","End","End","End","End","End","End","End","End","End","End","End","End","End","End","End","End","End","End","End","End","End","End","End","End","End","End","End","End","End","End","End","End","End","End","End","End","End","End","End","End","End","End","End","End","End","End","End","End","End","End","End","End","End","End","End","End","End","End","End","End","End","End","End","End","End","End","End","End","End","End","End","End","End","End","End","End","End","End","End","End","End","End","End","End","End","End","End","End","End","End","End","End","End","End","End","End","End","End","End","End","End","End","End","End","End","End","End","End","End","End","End","End","End","End","End","End","End","End","End","End","End","End","End","End","End","End","End","End","End","End","End","End","End","End","End","End","End","End","End","End","End","End","End","End","End","End","End","End","End","End","End","End","End","End","End","End","End","End","End","End","End","End","End","End","End","End","End","End","End","End","End","End","End","End","End","End","End","End","End","End","End","End","End","End","End","End","End","End","End","End","End","End","End","End","End","End","End","End","End","End","End","End","End","End","End","End","End","End","End","End","End","End","End","End","End","End","End","End","End","End","End","End","End","End","End","End","End","End","End","End","End","End","End","End","End","End","End","End","End","End","End","End","End","End","End","End","End","End","End","End","End","End","End","End","End","End","End","End","End","End","End","End","End","End","End","End","End","End","End","End","End","End","End","End","End","End","End","End","End","End","End","End","End","End","End","End","End","End","End","End","End","End","End","End","End","End","End","End","End","End","End","End","End","End","End","End","End","End","End","End","End","End","End","End","End","End","End","End","End","End","End","End","End","End","End","End","End","End","End","End","End","End","End","End","End","End","End","End","End","End","End","End","End","End","End","End","End","End","End","End","End","End","End","End","End","End","End","End","End","End","End","End","End","End","End","End","End","End","End","End","End","End","End","End","End","End","End","End","End","End","End","End","End","End","End","End","End","End","End","End","End","End","End","End","End","End","End","End","End","End","End","End","End","End","End","End","End","End","End","End","End","End","End","End","End","End","End","End","End","End","End","End","End","End","End","End","End","End","End","End","End","End","End","End","End","End","End","End","End","End","End","End","End","End","End","End","End","End","End","End","End","End","End","End","End","End","End","End","End","End","End","End","End","End","End","End","End","End","End","End","End","End","End","End","End","End","End","End","End","End","End","End","End","End","End","End","End","End","End","End","End","End","End","End","End","End","End","End","End","End","End","End","End","End","End","End","End","End","End","End","End","End","End","End","End","End","End","End","End","End","End","End","End","End","End","End","End","End","End","End","End","End","End","End","End","End","End","End","End","End","End","End","End","End","End","End","End","End","End","End","End","End","End","End","End","End","End","End","End","End","End","End","End","End","End","End","End","End","End","End","End","End","End","End","End","End","End","End","End","End","End","End","End","End","End","End","End","End","End","End","End","End","End","End","End","End","End","End","End","End","End","End","End","End","End","End","End","End","End","End","End","End","End","End","End","End","End","End","End","End","End","End","End","End","End","End","End","End","End","End","End","End","End","End","End","End","End","End","End","End","End","End","End","End","End","End","End","End","End","End","End","End","End","End","End","End","End","End","End","End","End","End","End","End","End","End","End","End","End","End","End","End","End","End","End","End","End","End","End","End","End","End","End","End","End","End","End","End","End","End","End","End","End","End","End","End","End","End","End","End","End","End","End","End","End","End","End","End","End","End","End","End","End","End","End","End","End","End","End","End","End","End","End","End","End","End","End","End","End","End","End","End","End","End","End","End","End","End","End","End","End","End","End","End","End","End","End","End","End","End","End","End","End","End","End","End","End","End","End","End","End","End","End","End","End","End","End","End","End","End","End","End","End","End","End","End","End","End","End","End","End","End","End","End","End","End","End","End","End","End","End","End","End","End","End","End","End","End","End","End","End","End","End","End","End","End","End","End","End","End","End","End","End","End","End","End","End","End","End","End","End","End","End","End","End","End","End","End","End","End","End","End","End","End","End","End","End","End","End","End","End","End","End","End","End","End","End","End","End","End","End","End","End","End","End","End","End","End","End","End","End","End","End","End","End","End","End","End","End","End","End","End","End","End","End","End","End","End","End","End","End","End","End","End","End","End","End","End","End","End","End","End","End","End","End","End","End","End","End","End","End","End","End","End","End","End","End","End","End","End","End","End","End","End","End","End","End","End","End","End","End","End","End","End","End","End","End","End","End","End","End","End","End","End","End","End","End","End","End","End","End","End","End","End","End","End","End","End","End","End","End","End","End","End","End","End","End","End","End","End","End","End","End","End","End","End","End","End","End","End","End","End","End","End","End","End","End","End","End","End","End","End","End","End","End","End","End","End","End","End","End","End","End","End","End","End","End","End","End","End","End","End","End","End","End","End","End","End","End","End","End","End","End","End","End","End","End","End","End","End","End","End","End","End","End","End","End","End","End","End","End","End","End","End","End","End","End","End","End","End","End","End","End","End","End","End","End","End","End","End","End","End","End","End","End","End","End","End","End","End","End","End","End","End","End","End","End","End","End","End","End","End","End","End","End","End","End","End","End","End","End","End","End","End","End","End","End","End","End","End","End","End","End","End","End","End","End","End","End","End","End","End","End","End","End","End","End","End","End","End","End","End","End","End","End","End","End","End","End","End","End","End","End","End","End","End","End","End","End","End","End","End","End","End","End","End","End","End","End","End","End","End","End","End","End","End","End","End","End","End","End","End","End","End","End","End","End","End","End","End","End","End","End","End","End","End","End","End","End","End","End","End","End","End","End","End","End","End","End","End","End","End","End","End","End","End","End","End","End","End","End","End","End","End","End","End","End","End","End","End","End","End","End","End","End","End","End","End","End","End","End","End","End","End","End","End","End","End","End","End","End","End","End","End","End","End","End","End","End","End","End","End","End","End","End","End","End","End","End","End","End","End","End","End","End","End","End","End","End","End","End","End","End","End","End","End","End","End","End","End","End","End","End","End","End","End","End","End","End","End","End","End","End","End","End","End","End","End","End","End","End","End","End","End","End","End","End","End","End","End","End","End","End","End","End","End","End","End","End","End","End","End","End","End","End","End","End","End","End","End","End","End","End","End","End","End","End","End","End","End","End","End","End","End","End","End","End","End","End","End","End","End","End","End","End","End","End","End","End","End","End","End","End","End","End","End","End","End","End","End","End","End","End","End","End","End","End","End","End","End","End","End","End","End","End","End","End","End","End","End","End","End","End","End","End","End","End","End","End","End","End","End","End","End","End","End","End","End","End","End","End","End","End","End","End","End","End","End","End","End","End","End","End","End","End","End","End","End","End","End","End","End","End","End","End","End","End","End","End","End","End","End","End","End","End","End","End","End","End","End","End","End","End","End","End","End","End","End","End","End","End","End","End","End","End","End","End","End","End","End","End","End","End","End","End","End","End","End","End","End","End","End","End","End","End","End","End","End","End","End","End","End","End","End","End","End","End","End","End","End","End","End","End","End","End","End","End","End","End","End","End","End","End","End","End","End","End","End","End","End","End","End","End","End","End","End","End","End","End","End","End","End","End","End","End","End","End","End","End","End","End","End","End","End","End","End","End","End","End","End","End","End","End","End","End","End","End","End","End","End","End","End","End","End","End","End","End","End","End","End","End","End","End","End","End","End","End","End","End","End","End","End","End","End","End","End","End","End","End","End","End","End","End","End","End","End","End","End","End","End","End","End","End","End","End","End","End","End","End","End","End","End","End","End","End","End","End","End","End","End","End","End","End","End","End","End","End","End","End","End","End","End","End","End","End","End","End","End","End","End","End","End","End","End","End","End","End","End","End","End","End","End","End","End","End","End","End","End","End","End","End","End","End","End","End","End","End","End","End","End","End","End","End","End","End","End","End","End","End","End","End","End","End","End","End","End","End","End","End","End","End","End","End","End","End","End","End","End","End","End","End","End","End","End","End","End","End","End","End","End","End","End","End","End","End","End","End","End","End","End","End","End","End","End","End","End","End","End","End","End","End","End","End","End","End","End","End","End","End","End","End","End","End","End","End","End","End","End","End","End","End","End","End","End","End","End","End","End","End","End","End","End","End","End","End","End","End","End","End","End","End","End","End","End","End","End","End","End","End","End","End","End","End","End","End","End","End","End","End","End","End","End","End","End","End","End","End","End","End","End","End","End","End","End","End","End","End","End","End","End","End","End","End","End","End","End","End","End","End","End","End","End","End","End","End","End","End","End","End","End","End","End","End","End","End","End","End","End","End","End","End","End","End","End","End","End","End","End","End","End","End","End","End","End","End","End","End","End","End","End","End","End","End","End","End","End","End","End","End","End","End","End","End","End","End","End","End","End","End","End","End","End","End","End","End","End","End","End","End","End","End","End","End","End","End","End","End","End","End","End","End","End","End","End","End","End","End","End","End","End","End","End","End","End","End","End","End","End","End","End","End","End","End","End","End","End","End","End","End","End","End","End","End","End","End","End","End","End","End","End","End","End","End","End","End","End","End","End","End","End","End","End","End","End","End","End","End","End","End","End","End","End","End","End","End","End","End","End","End","End","End","End","End","End","End","End","End","End","End","End","End","End","End","End","End","End","End","End","End","End","End","End","End","End","End","End","End","End","End","End","End","End","End","End","End","End","End","End","End","End","End","End","End","End","End","End","End","End","End","End","End","End","End","End","End","End","End","End","End","End","End","End","End","End","End","End","End","End","End","End","End","End","End","End","End","End","End","End","End","End","End","End","End","End","End","End","End","End","End","End","End","End","End","End","End","End","End","End","End","End","End","End","End","End","End","End","End","End","End","End","End","End","End","End","End","End","End","End","End","End","End","End","End","End","End","End","End","End","End","End","End","End","End","End","End","End","End","End","End","End","End","End","End","End","End","End","End","End","End","End","End","End","End","End","End","End","End","End","End","End","End","End","End","End","End","End","End","End","End","End","End","End","End","End","End","End","End","End","End","End","End","End","End","End","End","End","End","End","End","End","End","End","End","End","End","End","End","End","End","End","End","End","End","End","End","End","End","End","End","End","End","End","End","End","End","End","End","End","End","End","End","End","End","End","End","End","End","End","End","End","End","End","End","End","End","End","End","End","End","End","End","End","End","End","End","End","End","End","End","End","End","End","End","End","End","End","End","End","End","End","End","End","End","End","End","End","End","End","End","End","End","End","End","End","End","End","End","End","End","End","End","End","End","End","End","End","End","End","End","End","End","End","End","End","End","End","End","End","End","End","End","End","End","End","End","End","End","End","End","End","End","End","End","End","End","End","End","End","End","End","End","End","End","End","End","End","End","End","End","End","End","End","End","End","End","End","End","End","End","End","End","End","End","End","End","End","End","End","End","End","End","End","End","End","End","End","End","End","End","End","End","End","End","End","End","End","End","End","End","End","End","End","End","End","End","End","End","End","End","End","End","End","End","End","End","End","End","End","End","End","End","End","End","End","End","End","End","End","End","End","End","End","End","End","End","End","End","End","End","End","End","End","End","End","End","End","End","End","End","End","End","End","End","End","End","End","End","End","End","End","End","End","End","End","End","End","End","End","End","End","End","End","End","End","End","End","End","End","End","End","End","End","End","End","End","End","End","End","End","End","End","End","End","End","End","End","End","End","End","End","End","End","End","End","End","End","End","End","End","End","End","End","End","End","End","End","End","End","End","End","End","End","End","End","End","End","End","End","End","End","End","End","End","End","End","End","End","End","End","End","End","End","End","End","End","End","End","End","End","End","End","End","End","End","End","End","End","End","End","End","End","End","End","End","End","End","End","End","End","End","End","End","End","End","End","End","End","End","End","End","End","End","End","End","End","End","End","End","End","End","End","End","End","End","End","End","End","End","End","End","End","End","End","End","End","End","End","End","End","End","End","End","End","End","End","End","End","End","End","End","End","End","End","End","End","End","End","End","End","End","End","End","End","End","End","End","End","End","End","End","End","End","End","End","End","End","End","End","End","End","End","End","End","End","End","End","End","End","End","End","End","End","End","End","End","End","End","End","End","End","End","End","End","End","End","End","End","End","End","End","End","End","End","End","End","End","End","End","End","End","End","End","End","End","End","End","End","End","End","End","End","End","End","End","End","End","End","End","End","End","End","End","End","End","End","End","End","End","End","End","End","End","End","End","End","End","End","End","End","End","End","End","End","End","End","End","End","End","End","End","End","End","End","End","End","End","End","End","End","End","End","End","End","End","End","End","End","End","End","End","End","End","End","End","End","End","End","End","End","End","End","End","End","End","End","End","End","End","End","End","End","End","End","End","End","End","End","End","End","End","End","End","End","End","End","End","End","End","End","End","End","End","End","End","End","End","End","End","End","End","End","End","End","End","End","End","End","End","End","End","End","End","End","End","End","End","End","End","End","End","End","End","End","End","End","End","End","End","End","End","End","End","End","End","End","End","End","End","End","End","End","End","End","End","End","End","End","End","End","End","End","End","End","End","End","End","End","End","End","End","End","End","End","End","End","End","End","End","End","End","End","End","End","End","End","End","End","End","End","End","End","End","End","End","End","End","End","End","End","End","End","End","End","End","End","End","End","End","End","End","End","End","End","End","End","End","End","End","End","End","End","End","End","End","End","End","End","End","End","End","End","End","End","End","End","End","End","End","End","End","End","End","End","End","End","End","End","End","End","End","End","End","End","End","End","End","End","End","End","End","End","End","End","End","End","End","End","End","End","End","End","End","End","End","End","End","End","End","End","End","End","End","End","End","End","End","End","End","End","End","End","End","End","End","End","End","End","End","End","End","End","End","End","End","End","End","End","End","End","End","End","End","End","End","End","End","End","End","End","End","End","End","End","End","End","End","End","End","End","End","End","End","End","End","End","End","End","End","End","End","End","End","End","End","End","End","End","End","End","End","End","End","End","End","End","End","End","End","End","End","End","End","End","End","End","End","End","End","End","End","End","End","End","End","End","End","End","End","End","End","End","End","End","End","End","End","End","End","End","End","End","End","End","End","End","End","End","End","End","End","End","End","End","End","End","End","End","End","End","End","End","End","End","End","End","End","End","End","End","End","End","End","End","End","End","End","End","End","End","End","End","End","End","End","End","End","End","End","End","End","End","End","End","End","End","End","End","End","End","End","End","End","End","End","End","End","End","End","End","End","End","End","End","End","End","End","End","End","End","End","End","End","End","End","End","End","End","End","End","End","End","End","End","End","End","End","End","End","End","End","End","End","End","End","End","End","End","End","End","End","End","End","End","End","End","End","End","End","End","End","End","End","End","End","End","End","End","End","End","End","End","End","End","End","End","End","End","End","End","End","End","End","End","End","End","End","End","End","End","End","End","End","End","End","End","End","End","End","End","End","End","End","End","End","End","End","End","End","End","End","End","End","End","End","End","End","End","End","End","End","End","End","End","End","End","End","End","End","End","End","End","End","End","End","End","End","End","End","End","End","End","End","End","End","End","End","End","End","End","End","End","End","End","End","End","End","End","End","End","End","End","End","End","End","End","End","End","End","End","End","End","End","End","End","End","End","End","End","End","End","End","End","End","End","End","End","End","End","End","End","End","End","End","End","End","End","End","End","End","End","End","End","End","End","End","End","End","End","End","End","End","End","End","End","End","End","End","End","End","End","End","End","End","End","End","End","End","End","End","End","End","End","End","End","End","End","End","End","End","End","End","End","End","End","End","End","End","End","End","End","End","End","End","End","End","End","End","End","End","End","End","End","End","End","End","End","End","End","End","End","End","End","End","End","End","End","End","End","End","End","End","End","End","End","End","End","End","End","End","End","End","End","End","End","End","End","End","End","End","End","End","End","End","End","End","End","End","End","End","End","End","End","End","End","End","End","End","End","End","End","End","End","End","End","End","End","End","End","End","End","End","End","End","End","End","End","End","End","End","End","End","End","End","End","End","End","End","End","End","End","End","End","End","End","End","End","End","End","End","End","End","End","End","End","End","End","End","End","End","End","End","End","End","End","End","End","End","End","End","End","End","End","End","End","End","End","End","End","End","End","End","End","End","End","End","End","End","End","End","End","End","End","End","End","End","End","End","End","End","End","End","End","End","End","End","End","End","End","End","End","End","End","End","End","End","End","End","End","End","End","End","End","End","End","End","End","End","End","End","End","End","End","End","End","End","End","End","End","End","End","End","End","End","End","End","End","End","End","End","End","End","End","End","End","End","End","End","End","End","End","End","End","End","End","End","End","End","End","End","End","End","End","End","End","End","End","End","End","End","End","End","End","End","End","End","End","End","End","End","End","End","End","End","End","End","End","End","End","End","End","End","End","End","End","End","End","End","End","End","End","End","End","End","End","End","End","End","End","End","End","End","End","End","End","End","End","End","End","End","End","End","End","End","End","End","End","End","End","End","End","End","End","End","End","End","End","End","End","End","End","End","End","End","End","End","End","End","End","End","End","End","End","End","End","End","End","End","End","End","End","End","End","End","End","End","End","End","End","End","End","End","End","End","End","End","End","End","End","End","End","End","End","End","End","End","End","End","End","End","End","End","End","End","End","End","End","End","End","End","End","End","End","End","End","End","End","End","End","End","End","End","End","End","End","End","End","End","End","End","End","End","End","End","End","End","End","End","End","End","End","End","End","End","End","End","End","End","End","End","End","End","End","End","End","End","End","End","End","End","End","End","End","End","End","End","End","End","End","End","End","End","End","End","End","End","End","End","End","End","End","End","End","End","End","End","End","End","End","End","End","End","End","End","End","End","End","End","End","End","End","End","End","End","End","End","End","End","End","End","End","End","End","End","End","End","End","End","End","End","End","End","End","End","End","End","End","End","End","End","End","End","End","End","End","End","End","End","End","End","End","End","End","End","End","End","End","End","End","End","End","End","End","End","End","End","End","End","End","End","End","End","End","End","End","End","End","End","End","End","End","End","End","End","End","End","End","End","End","End","End","End","End","End","End","End","End","End","End","End","End","End","End","End","End","End","End","End","End","End","End","End","End","End","End","End","End","End","End","End","End","End","End","End","End","End","End","End","End","End","End","End","End","End","End","End","End","End","End","End","End","End","End","End","End","End","End","End","End","End","End","End","End","End","End","End","End","End","End","End","End","End","End","End","End","End","End","End","End","End","End","End","End","End","End","End","End","End","End","End","End","End","End","End","End","End","End","End","End","End","End","End","End","End","End","End","End","End","End","End","End","End","End","End","End","End","End","End","End","End","End","End","End","End","End","End","End","End","End","End","End","End","End","End","End","End","End","End","End","End","End","End","End","End","End","End","End","End","End","End","End","End","End","End","End","End","End","End","End","End","End","End","End","End","End","End","End","End","End","End","End","End","End","End","End","End","End","End","End","End","End","End","End","End","End","End","End","End","End","End","End","End","End","End","End","End","End","End","End","End","End","End","End","End","End","End","End","End","End","End","End","End","End","End","End","End","End","End","End","End","End","End","End","End","End","End","End","End","End","End","End","End","End","End","End","End","End","End","End","End","End","End","End","End","End","End","End","End","End","End","End","End","End","End","End","End","End","End","End","End","End","End","End","End","End","End","End","End","End","End","End","End","End","End","End","End","End","End","End","End","End","End","End","End","End","End","End","End","End","End","End","End","End","End","End","End","End","End","End","End","End","End","End","End","End","End","End","End","End","End","End","End","End","End","End","End","End","End","End","End","End","End","End","End","End","End","End","End","End","End","End","End","End","End","End","End","End","End","End","End","End","End","End","End","End","End","End","End","End","End","End","End","End","End","End","End","End","End","End","End","End","End","End","End","End","End","End","End","End","End","End","End","End","End","End","End","End","End","End","End","End","End","End","End","End","End","End","End","End","End","End","End","End","End","End","End","End","End","End","End","End","End","End","End","End","End","End","End","End","End","End","End","End","End","End","End","End","End","End","End","End","End","End","End","End","End","End","End","End","End","End","End","End","End","End","End","End","End","End","End","End","End","End","End","End","End","End","End","End","End","End","End","End","End","End","End","End","End","End","End","End","End","End","End","End","End","End","End","End","End","End","End","End","End","End","End","End","End","End","End","End","End","End","End","End","End","End","End","End","End","End","End","End","End","End","End","End","End","End","End","End","End","End","End","End","End","End","End","End","End","End","End","End","End","End","End","End","End","End","End","End","End","End","End","End","End","End","End","End","End","End","End","End","End","End","End","End","End","End","End","End","End","End","End","End","End","End","End","End","End","End","End","End","End","End","End","End","End","End","End","End","End","End","End","End","End","End","End","End","End","End","End","End","End","End","End","End","End","End","End","End","End","End","End","End","End","End","End","End","End","End","End","End","End","End","End","End","End","End","End","End","End","End","End","End","End","End","End","End","End","End","End","End","End","End","End","End","End","End","End","End","End","End","End","End","End","End","End","End","End","End","End","End","End","End","End","End","End","End","End","End","End","End","End","End","End","End","End","End","End","End","End","End","End","End","End","End","End","End","End","End","End","End","End","End","End","End","End","End","End","End","End","End","End","End","End","End","End","End","End","End","End","End","End","End","End","End","End","End","End","End","End","End","End","End","End","End","End","End","End","End","End","End","End","End","End","End","End","End","End","End","End","End","End","End","End","End","End","End","End","End","End","End","End","End","End","End","End","End","End","End","End","End","End","End","End","End","End","End","End","End","End","End","End","End","End","End","End","End","End","End","End","End","End","End","End","End","End","End","End","End","End","End","End","End","End","End","End","End","End","End","End","End","End","End","End","End","End","End","End","End","End","End","End","End","End","End","End","End","End","End","End","End","End","End","End","End","End","End","End","End","End","End","End","End","End","End","End","End","End","End","End","End","End","End","End","End","End","End","End","End","End","End","End","End","End","End","End","End","End","End","End","End","End","End","End","End","End","End","End","End","End","End","End","End","End","End","End","End","End","End","End","End","End","End","End","End","End","End","End","End","End","End","End","End","End","End","End","End","End","End","End","End","End","End","End","End","End","End","End","End","End","End","End","End","End","End","End","End","End","End","End","End","End","End","End","End","End","End","End","End","End","End","End","End","End","End","End","End","End","End","End","End","End","End","End","End","End","End","End","End","End","End","End","End","End","End","End","End","End","End","End","End","End","End","End","End","End","End","End","End","End","End","End","End","End","End","End","End","End","End","End","End","End","End","End","End","End","End","End","End","End","End","End","End","End","End","End","End","End","End","End","End","End","End","End","End","End","End","End","End","End","End","End","End","End","End","End","End","End","End","End","End","End","End","End","End","End","End","End","End","End","End","End","End","End","End","End","End","End","End","End","End","End","End","End","End","End","End","End","End","End","End","End","End","End","End","End","End","End","End","End","End","End","End","End","End","End","End","End","End","End","End","End","End","End","End","End","End","End","End","End","End","End","End","End","End","End","End","End","End","End","End","End","End","End","End","End","End","End","End","End","End","End","End","End","End","End","End","End","End","End","End","End","End","End","End","End","End","End","End","End","End","End","End","End","End","End","End","End","End","End","End","End","End","End","End","End","End","End","End","End","End","End","End","End","End","End","End","End","End","End","End","End","End","End","End","End","End","End","End","End","End","End","End","End","End","End","End","End","End","End","End","End","End","End","End","End","End","End","End","End","End","End","End","End","End","End","End","End","End","End","End","End","End","End","End","End","End","End","End","End","End","End","End","End","End","End","End","End","End","End","End","End","End","End","End","End","End","End","End","End","End","End","End","End","End","End","End","End","End","End","End","End","End","End","End","End","End","End","End","End","End","End","End","End","End","End","End","End","End","End","End","End","End","End","End","End","End","End","End","End","End","End","End","End","End","End","End","End","End","End","End","End","End","End","End","End","End","End","End","End","End","End","End","End","End","End","End","End","End","End","End","End","End","End","End","End","End","End","End","End","End","End","End","End","End","End","End","End","End","End","End","End","End","End","End","End","End","End","End","End","End","End","End","End","End","End","End","End","End","End","End","End","End","End","End","End","End","End","End","End","End","End","End","End","End","End","End","End","End","End","End","End","End","End","End","End","End","End","End","End","End","End","End","End","End","End","End","End","End","End","End","End","End","End","End","End","End","End","End","End","End","End","End","End","End","End","End","End","End","End","End","End","End","End","End","End","End","End","End","End","End","End","End","End","End","End","End","End","End","End","End","End","End","End","End","End","End","End","End","End","End","End","End","End","End","End","End","End","End","End","End","End","End","End","End","End","End","End","End","End","End","End","End","End","End","End","End","End","End","End","End","End","End","End","End","End","End","End","End","End","End","End","End","End","End","End","End","End","End","End","End","End","End","End","End","End","End","End","End","End","End","End","End","End","End","End","End","End","End","End","End","End","End","End","End","End","End","End","End","End","End","End","End","End","End","End","End","End","End","End","End","End","End","End","End","End","End","End","End","End","End","End","End","End","End","End","End","End","End","End","End","End","End","End","End","End","End","End","End","End","End","End","End","End","End","End","End","End","End","End","End","End","End","End","End","End","End","End","End","End","End","End","End","End","End","End","End","End","End","End","End","End","End","End","End","End","End","End","End","End","End","End","End","End","End","End","End","End","End","End","End","End","End","End","End","End","End","End","End","End","End","End","End","End","End","End","End","End","End","End","End","End","End","End","End","End","End","End","End","End","End","End","End","End","End","End","End","End","End","End","End","End","End","End","End","End","End","End","End","End","End","End","End","End","End","End","End","End","End","End","End","End","End","End","End","End","End","End","End","End","End","End","End","End","End","End","End","End","End","End","End","End","End","End","End","End","End","End","End","End","End","End","End","End","End","End","End","End","End","End","End","End","End","End","End","End","End","End","End","End","End","End","End","End","End","End","End","End","End","End","End","End","End","End","End","End","End","End","End","End","End","End","End","End","End","End","End","End","End","End","End","End","End","End","End","End","End","End","End","End","End","End","End","End","End","End","End","End","End","End","End","End","End","End","End","End","End","End","End","End","End","End","End","End","End","End","End","End","End","End","End","End","End","End","End","End","End","End","End","End","End","End","End","End","End","End","End","End","End","End","End","End","End","End","End","End","End","End","End","End","End","End","End","End","End","End","End","End","End","End","End","End","End","End","End","End","End","End","End","End","End","End","End","End","End","End","End","End","End","End","End","End","End","End","End","End","End","End","End","End","End","End","End","End","End","End","End","End","End","End","End","End","End","End","End","End","End","End","End","End","End","End","End","End","End","End","End","End","End","End","End","End","End","End","End","End","End","End","End","End","End","End","End","End","End","End","End","End","End","End","End","End","End","End","End","End","End","End","End","End","End","End","End","End","End","End","End","End","End","End","End","End","End","End","End","End","End","End","End","End","End","End","End","End","End","End","End","End","End","End","End","End","End","End","End","End","End","End","End","End","End","End","End","End","End","End","End","End","End","End","End","End","End","End","End","End","End","End","End","End","End","End","End","End","End","End","End","End","End","End","End","End","End","End","End","End","End","End","End","End","End","End","End","End","End","End","End","End","End","End","End","End","End","End","End","End","End","End","End","End","End","End","End","End","End","End","End","End","End","End","End","End","End","End","End","End","End","End","End","End","End","End","End","End","End","End","End","End","End","End","End","End","End","End","End","End","End","End","End","End","End","End","End","End","End","End","End","End","End","End","End","End","End","End","End","End","End","End","End","End","End","End","End","End","End","End","End","End","End","End","End","End","End","End","End","End","End","End","End","End","End","End","End","End","End","End","End","End","End","End","End","End","End","End","End","End","End","End","End","End","End","End","End","End","End","End","End","End","End","End","End","End","End","End","End","End","End","End","End","End","End","End","End","End","End","End","End","End","End","End","End","End","End","End","End","End","End","End","End","End","End","End","End","End","End","End","End","End","End","End","End","End","End","End","End","End","End","End","End","End","End","End","End","End","End","End","End","End","End","End","End","End","End","End","End","End","End","End","End","End","End","End","End","End","End","End","End","End","End","End","End","End","End","End","End","End","End","End","End","End","End","End","End","End","End","End","End","End","End","End","End","End","End","End","End","End","End","End","End","End","End","End","End","End","End","End","End","End","End","End","End","End","End","End","End","End","End","End","End","End","End","End","End","End","End","End","End","End","End","End","End","End","End","End","End","End","End","End","End","End","End","End","End","End","End","End","End","End","End","End","End","End","End","End","End","End","End","End","End","End","End","End","End","End","End","End","End","End","End","End","End","End","End","End","End","End","End","End","End","End","End","End","End","End","End","End","End","End","End","End","End","End","End","End","End","End","End","End","End","End","End","End","End","End","End","End","End","End","End","End","End","End","End","End","End","End","End","End","End","End","End","End","End","End","End","End","End","End","End","End","End","End","End","End","End","End","End","End","End","End","End","End","End","End","End","End","End","End","End","End","End","End","End","End","End","End","End","End","End","End","End","End","End","End","End","End","End","End","End","End","End","End","End","End","End","End","End","End","End","End","End","End","End","End","End","End","End","End","End","End","End","End","End","End","End","End","End","End","End","End","End","End","End","End","End","End","End","End","End","End","End","End","End","End","End","End","End","End","End","End","End","End","End","End","End","End","End","End","End","End","End","End","End","End","End","End","End","End","End","End","End","End","End","End","End","End","End","End","End","End","End","End","End","End","End","End","End","End","End","End","End","End","End","End","End","End","End","End","End","End","End","End","End","End","End","End","End","End","End","End","End","End","End","End","End","End","End","End","End","End","End","End","End","End","End","End","End","End","End","End","End","End","End","End","End","End","End","End","End","End","End","End","End","End","End","End","End","End","End","End","End","End","End","End","End","End","End","End","End","End","End","End","End","End","End","End","End","End","End","End","End","End","End","End","End","End","End","End","End","End","End","End","End","End","End","End","End","End","End","End","End","End","End","End","End","End","End","End","End","End","End","End","End","End","End","End","End","End","End","End","End","End","End","End","End","End","End","End","End","End","End","End","End","End","End","End","End","End","End","End","End","End","End","End","End","End","End","End","End","End","End","End","End","End","End","End","End","End","End","End","End","End","End","End","End","End","End","End","End","End","End","End","End","End","End","End","End","End","End","End","End","End","End","End","End","End","End","End","End","End","End","End","End","End","End","End","End","End","End","End","End","End","End","End","End","End","End","End","End","End","End","End","End","End","End","End","End","End","End","End","End","End","End","End","End","End","End","End","End","End","End","End","End","End","End","End","End","End","End","End","End","End","End","End","End","End","End","End","End","End","End","End","End","End","End","End","End","End","End","End","End","End","End","End","End","End","End","End","End","End","End","End","End","End","End","End","End","End","End","End","End","End","End","End","End","End","End","End","End","End","End","End","End","End","End","End","End","End","End","End","End","End","End","End","End","End","End","End","End","End","End","End","End","End","End","End","End","End","End","End","End","End","End","End","End","End","End","End","End","End","End","End","End","End","End","End","End","End","End","End","End","End","End","End","End","End","End","End","End","End","End","End","End","End","End","End","End","End","End","End","End","End","End","End","End","End","End","End","End","End","End","End","End","End","End","End","End","End","End","End","End","End","End","End","End","End","End","End","End","End","End","End","End","End","End","End","End","End","End","End","End","End","End","End","End","End","End","End","End","End","End","End","End","End","End","End","End","End","End","End","End","End","End","End","End","End","End","End","End","End","End","End","End","End","End","End","End","End","End","End","End","End","End","End","End","End","End","End","End","End","End","End","End","End","End","End","End","End","End","End","End","End","End","End","End","End","End","End","End","End","End","End","End","End","End","End","End","End","End","End","End","End","End","End","End","End","End","End","End","End","End","End","End","End","End","End","End","End","End","End","End","End","End","End","End","End","End","End","End","End","End","End","End","End","End","End","End","End","End","End","End","End","End","End","End","End","End","End","End","End","End","End","End","End","End","End","End","End","End","End","End","End","End","End","End","End","End","End","End","End","End","End","End","End","End","End","End","End","End","End","End","End","End","End","End","End","End","End","End","End","End","End","End","End","End","End","End","End","End","End","End","End","End","End","End","End","End","End","End","End","End","End","End","End","End","End","End","End","End","End","End","End","End","End","End","End","End","End","End","End","End","End","End","End","End","End","End","End","End","End","End","End","End","End","End","End","End","End","End","End","End","End","End","End","End","End","End","End","End","End","End","End","End","End","End","End","End","End","End","End","End","End","End","End","End","End","End","End","End","End","End","End","End","End","End","End","End","End","End","End","End","End","End","End","End","End","End","End","End","End","End","End","End","End","End","End","End","End","End","End","End","End","End","End","End","End","End","End","End","End","End","End","End","End","End","End","End","End","End","End","End","End","End","End","End","End","End","End","End","End","End","End","End","End","End","End","End","End","End","End","End","End","End","End","End","End","End","End","End","End","End","End","End","End","End","End","End","End","End","End","End","End","End","End","End","End","End","End","End","End","End","End","End","End","End","End","End","End","End","End","End","End","End","End","End","End","End","End","End","End","End","End","End","End","End","End","End","End","End","End","End","End","End","End","End","End","End","End","End","End","End","End","End","End","End","End","End","End","End","End","End","End","End","End","End","End","End","End","End","End","End","End","End","End","End","End","End","End","End","End","End","End","End","End","End","End","End","End","End","End","End","End","End","End","End","End","End","End","End","End","End","End","End","End","End","End","End","End","End","End","End","End","End","End","End","End","End","End","End","End","End","End","End","End","End","End","End","End","End","End","End","End","End","End","End","End","End","End","End","End","End","End","End","End","End","End","End","End","End","End","End","End","End","End","End","End","End","End","End","End","End","End","End","End","End","End","End","End","End","End","End","End","End","End","End","End","End","End","End","End","End","End","End","End","End","End","End","End","End","End","End","End","End","End","End","End","End","End","End","End","End","End","End","End","End","End","End","End","End","End","End","End","End","End","End","End","End","End","End","End","End","End","End","End","End","End","End","End","End","End","End","End","End","End","End","End","End","End","End","End","End","End","End","End","End","End","End","End","End","End","End","End","End","End","End","End","End","End","End","End","End","End","End","End","End","End","End","End","End","End","End","End","End","End","End","End","End","End","End","End","End","End","End","End","End","End","End","End","End","End","End","End","End","End","End","End","End","End","End","End","End","End","End","End","End","End","End","End","End","End","End","End","End","End","End","End","End","End","End","End","End","End","End","End","End","End","End","End","End","End","End","End","End","End","End","End","End","End","End","End","End","End","End","End","End","End","End","End","End","End","End","End","End","End","End","End","End","End","End","End","End","End","End","End","End","End","End","End","End","End","End","End","End","End","End","End","End","End","End","End","End","End","End","End","End","End","End","End","End","End","End","End","End","End","End","End","End","End","End","End","End","End","End","End","End","End","End","End","End","End","End","End","End","End","End","End","End","End","End","End","End","End","End","End","End","End","End","End","End","End","End","End","End","End","End","End","End","End","End","End","End","End","End","End","End","End","End","End","End","End","End","End","End","End","End","End","End","End","End","End","End","End","End","End","End","End","End","End","End","End","End","End","End","End","End","End","End","End","End","End","End","End","End","End","End","End","End","End","End","End","End","End","End","End","End","End","End","End","End","End","End","End","End","End","End","End","End","End","End","End","End","End","End","End","End","End","End","End","End","End","End","End","End","End","End","End","End","End","End","End","End","End","End","End","End","End","End","End","End","End","End","End","End","End","End","End","End","End","End","End","End","End","End","End","End","End","End","End","End","End","End","End","End","End","End","End","End","End","End","End","End","End","End","End","End","End","End","End","End","End","End","End","End","End","End","End","End","End","End","End","End","End","End","End","End","End","End","End","End","End","End","End","End","End","End","End","End","End","End","End","End","End","End","End","End","End","End","End","End","End","End","End","End","End","End","End","End","End","End","End","End","End","End","End","End","End","End","End","End","End","End","End","End","End","End","End","End","End","End","End","End","End","End","End","End","End","End","End","End","End","End","End","End","End","End","End","End","End","End","End","End","End","End","End","End","End","End","End","End","End","End","End","End","End","End","End","End","End","End","End","End","End","End","End","End","End","End","End","End","End","End","End","End","End","End","End","End","End","End","End","End","End","End","End","End","End","End","End","End","End","End","End","End","End","End","End","End","End","End","End","End","End","End","End","End","End","End","End","End","End","End","End","End","End","End","End","End","End","End","End","End","End","End","End","End","End","End","End","End","End","End","End","End","End","End","End","End","End","End","End","End","End","End","End","End","End","End","End","End","End","End","End","End","End","End","End","End","End","End","End","End","End","End","End","End","End","End","End","End","End","End","End","End","End","End","End","End","End","End","End","End","End","End","End","End","End","End","End","End","End","End","End","End","End","End","End","End","End","End","End","End","End","End","End","End","End","End","End","End","End","End","End","End","End","End","End","End","End","End","End","End","End","End","End","End","End","End","End","End","End","End","End","End","End","End","End","End","End","End","End","End","End","End","End","End","End","End","End","End","End","End","End","End","End","End","End","End","End","End","End","End","End","End","End","End","End","End","End","End","End","End","End","End","End","End","End","End","End","End","End","End","End","End","End","End","End","End","End","End","End","End","End","End","End","End","End","End","End","End","End","End","End","End","End","End","End","End","End","End","End","End","End","End","End","End","End","End","End","End","End","End","End","End","End","End","End","End","End","End","End","End","End","End","End","End","End","End","End","End","End","End","End","End","End","End","End","End","End","End","End","End","End","End","End","End","End","End","End","End","End","End","End","End","End","End","End","End","End","End","End","End","End","End","End","End","End","End","End","End","End","End","End","End","End","End","End","End","End","End","End","End","End","End","End","End","End","End","End","End","End","End","End","End","End","End","End","End","End","End","End","End","End","End","End","End","End","End","End","End","End","End","End","End","End","End","End","End","End","End","End","End","End","End","End","End","End","End","End","End","End","End","End","End","End","End","End","End","End","End","End","End","End","End","End","End","End","End","End","End","End","End","End","End","End","End","End","End","End","End","End","End","End","End","End","End","End","End","End","End","End","End","End","End","End","End","End","End","End","End","End","End","End","End","End","End","End","End","End","End","End","End","End","End","End","End","End","End","End","End","End","End","End","End","End","End","End","End","End","End","End","End","End","End","End","End","End","End","End","End","End","End","End","End","End","End","End","End","End","End","End","End","End","End","End","End","End","End","End","End","End","End","End","End","End","End","End","End","End","End","End","End","End","End","End","End","End","End","End","End","End","End","End","End","End","End","End","End","End","End","End","End","End","End","End","End","End","End","End","End","End","End","End","End","End","End","End","End","End","End","End","End","End","End","End","End","End","End","End","End","End","End","End","End","End","End","End","End","End","End","End","End","End","End","End","End","End","End","End","End","End","End","End","End","End","End","End","End","End","End","End","End","End","End","End","End","End","End","End","End","End","End","End","End","End","End","End","End","End","End","End","End","End","End","End","End","End","End","End","End","End","End","End","End","End","End","End","End","End","End","End","End","End","End","End","End","End","End","End","End","End","End","End","End","End","End","End","End","End","End","End","End","End","End","End","End","End","End","End","End","End","End","End","End","End","End","End","End","End","End","End","End","End","End","End","End","End","End","End","End","End","End","End","End","End","End","End","End","End","End","End","End","End","End","End","End","End","End","End","End","End","End","End","End","End","End","End","End","End","End","End","End","End","End","End","End","End","End","End","End","End","End","End","End","End","End","End","End","End","End","End","End","End","End","End","End","End","End","End","End","End","End","End","End","End","End","End","End","End","End","End","End","End","End","End","End","End","End","End","End","End","End","End","End","End","End","End","End","End","End","End","End","End","End","End","End","End","End","End","End","End","End","End","End","End","End","End","End","End","End","End","End","End","End","End","End","End","End","End","End","End","End","End","End","End","End","End","End","End","End","End","End","End","End","End","End","End","End","End","End","End","End","End","End","End","End","End","End","End","End","End","End","End","End","End","End","End","End","End","End","End","End","End","End","End","End","End","End","End","End","End","End","End","End","End","End","End","End","End","End","End","End","End","End","End","End","End","End","End","End","End","End","End","End","End","End","End","End","End","End","End","End","End","End","End","End","End","End","End","End","End","End","End","End","End","End","End","End","End","End","End","End","End","End","End","End","End","End","End","End","End","End","End","End","End","End","End","End","End","End","End","End","End","End","End","End","End","End","End","End","End","End","End","End","End","End","End","End","End","End","End","End","End","End","End","End","End","End","End","End","End","End","End","End","End","End","End","End","End","End","End","End","End","End","End","End","End","End","End","End","End","End","End","End","End","End","End","End","End","End","End","End","End","End","End","End","End","End","End","End","End","End","End","End","End","End","End","End","End","End","End","End","End","End","End","End","End","End","End","End","End","End","End","End","End","End","End","End","End","End","End","End","End","End","End","End","End","End","End","End","End","End","End","End","End","End","End","End","End","End","End","End","End","End","End","End","End","End","End","End","End","End","End","End","End","End","End","End","End","End","End","End","End","End","End","End","End","End","End","End","End","End","End","End","End","End","End","End","End","End","End","End","End","End","End","End","End","End","End","End","End","End","End","End","End","End","End","End","End","End","End","End","End","End","End","End","End","End","End","End","End","End","End","End","End","End","End","End","End","End","End","End","End","End","End","End","End","End","End","End","End","End","End","End","End","End","End","End","End","End","End","End","End","End","End","End","End","End","End","End","End","End","End","End","End","End","End","End","End","End","End","End","End","End","End","End","End","End","End","End","End","End","End","End","End","End","End","End","End","End","End","End","End","End","End","End","End","End","End","End","End","End","End","End","End","End","End","End","End","End","End","End","End","End","End","End","End","End","End","End","End","End","End","End","End","End","End","End","End","End","End","End","End","End","End","End","End","End","End","End","End","End","End","End","End","End","End","End","End","End","End","End","End","End","End","End","End","End","End","End","End","End","End","End","End","End","End","End","End","End","End","End","End","End","End","End","End","End","End","End","End","End","End","End","End","End","End","End","End","End","End","End","End","End","End","End","End","End","End","End","End","End","End","End","End","End","End","End","End","End","End","End","End","End","End","End","End","End","End","End","End","End","End","End","End","End","End","End","End","End","End","End","End","End","End","End","End","End","End","End","End","End","End","End","End","End","End","End","End","End","End","End","End","End","End","End","End","End","End","End","End","End","End","End","End","End","End","End","End","End","End","End","End","End","End","End","End","End","End","End","End","End","End","End","End","End","End","End","End","End","End","End","End","End","End","End","End","End","End","End","End","End","End","End","End","End","End","End","End","End","End","End","End","End","End","End","End","End","End","End","End","End","End","End","End","End","End","End","End","End","End","End","End","End","End","End","End","End","End","End","End","End","End","End","End","End","End","End","End","End","End","End","End","End","End","End","End","End","End","End","End","End","End","End","End","End","End","End","End","End","End","End","End","End","End","End","End","End","End","End","End","End","End","End","End","End","End","End","End","End","End","End","End","End","End","End","End","End","End","End","End","End","End","End","End","End","End","End","End","End","End","End","End","End","End","End","End","End","End","End","End","End","End","End","End","End","End","End","End","End","End","End","End","End","End","End","End","End","End","End","End","End","End","End","End","End","End","End","End","End","End","End","End","End","End","End","End","End","End","End","End","End","End","End","End","End","End","End","End","End","End","End","End","End","End","End","End","End","End","End","End","End","End","End","End","End","End","End","End","End","End","End","End","End","End","End","End","End","End","End","End","End","End","End","End","End","End","End","End","End","End","End","End","End","End","End","End","End","End","End","End","End","End","End","End","End","End","End","End","End","End","End","End","End","End","End","End","End","End","End","End","End","End","End","End","End","End","End","End","End","End","End","End","End","End","End","End","End","End","End","End","End","End","End","End","End","End","End","End","End","End","End","End","End","End","End","End","End","End","End","End","End","End","End","End","End","End","End","End","End","End","End","End","End","End","End","End","End","End","End","End","End","End","End","End","End","End","End","End","End","End","End","End","End","End","End","End","End","End","End","End","End","End","End","End","End","End","End","End","End","End","End","End","End","End","End","End","End","End","End","End","End","End","End","End","End","End","End","End","End","End","End","End","End","End","End","End","End","End","End","End","End","End","End","End","End","End","End","End","End","End","End","End","End","End","End","End","End","End","End","End","End","End","End","End","End","End","End","End","End","End","End","End","End","End","End","End","End","End","End","End","End","End","End","End","End","End","End","End","End","End","End","End","End","End","End","End","End","End","End","End","End","End","End","End","End","End","End","End","End","End","End","End","End","End","End","End","End","End","End","End","End","End","End","End","End","End","End","End","End","End","End","End","End","End","End","End","End","End","End","End","End","End","End","End","End","End","End","End","End","End","End","End","End","End","End","End","End","End","End","End","End","End","End","End","End","End","End","End","End","End","End","End","End","End","End","End","End","End","End","End","End","End","End","End","End","End","End","End","End","End","End","End","End","End","End","End","End","End","End","End","End","End","End","End","End","End","End","End","End","End","End","End","End","End","End","End","End","End","End","End","End","End","End","End","End","End","End","End","End","End","End","End","End","End","End","End","End","End","End","End","End","End","End","End","End","End","End","End","End","End","End","End","End","End","End","End","End","End","End","End","End","End","End","End","End","End","End","End","End","End","End","End","End","End","End","End","End","End","End","End","End","End","End","End","End","End","End","End","End","End","End","End","End","End","End","End","End","End","End","End","End","End","End","End","End","End","End","End","End","End","End","End","End","End","End","End","End","End","End","End","End","End","End","End","End","End","End","End","End","End","End","End","End","End","End","End","End","End","End","End","End","End","End","End","End","End","End","End","End","End","End","End","End","End","End","End","End","End","End","End","End","End","End","End","End","End","End","End","End","End","End","End","End","End","End","End","End","End","End","End","End","End","End","End","End","End","End","End","End","End","End","End","End","End","End","End","End","End","End","End","End","End","End","End","End","End","End","End","End","End","End","End","End","End","End","End","End","End","End","End","End","End","End","End","End","End","End","End","End","End","End","End","End","End","End","End","End","End","End","End","End","End","End","End","End","End","End","End","End","End","End","End","End","End","End","End","End","End","End","End","End","End","End","End","End","End","End","End","End","End","End","End","End","End","End","End","End","End","End","End","End","End","End","End","End","End","End","End","End","End","End","End","End","End","End","End","End","End","End","End","End","End","End","End","End","End","End","End","End","End","End","End","End","End","End","End","End","End","End","End","End","End","End","End","End","End","End","End","End","End","End","End","End","End","End","End","End","End","End","End","End","End","End","End","End","End","End","End","End","End","End","End","End","End","End","End","End","End","End","End","End","End","End","End","End","End","End","End","End","End","End","End","End","End","End","End","End","End","End","End","End","End","End","End","End","End","End","End","End","End","End","End","End","End","End","End","End","End","End","End","End","End","End","End","End","End","End","End","End","End","End","End","End","End","End","End","End","End","End","End","End","End","End","End","End","End","End","End","End","End","End","End","End","End","End","End","End","End","End","End","End","End","End","End","End","End","End","End","End","End","End","End","End","End","End","End","End","End","End","End","End","End","End","End","End","End","End","End","End","End","End","End","End","End","End","End","End","End","End","End","End","End","End","End","End","End","End","End","End","End","End","End","End","End","End","End","End","End","End","End","End","End","End","End","End","End","End","End","End","End","End","End","End","End","End","End","End","End","End","End","End","End","End","End","End","End","End","End","End","End","End","End","End","End","End","End","End","End","End","End","End","End","End","End","End","End","End","End","End","End","End","End","End","End","End","End","End","End","End","End","End","End","End","End","End","End","End","End","End","End","End","End","End","End","End","End","End","End","End","End","End","End","End","End","End","End","End","End","End","End","End","End","End","End","End","End","End","End","End","End","End","End","End","End","End","End","End","End","End","End","End","End","End","End","End","End","End","End","End","End","End","End","End","End","End","End","End","End","End","End","End","End","End","End","End","End","End","End","End","End","End","End","End","End","End","End","End","End","End","End","End","End","End","End","End","End","End","End","End","End","End","End","End","End","End","End","End","End","End","End","End","End","End","End","End","End","End","End","End","End","End","End","End","End","End","End","End","End","End","End","End","End","End","End","End","End","End","End","End","End","End","End","End","End","End","End","End","End","End","End","End","End","End","End","End","End","End","End","End","End","End","End","End","End","End","End","End","End","End","End","End","End","End","End","End","End","End","End","End","End","End","End","End","End","End","End","End","End","End","End","End","End","End","End","End","End","End","End","End","End","End","End","End","End","End","End","End","End","End","End","End","End","End","End","End","End","End","End","End","End","End","End","End","End","End","End","End","End","End","End","End","End","End","End","End","End","End","End","End","End","End","End","End","End","End","End","End","End","End","End","End","End","End","End","End","End","End","End","End","End","End","End","End","End","End","End","End","End","End","End","End","End","End","End","End","End","End","End","End","End","End","End","End","End","End","End","End","End","End","End","End","End","End","End","End","End","End","End","End","End","End","End","End","End","End","End","End","End","End","End","End","End","End","End","End","End","End","End","End","End","End","End","End","End","End","End","End","End","End","End","End","End","End","End","End","End","End","End","End","End","End","End","End","End","End","End","End","End","End","End","End","End","End","End","End","End","End","End","End","End","End","End","End","End","End","End","End","End","End","End","End","End","End","End","End","End","End","End","End","End","End","End","End","End","End","End","End","End","End","End","End","End","End","End","End","End","End","End","End","End","End","End","End","End","End","End","End","End","End","End","End","End","End","End","End","End","End","End","End","End","End","End","End","End","End","End","End","End","End","End","End","End","End","End","End","End","End","End","End","End","End","End","End","End","End","End","End","End","End","End","End","End","End","End","End","End","End","End","End","End","End","End","End","End","End","End","End","End","End","End","End","End","End","End","End","End","End","End","End","End","End","End","End","End","End","End","End","End","End","End","End","End","End","End","End","End","End","End","End","End","End","End","End","End","End","End","End","End","End","End","End","End","End","End","End","End","End","End","End","End","End","End","End","End","End","End","End","End","End","End","End","End","End","End","End","End","End","End","End","End","End","End","End","End","End","End","End","End","End","End","End","End","End","End","End","End","End","End","End","End","End","End","End","End","End","End","End","End","End","End","End","End","End","End","End","End","End","End","End","End","End","End","End","End","End","End","End","End","End","End","End","End","End","End","End","End","End","End","End","End","End","End","End","End","End","End","End","End","End","End","End","End","End","End","End","End","End","End","End","End","End","End","End","End","End","End","End","End","End","End","End","End","End","End","End","End","End","End","End","End","End","End","End","End","End","End","End","End","End","End","End","End","End","End","End","End","End","End","End","End","End","End","End","End","End","End","End","End","End","End","End","End","End","End","End","End","End","End","End","End","End","End","End","End","End","End","End","End","End","End","End","End","End","End","End","End","End","End","End","End","End","End","End","End","End","End","End","End","End","End","End","End","End","End","End","End","End","End","End","End","End","End","End","End","End","End","End","End","End","End","End","End","End","End","End","End","End","End","End","End","End","End","End","End","End","End","End","End","End","End","End","End","End","End","End","End","End","End","End","End","End","End","End","End","End","End","End","End","End","End","End","End","End","End","End","End","End","End","End","End","End","End","End","End","End","End","End","End","End","End","End","End","End","End","End","End","End","End","End","End","End","End","End","End","End","End","End","End","End","End","End","End","End","End","End","End","End","End","End","End","End","End","End","End","End","End","End","End","End","End","End","End","End","End","End","End","End","End","End","End","End","End","End","End","End","End","End","End","End","End","End","End","End","End","End","End","End","End","End","End","End","End","End","End","End","End","End","End","End","End","End","End","End","End","End","End","End","End","End","End","End","End","End","End","End","End","End","End","End","End","End","End","End","End","End","End","End","End","End","End","End","End","End","End","End","End","End","End","End","End","End","End","End","End","End","End","End","End","End","End","End","End","End","End","End","End","End","End","End","End","End","End","End","End","End","End","End","End","End","End","End","End","End","End","End","End","End","End","End","End","End","End","End","End","End","End","End","End","End","End","End","End","End","End","End","End","End","End","End","End","End","End","End","End","End","End","End","End","End","End","End","End","End","End","End","End","End","End","End","End","End","End","End","End","End","End","End","End","End","End","End","End","End","End","End","End","End","End","End","End","End","End","End","End","End","End","End","End","End","End","End","End","End","End","End","End","End","End","End","End","End","End","End","End","End","End","End","End","End","End","End","End","End","End","End","End","End","End","End","End","End","End","End","End","End","End","End","End","End","End","End","End","End","End","End","End","End","End","End","End","End","End","End","End","End","End","End","End","End","End","End","End","End","End","End","End","End","End","End","End","End","End","End","End","End","End","End","End","End","End","End","End","End","End","End","End","End","End","End","End","End","End","End","End","End","End","End","End","End","End","End","End","End","End","End","End","End","End","End","End","End","End","End","End","End","End","End","End","End","End","End","End","End","End","End","End","End","End","End","End","End","End","End","End","End","End","End","End","End","End","End","End","End","End","End","End","End","End","End","End","End","End","End","End","End","End","End","End","End","End","End","End","End","End","End","End","End","End","End","End","End","End","End","End","End","End","End","End","End","End","End","End","End","End","End","End","End","End","End","End","End","End","End","End","End","End","End","End","End","End","End","End","End","End","End","End","End","End","End","End","End","End","End","End","End","End","End","End","End","End","End","End","End","End","End","End","End","End","End","End","End","End","End","End","End","End","End","End","End","End","End","End","End","End","End","End","End","End","End","End","End","End","End","End","End","End","End","End","End","End","End","End","End","End","End","End","End","End","End","End","End","End","End","End","End","End","End","End","End","End","End","End","End","End","End","End","End","End","End","End","End"]

{"sheet":"Эрсдэлийн матриц","index":3,"n_rows":56,"n_cols":9,"rows_kept":56,"cut":false,"hidden":false,"merged":[[25,6,26,6],[25,5,26,5],[25,3,25,4],[8,1,12,1],[25,1,25,2]]}
[{"$f":"MdlTle","v":"Гамшгийн эрсдэлийг тооцоолох түргэвчилсэн арга"}]
[{"$f":"MID(CELL(\"filename\",A1),FIND(\"]\",CELL(\"filename\",A1))+1,255)","v":"Эрсдэлийн матриц"}]
[]
[]
[]
[]
[null,"Магадлалын зэрэг",null,null,"Маш бага","Бага","Дунд зэрэг","Их","Маш их"]
[null,"Магадлалын зэргийн оноо",null,null,"0 - 2","2 - 4","4 - 6","6 - 8","8 - 10"]
[null,"Хор Уршиг\nХор уршгийн дундаж оноог жинлэж тооцсон (эмзэг байдал, өртөнги, хариу арга хэмжээнд өгсөн хариултад үндэслэв)","Маш бага","0 - 10","МБ1","МБ2","Б3","Б4","ДЗ5"]
[null,null,"Бага","11 - 25","МБ2","Б3","Б4","ДЗ5","ДЗ6"]
[null,null,"Дунд зэрэг","26 - 50","Б3","Б4","ДЗ5","ДЗ6","Ө7"]
[null,null,"Томоохон","51 - 75","Б4","ДЗ5","ДЗ6","Ө7","Ө8"]
[null,null,"Сүйрэл","76 - 100","ДЗ5","ДЗ6","Ө7","Ө8","МӨ9"]
[]
[]
[null,"Магадлалыг үнэлэх заавар"]
[null,"Түвшин","Болзошгүй байдалд суурилсан байдлаар",null,null,null,"Түүхийн хугацаанд тохиолдсон байдлаар"]
[null,"Маш өндөр","Зайлшгүй нэг удаа тохиолдох боломжтой",null,null,null,"Сүүлийн 5 жилд 3-аас дээш удаа тохиолдсон"]
[null,"Өндөр","Зайлшгүй нэг удаа тохиолдох боломж өндөр",null,null,null,"Сүүлийн 5 жилд 2 удаа тохиолдсон"]
[null,"Дунд зэрэг","Зайлшгүй нэг удаа тохиолдож магадгүй",null,null,null,"Сүүлийн 5 жилд 1 удаа тохиолсон"]
[null,"Бага","Тохиолдох боломж бараг байхгүй байх",null,null,null,"Сүүлийн 10 жилд нэг удаа тохиолдсон байх"]
[null,"Маш бага","Маш онцгой нөхцөлд л тохиолдох байх",null,null,null,"Зөвхөн сүүлийн 20 жилд нэг удаа буюу маш онцгой нөхцөлд  тохиолдсон байж болох "]
[]
["Risk matrix table"]
[]
[null,"Severity",null,"Likelihood ranking",null,"Ranking","Ranking reference"]
[null,"Lower Bound","Upper Bound","Lower bound","Upper bound"]
[null,-100,0,0,0,0,"VL1"]
[null,0.1,10,0,2,1,"VL1"]
[null,0.1,10,2.1,4,2,"VL2"]
[null,0.1,10,4.0999999999999996,6,3,"L3"]
[null,0.1,10,6.1,8,4,"L4"]
[null,0.1,10,8.1,10,5,"M5"]
[null,11,25,0,2,6,"VL2"]
[null,11,25,2.1,4,7,"L3"]
[null,11,25,4.0999999999999996,6,8,"L4"]
[null,11,25,6.1,8,9,"M5"]
[null,11,25,8.1,10,10,"M6"]
[null,26,50,0,2,11,"L3"]
[null,26,50,2.1,4,12,"L4"]
[null,26,50,4.0999999999999996,6,13,"M5"]
[null,26,50,6.1,8,14,"M6"]
[null,26,50,8.1,10,15,"H7"]
[null,51,75,0,2,16,"L4"]
[null,51,75,2.1,4,17,"M5"]
[null,51,75,4.0999999999999996,6,18,"M6"]
[null,51,75,6.1,8,19,"H7"]
[null,51,75,8.1,10,20,"H8"]
[null,76,100,0,2,21,"M5"]
[null,76,100,2.1,4,22,"M6"]
[null,76,100,4.0999999999999996,6,23,"H7"]
[null,76,100,6.1,8,24,"H8"]
[null,76,100,8.1,10,25,"VH9"]
[]
[]
["End"]

{"sheet":"Мэдээлэл","index":4,"n_rows":23,"n_cols":3,"rows_kept":23,"cut":false,"hidden":false,"merged":[]}
[{"$f":"MdlTle","v":"Гамшгийн эрсдэлийг тооцоолох түргэвчилсэн арга"}]
[{"$f":"MID(CELL(\"filename\",A1),FIND(\"]\",CELL(\"filename\",A1))+1,255)","v":"Мэдээлэл"}]
[]
[]
[]
[]
[]
[]
[]
[]
[]
[]
[]
[]
[null,null,"Байршил/Аймаг, хотын нэр:"]
[]
[null,null,"Үнэлгээ хийж буй газрын нэр (сум, дүүрэг, баг, хороо):"]
[]
[null,null,"Үнэлгээний ажлыг удирдаж гүйцэтгэсэн:"]
[]
[null,null,"Үнэлгээ гүйцэтгэсэн огноо:"]
[]
[null,null,"Давтан үнэлгээ хийх огноо:"]

{"sheet":"Таамаглал","index":5,"n_rows":171,"n_cols":6,"rows_kept":171,"cut":false,"hidden":false,"merged":[]}
[{"$f":"MdlTle","v":"Гамшгийн эрсдэлийг тооцоолох түргэвчилсэн арга"}]
[{"$f":"MID(CELL(\"filename\",A1),FIND(\"]\",CELL(\"filename\",A1))+1,255)","v":"Таамаглал"}]
[]
[]
["Ерөнхий таамаглал"]
[]
[]
[null,"Магадлалын зэргийн онооны хувь",null,"%",null,0.5]
[null,"Дээд оноо/зэрэглэл",null,"#",null,10]
[null,"Эмзэг бадлын эзлэх жин",null,"%",null,0.25]
[]
["Зэрэглэл/ оноо"]
[]
[null,"Өртөнгийн зэрэглэл"]
[null,"0% Negligible",null,"#",null,0]
[null,"10% Extremely unlikely",null,"#",null,1]
[null,"20% Very unlikely",null,"#",null,2]
[null,"30% Unlikely",null,"#",null,3]
[null,"40% Improbable",null,"#",null,4]
[null,"50% Possible",null,"#",null,5]
[null,"60% Probable",null,"#",null,6]
[null,"70% Likely",null,"#",null,7]
[null,"80% Very likely",null,"#",null,8]
[null,"90% Extremely likely",null,"#",null,9]
[null,"100% Inevitable",null,"#",null,10]
[]
[null,"Эмзэг байдлын зэрэглэл"]
[null,"0% Negligible",null,"#",null,0]
[null,"10% Extremely unlikely",null,"#",null,1]
[null,"20% Very unlikely",null,"#",null,2]
[null,"30% Unlikely",null,"#",null,3]
[null,"40% Improbable",null,"#",null,4]
[null,"50% Possible",null,"#",null,5]
[null,"60% Probable",null,"#",null,6]
[null,"70% Likely",null,"#",null,7]
[null,"80% Very likely",null,"#",null,8]
[null,"90% Extremely likely",null,"#",null,9]
[null,"100% Inevitable",null,"#",null,10]
[]
[null,"Хариу арга хэмжээний түвшин"]
[null,"0% No measures in place",null,"#",null,0]
[null,"10% Extremely few measures in place",null,"#",null,1]
[null,"20% Very few measures in place",null,"#",null,2]
[null,"30% Few measures in place",null,"#",null,3]
[null,"40% Some measures in place",null,"#",null,4]
[null,"50% Reasonable measures in place",null,"#",null,5]
[null,"60% Good measures in place",null,"#",null,6]
[null,"70% High measures in place",null,"#",null,7]
[null,"80% Extremely high measures in place",null,"#",null,8]
[null,"90% Immense measures in place",null,"#",null,9]
[null,"100% Complete control of disaster",null,"#",null,10]
[]
["Нүдэнд байгаа аюулын төрөл"]
[]
[null,"Аюул"]
[null,"Геофизикийн гаралтай аюул"]
[null,"Газар хөдлөлт"]
[null,"Гадаргын ихээхэн хэмжээний шилжилт (Нуранги)"]
[null,"Галт уулын идэвхижилт"]
[]
[null,"Ус зүйн гаралтай аюул"]
[null,"Үер"]
[null,"Хөрсний нуралт"]
[null,"Wave Action"]
[]
[null,"Цаг агаарын гаралтай аюул"]
[null,"Хүчтэй салхи"]
[null,"Огцом халуун / цочир хүйтрэл"]
[null,"Манан"]
[]
[]
[]
[null,"Уур амьсгалаас үүдэлтэй аюул"]
[null,"Ган"]
[null,"Зуд"]
[null,"Цэвдэгт мөсөн гол хайлахаас уусэх үер"]
[null,"Түймэр /ой, хээр/"]
[null,"Биологийн гаралтай томоохон аюул"]
[null,"Мал, амьтны хорогдол, осол"]
[null,"Халдварт өвчин"]
[null,"Шавьж шимэгчийн халдвар"]
[]
[null,"Дэлхийгээс гадна орших биетийн аюул"]
[null,"Гадаргуу болон усанд үзүүлэх нөлөө"]
[null,"Огторгуйн агаар мандлын нөлөө"]
[]
[null,"Хүний үйл ажиллагаатай холбоотой аюул"]
[null,"Технологийн аюул"]
[null,"Цацраг химийн аюул"]
[null,"Обьектийн гал түймэр"]
[null,"Зам тээврийн осол"]
[null,"Other Main Hazards (User defined)"]
[null,"Spare 1"]
[null,"Spare 2"]
[null,"Spare 3"]
[null,"Spare 4"]
[]
[]
[null,"Аюулт үзэгдэл осол, хоёрдогч аюул"]
[null,"Агаарт үүсэх дэлбэрэлт"]
[null,"Агаар мандлын хүйтний урсгал"]
[null,"Агаар мандлын дулааны урсгал"]
[null,"Агаар мандалд үүсэх осол"]
[null,"Бактерийн гаралтай өвчин"]
[null,"Бороо / аадар, хүйтэн бороо г.м/"]
[null,"Вирусын гаралтай халдварт өвчин"]
[null,"Галт уулын үнс"]
[null,"Галт уулын лав урсах"]
[null,"Гал түймэр"]
[null,"Гэнэтийн үер"]
[null,"Гол, усны үер"]
[null,"Газрын гадаргын бүтцийн өөрчлөлт /чулуулаг, элс хайрга г.м/"]
[null,"Дэд бүтцийн эвдрэл"]
[null,"Зам, тээврийн осол"]
[null,"Иргэний агаарын тээврийн осол"]
[null,"Мөндөр"]
[null,"Мөөгөнцөрийн өвчин"]
[null,"Нуранги /цас, хөрс, чулуулгийн жижиг хэсэг/"]
[null,"Ойн түймэр"]
[null,"Радио долгионоос үүсэх аюул"]
[null,"Гол, усны үер"]
[null,"Цөн түрэхээс үүсэх үер"]
[null,"Салхи"]
[null,"Төмөр замын осол"]
[null,"Уруйн үер"]
[null,"Усан онгоцны осол"]
[null,"Уурхайн осол, гамшиг"]
[null,"Үйлдвэрийн осол, гамшиг"]
[null,"Үйлдвэрийн дэлбэрэлт /химийн үйлдвэрт, газ г.м/"]
[null,"Хөрсний нуралт"]
[null,"Хөрсний шигшилтээс үүсэх ус"]
[null,"Хээрийн түймэр"]
[null,"Химийн осол"]
[null,"Хөлдөлт"]
[null,"Хүн, малын гоц халдварт өвчин"]
[null,"Хуй салхи /Торнадо/"]
[null,"Цөн түрэхээс үүсэх үер"]
[null,"Цацраг идэвхт бодисын осол"]
[null,"Цахилгаан (аянга)"]
[null,"Цасан шуурга"]
[null,"Шороон шуурга"]
[null,"Шатах тослох материалаас үүсэх осол"]
[null,"Шаварлаг хөрс/хад чулуу нурах, урсах"]
[null,"Шимэгч хорхойгоос үүсэх өвчин"]
[null,"Цас"]
[null,"Эрчим хүчний алдагдал"]
[null,"Эрчим хүч түгээх биетээс ялгарах хий /нарны зайн үүсгүүр г.м/"]
[]
[]
[]
[]
[]
[]
[]
[]
[]
[]
[]
[]
[]
[]
[]
[]
[]
[]
[]
[]
[]
[]
[]
["End"]

{"sheet":"Эрсдэлийн үнэлгээ","index":6,"n_rows":54,"n_cols":14,"rows_kept":54,"cut":false,"hidden":false,"merged":[[4,1,5,1],[4,4,4,7],[4,2,5,2],[4,13,5,13],[4,3,5,3],[4,9,5,9],[4,12,5,12]]}
[{"$f":"MdlTle","v":"Гамшгийн эрсдэлийг тооцоолох түргэвчилсэн арга"}]
[{"$f":"MID(CELL(\"filename\",A1),FIND(\"]\",CELL(\"filename\",A1))+1,255)","v":"Эрсдэлийн үнэлгээ"}]
[]
[]
[null,"Аюулын бүлэг/ дэд бүлэг","Аюулт үзэгдэл, осол, хоёрдогч аюул","Өртөнгийн зэрэглэл ","Эмзэг байдлын зэрэглэл",null,null,null,"Эмзэг байдлын зэрэглэл /нийт дүн/","Хариу арга хэмжээний өнөөгийн түвшин, чадавх","Магадлалын зэрэглэлийн оноо","Учрах хор үршгийн зэрэглэл","Эрсдэлийн матрицийн дүн","Тэмдэглэл"]
[null,null,null,null,"Дэд бүтэц","Үйлдвэрлэлийн салбар","Тусгай болон үндсэн хэрэгцээний үйлчилгээ","Хүн ам, нийгмийн байдал","1 (бага) - 100 (их)",null,"1 (бага) - 10 (их)","1 (бага ) - 100 (их)"]
[null,"H1-Геофизикийн гаралтай аюул"]
[null,null,null,null,null,null,null,null,{"$f":"IFERROR((((INDEX(Таамаглал!$F$28:$F$38,MATCH(E8,Vulnerabilties,0))*Таамаглал!$F$10)+(INDEX(Таамаглал!$F$28:$F$38,MATCH(F8,Vulnerabilties,0))*Таамаглал!$F$10)+(INDEX(Таамаглал!$F$28:$F$38,MATCH(G8,Vulnerabilties,0))*Таамаглал!$F$10)+(INDEX(Таамаглал!$F$28:$F$38,MATCH(H8,Vulnerabilties,0))*Таамаглал!$F$10))*Таамаглал!$F$9),0)","v":0},null,{"$f":"IFERROR(INDEX(Таамаглал!$F$15:$F$25,MATCH(D8,Exposures,0)*Таамаглал!$F$8+(I8/Таамаглал!$F$9)*Таамаглал!$F$8),0)","v":0},{"$f":"IFERROR((K8*Таамаглал!$F$9)-(INDEX(Таамаглал!$F$41:$F$51,MATCH(J8,Levels_of_response,0))*Таамаглал!$F$9),0)","v":0},{"$f":"IF(L8=0,\"-\",IFERROR(INDEX('Эрсдэлийн матриц'!$G$28:$G$53,MATCH(SUMPRODUCT(('Эрсдэлийн матриц'!$B$28:$B$53<=L8)*('Эрсдэлийн матриц'!$C$28:$C$53>=L8)*('Эрсдэлийн матриц'!$D$28:$D$53<=K8)*('Эрсдэлийн матриц'!$E$28:$E$53>=K8)*('Эрсдэлийн матриц'!$F$28:$F$53)),'Эрсдэлийн матриц'!$F$28:$F$53,0)),0))","v":"-"}]
[null,null,null,null,null,null,null,null,{"$f":"IFERROR((((INDEX(Таамаглал!$F$28:$F$38,MATCH(E9,Vulnerabilties,0))*Таамаглал!$F$10)+(INDEX(Таамаглал!$F$28:$F$38,MATCH(F9,Vulnerabilties,0))*Таамаглал!$F$10)+(INDEX(Таамаглал!$F$28:$F$38,MATCH(G9,Vulnerabilties,0))*Таамаглал!$F$10)+(INDEX(Таамаглал!$F$28:$F$38,MATCH(H9,Vulnerabilties,0))*Таамаглал!$F$10))*Таамаглал!$F$9),0)","v":0},null,{"$f":"IFERROR(INDEX(Таамаглал!$F$15:$F$25,MATCH(D9,Exposures,0)*Таамаглал!$F$8+(I9/Таамаглал!$F$9)*Таамаглал!$F$8),0)","v":0},{"$f":"IFERROR((K9*Таамаглал!$F$9)-(INDEX(Таамаглал!$F$41:$F$51,MATCH(J9,Levels_of_response,0))*Таамаглал!$F$9),0)","v":0},{"$f":"IF(L9=0,\"-\",IFERROR(INDEX('Эрсдэлийн матриц'!$G$28:$G$53,MATCH(SUMPRODUCT(('Эрсдэлийн матриц'!$B$28:$B$53<=L9)*('Эрсдэлийн матриц'!$C$28:$C$53>=L9)*('Эрсдэлийн матриц'!$D$28:$D$53<=K9)*('Эрсдэлийн матриц'!$E$28:$E$53>=K9)*('Эрсдэлийн матриц'!$F$28:$F$53)),'Эрсдэлийн матриц'!$F$28:$F$53,0)),0))","v":"-"}]
[null,null,null,null,null,null,null,null,{"$f":"IFERROR((((INDEX(Таамаглал!$F$28:$F$38,MATCH(E10,Vulnerabilties,0))*Таамаглал!$F$10)+(INDEX(Таамаглал!$F$28:$F$38,MATCH(F10,Vulnerabilties,0))*Таамаглал!$F$10)+(INDEX(Таамаглал!$F$28:$F$38,MATCH(G10,Vulnerabilties,0))*Таамаглал!$F$10)+(INDEX(Таамаглал!$F$28:$F$38,MATCH(H10,Vulnerabilties,0))*Таамаглал!$F$10))*Таамаглал!$F$9),0)","v":0},null,{"$f":"IFERROR(INDEX(Таамаглал!$F$15:$F$25,MATCH(D10,Exposures,0)*Таамаглал!$F$8+(I10/Таамаглал!$F$9)*Таамаглал!$F$8),0)","v":0},{"$f":"IFERROR((K10*Таамаглал!$F$9)-(INDEX(Таамаглал!$F$41:$F$51,MATCH(J10,Levels_of_response,0))*Таамаглал!$F$9),0)","v":0},{"$f":"IF(L10=0,\"-\",IFERROR(INDEX('Эрсдэлийн матриц'!$G$28:$G$53,MATCH(SUMPRODUCT(('Эрсдэлийн матриц'!$B$28:$B$53<=L10)*('Эрсдэлийн матриц'!$C$28:$C$53>=L10)*('Эрсдэлийн матриц'!$D$28:$D$53<=K10)*('Эрсдэлийн матриц'!$E$28:$E$53>=K10)*('Эрсдэлийн матриц'!$F$28:$F$53)),'Эрсдэлийн матриц'!$F$28:$F$53,0)),0))","v":"-"}]
[null,null,null,null,null,null,null,null,{"$f":"IFERROR((((INDEX(Таамаглал!$F$28:$F$38,MATCH(E11,Vulnerabilties,0))*Таамаглал!$F$10)+(INDEX(Таамаглал!$F$28:$F$38,MATCH(F11,Vulnerabilties,0))*Таамаглал!$F$10)+(INDEX(Таамаглал!$F$28:$F$38,MATCH(G11,Vulnerabilties,0))*Таамаглал!$F$10)+(INDEX(Таамаглал!$F$28:$F$38,MATCH(H11,Vulnerabilties,0))*Таамаглал!$F$10))*Таамаглал!$F$9),0)","v":0},null,{"$f":"IFERROR(INDEX(Таамаглал!$F$15:$F$25,MATCH(D11,Exposures,0)*Таамаглал!$F$8+(I11/Таамаглал!$F$9)*Таамаглал!$F$8),0)","v":0},{"$f":"IFERROR((K11*Таамаглал!$F$9)-(INDEX(Таамаглал!$F$41:$F$51,MATCH(J11,Levels_of_response,0))*Таамаглал!$F$9),0)","v":0},{"$f":"IF(L11=0,\"-\",IFERROR(INDEX('Эрсдэлийн матриц'!$G$28:$G$53,MATCH(SUMPRODUCT(('Эрсдэлийн матриц'!$B$28:$B$53<=L11)*('Эрсдэлийн матриц'!$C$28:$C$53>=L11)*('Эрсдэлийн матриц'!$D$28:$D$53<=K11)*('Эрсдэлийн матриц'!$E$28:$E$53>=K11)*('Эрсдэлийн матриц'!$F$28:$F$53)),'Эрсдэлийн матриц'!$F$28:$F$53,0)),0))","v":"-"}]
[null,null,null,null,null,null,null,null,{"$f":"IFERROR((((INDEX(Таамаглал!$F$28:$F$38,MATCH(E12,Vulnerabilties,0))*Таамаглал!$F$10)+(INDEX(Таамаглал!$F$28:$F$38,MATCH(F12,Vulnerabilties,0))*Таамаглал!$F$10)+(INDEX(Таамаглал!$F$28:$F$38,MATCH(G12,Vulnerabilties,0))*Таамаглал!$F$10)+(INDEX(Таамаглал!$F$28:$F$38,MATCH(H12,Vulnerabilties,0))*Таамаглал!$F$10))*Таамаглал!$F$9),0)","v":0},null,{"$f":"IFERROR(INDEX(Таамаглал!$F$15:$F$25,MATCH(D12,Exposures,0)*Таамаглал!$F$8+(I12/Таамаглал!$F$9)*Таамаглал!$F$8),0)","v":0},{"$f":"IFERROR((K12*Таамаглал!$F$9)-(INDEX(Таамаглал!$F$41:$F$51,MATCH(J12,Levels_of_response,0))*Таамаглал!$F$9),0)","v":0},{"$f":"IF(L12=0,\"-\",IFERROR(INDEX('Эрсдэлийн матриц'!$G$28:$G$53,MATCH(SUMPRODUCT(('Эрсдэлийн матриц'!$B$28:$B$53<=L12)*('Эрсдэлийн матриц'!$C$28:$C$53>=L12)*('Эрсдэлийн матриц'!$D$28:$D$53<=K12)*('Эрсдэлийн матриц'!$E$28:$E$53>=K12)*('Эрсдэлийн матриц'!$F$28:$F$53)),'Эрсдэлийн матриц'!$F$28:$F$53,0)),0))","v":"-"}]
[null,"H2-Ус зүйн гаралтай аюул"]
[null,null,null,null,null,null,null,null,null,null,null,null,{"$f":"IF(L14=0,\"-\",IFERROR(INDEX('Эрсдэлийн матриц'!$G$28:$G$53,MATCH(SUMPRODUCT(('Эрсдэлийн матриц'!$B$28:$B$53<=L14)*('Эрсдэлийн матриц'!$C$28:$C$53>=L14)*('Эрсдэлийн матриц'!$D$28:$D$53<=K14)*('Эрсдэлийн матриц'!$E$28:$E$53>=K14)*('Эрсдэлийн матриц'!$F$28:$F$53)),'Эрсдэлийн матриц'!$F$28:$F$53,0)),0))","v":"-"}]
[null,null,null,null,null,null,null,null,{"$f":"IFERROR((((INDEX(Таамаглал!$F$28:$F$38,MATCH(E15,Vulnerabilties,0))*Таамаглал!$F$10)+(INDEX(Таамаглал!$F$28:$F$38,MATCH(F15,Vulnerabilties,0))*Таамаглал!$F$10)+(INDEX(Таамаглал!$F$28:$F$38,MATCH(G15,Vulnerabilties,0))*Таамаглал!$F$10)+(INDEX(Таамаглал!$F$28:$F$38,MATCH(H15,Vulnerabilties,0))*Таамаглал!$F$10))*Таамаглал!$F$9),0)","v":0},null,{"$f":"IFERROR(INDEX(Таамаглал!$F$15:$F$25,MATCH(D15,Exposures,0)*Таамаглал!$F$8+(I15/Таамаглал!$F$9)*Таамаглал!$F$8),0)","v":0},{"$f":"IFERROR((K15*Таамаглал!$F$9)-(INDEX(Таамаглал!$F$41:$F$51,MATCH(J15,Levels_of_response,0))*Таамаглал!$F$9),0)","v":0},{"$f":"IF(L15=0,\"-\",IFERROR(INDEX('Эрсдэлийн матриц'!$G$28:$G$53,MATCH(SUMPRODUCT(('Эрсдэлийн матриц'!$B$28:$B$53<=L15)*('Эрсдэлийн матриц'!$C$28:$C$53>=L15)*('Эрсдэлийн матриц'!$D$28:$D$53<=K15)*('Эрсдэлийн матриц'!$E$28:$E$53>=K15)*('Эрсдэлийн матриц'!$F$28:$F$53)),'Эрсдэлийн матриц'!$F$28:$F$53,0)),0))","v":"-"}]
[null,null,null,null,null,null,null,null,{"$f":"IFERROR((((INDEX(Таамаглал!$F$28:$F$38,MATCH(E16,Vulnerabilties,0))*Таамаглал!$F$10)+(INDEX(Таамаглал!$F$28:$F$38,MATCH(F16,Vulnerabilties,0))*Таамаглал!$F$10)+(INDEX(Таамаглал!$F$28:$F$38,MATCH(G16,Vulnerabilties,0))*Таамаглал!$F$10)+(INDEX(Таамаглал!$F$28:$F$38,MATCH(H16,Vulnerabilties,0))*Таамаглал!$F$10))*Таамаглал!$F$9),0)","v":0},null,{"$f":"IFERROR(INDEX(Таамаглал!$F$15:$F$25,MATCH(D16,Exposures,0)*Таамаглал!$F$8+(I16/Таамаглал!$F$9)*Таамаглал!$F$8),0)","v":0},{"$f":"IFERROR((K16*Таамаглал!$F$9)-(INDEX(Таамаглал!$F$41:$F$51,MATCH(J16,Levels_of_response,0))*Таамаглал!$F$9),0)","v":0},{"$f":"IF(L16=0,\"-\",IFERROR(INDEX('Эрсдэлийн матриц'!$G$28:$G$53,MATCH(SUMPRODUCT(('Эрсдэлийн матриц'!$B$28:$B$53<=L16)*('Эрсдэлийн матриц'!$C$28:$C$53>=L16)*('Эрсдэлийн матриц'!$D$28:$D$53<=K16)*('Эрсдэлийн матриц'!$E$28:$E$53>=K16)*('Эрсдэлийн матриц'!$F$28:$F$53)),'Эрсдэлийн матриц'!$F$28:$F$53,0)),0))","v":"-"}]
[null,null,null,null,null,null,null,null,{"$f":"IFERROR((((INDEX(Таамаглал!$F$28:$F$38,MATCH(E17,Vulnerabilties,0))*Таамаглал!$F$10)+(INDEX(Таамаглал!$F$28:$F$38,MATCH(F17,Vulnerabilties,0))*Таамаглал!$F$10)+(INDEX(Таамаглал!$F$28:$F$38,MATCH(G17,Vulnerabilties,0))*Таамаглал!$F$10)+(INDEX(Таамаглал!$F$28:$F$38,MATCH(H17,Vulnerabilties,0))*Таамаглал!$F$10))*Таамаглал!$F$9),0)","v":0},null,{"$f":"IFERROR(INDEX(Таамаглал!$F$15:$F$25,MATCH(D17,Exposures,0)*Таамаглал!$F$8+(I17/Таамаглал!$F$9)*Таамаглал!$F$8),0)","v":0},{"$f":"IFERROR((K17*Таамаглал!$F$9)-(INDEX(Таамаглал!$F$41:$F$51,MATCH(J17,Levels_of_response,0))*Таамаглал!$F$9),0)","v":0},{"$f":"IF(L17=0,\"-\",IFERROR(INDEX('Эрсдэлийн матриц'!$G$28:$G$53,MATCH(SUMPRODUCT(('Эрсдэлийн матриц'!$B$28:$B$53<=L17)*('Эрсдэлийн матриц'!$C$28:$C$53>=L17)*('Эрсдэлийн матриц'!$D$28:$D$53<=K17)*('Эрсдэлийн матриц'!$E$28:$E$53>=K17)*('Эрсдэлийн матриц'!$F$28:$F$53)),'Эрсдэлийн матриц'!$F$28:$F$53,0)),0))","v":"-"}]
[null,null,null,null,null,null,null,null,{"$f":"IFERROR((((INDEX(Таамаглал!$F$28:$F$38,MATCH(E18,Vulnerabilties,0))*Таамаглал!$F$10)+(INDEX(Таамаглал!$F$28:$F$38,MATCH(F18,Vulnerabilties,0))*Таамаглал!$F$10)+(INDEX(Таамаглал!$F$28:$F$38,MATCH(G18,Vulnerabilties,0))*Таамаглал!$F$10)+(INDEX(Таамаглал!$F$28:$F$38,MATCH(H18,Vulnerabilties,0))*Таамаглал!$F$10))*Таамаглал!$F$9),0)","v":0},null,{"$f":"IFERROR(INDEX(Таамаглал!$F$15:$F$25,MATCH(D18,Exposures,0)*Таамаглал!$F$8+(I18/Таамаглал!$F$9)*Таамаглал!$F$8),0)","v":0},{"$f":"IFERROR((K18*Таамаглал!$F$9)-(INDEX(Таамаглал!$F$41:$F$51,MATCH(J18,Levels_of_response,0))*Таамаглал!$F$9),0)","v":0},{"$f":"IF(L18=0,\"-\",IFERROR(INDEX('Эрсдэлийн матриц'!$G$28:$G$53,MATCH(SUMPRODUCT(('Эрсдэлийн матриц'!$B$28:$B$53<=L18)*('Эрсдэлийн матриц'!$C$28:$C$53>=L18)*('Эрсдэлийн матриц'!$D$28:$D$53<=K18)*('Эрсдэлийн матриц'!$E$28:$E$53>=K18)*('Эрсдэлийн матриц'!$F$28:$F$53)),'Эрсдэлийн матриц'!$F$28:$F$53,0)),0))","v":"-"}]
[null,"H3 - Цаг агаарын гаралтай аюул"]
[null,null,null,null,null,null,null,null,null,null,null,null,{"$f":"IF(L20=0,\"-\",IFERROR(INDEX('Эрсдэлийн матриц'!$G$28:$G$53,MATCH(SUMPRODUCT(('Эрсдэлийн матриц'!$B$28:$B$53<=L20)*('Эрсдэлийн матриц'!$C$28:$C$53>=L20)*('Эрсдэлийн матриц'!$D$28:$D$53<=K20)*('Эрсдэлийн матриц'!$E$28:$E$53>=K20)*('Эрсдэлийн матриц'!$F$28:$F$53)),'Эрсдэлийн матриц'!$F$28:$F$53,0)),0))","v":"-"}]
[null,null,null,null,null,null,null,null,{"$f":"IFERROR((((INDEX(Таамаглал!$F$28:$F$38,MATCH(E21,Vulnerabilties,0))*Таамаглал!$F$10)+(INDEX(Таамаглал!$F$28:$F$38,MATCH(F21,Vulnerabilties,0))*Таамаглал!$F$10)+(INDEX(Таамаглал!$F$28:$F$38,MATCH(G21,Vulnerabilties,0))*Таамаглал!$F$10)+(INDEX(Таамаглал!$F$28:$F$38,MATCH(H21,Vulnerabilties,0))*Таамаглал!$F$10))*Таамаглал!$F$9),0)","v":0},null,{"$f":"IFERROR(INDEX(Таамаглал!$F$15:$F$25,MATCH(D21,Exposures,0)*Таамаглал!$F$8+(I21/Таамаглал!$F$9)*Таамаглал!$F$8),0)","v":0},{"$f":"IFERROR((K21*Таамаглал!$F$9)-(INDEX(Таамаглал!$F$41:$F$51,MATCH(J21,Levels_of_response,0))*Таамаглал!$F$9),0)","v":0},{"$f":"IF(L21=0,\"-\",IFERROR(INDEX('Эрсдэлийн матриц'!$G$28:$G$53,MATCH(SUMPRODUCT(('Эрсдэлийн матриц'!$B$28:$B$53<=L21)*('Эрсдэлийн матриц'!$C$28:$C$53>=L21)*('Эрсдэлийн матриц'!$D$28:$D$53<=K21)*('Эрсдэлийн матриц'!$E$28:$E$53>=K21)*('Эрсдэлийн матриц'!$F$28:$F$53)),'Эрсдэлийн матриц'!$F$28:$F$53,0)),0))","v":"-"}]
[null,null,null,null,null,null,null,null,{"$f":"IFERROR((((INDEX(Таамаглал!$F$28:$F$38,MATCH(E22,Vulnerabilties,0))*Таамаглал!$F$10)+(INDEX(Таамаглал!$F$28:$F$38,MATCH(F22,Vulnerabilties,0))*Таамаглал!$F$10)+(INDEX(Таамаглал!$F$28:$F$38,MATCH(G22,Vulnerabilties,0))*Таамаглал!$F$10)+(INDEX(Таамаглал!$F$28:$F$38,MATCH(H22,Vulnerabilties,0))*Таамаглал!$F$10))*Таамаглал!$F$9),0)","v":0},null,{"$f":"IFERROR(INDEX(Таамаглал!$F$15:$F$25,MATCH(D22,Exposures,0)*Таамаглал!$F$8+(I22/Таамаглал!$F$9)*Таамаглал!$F$8),0)","v":0},{"$f":"IFERROR((K22*Таамаглал!$F$9)-(INDEX(Таамаглал!$F$41:$F$51,MATCH(J22,Levels_of_response,0))*Таамаглал!$F$9),0)","v":0},{"$f":"IF(L22=0,\"-\",IFERROR(INDEX('Эрсдэлийн матриц'!$G$28:$G$53,MATCH(SUMPRODUCT(('Эрсдэлийн матриц'!$B$28:$B$53<=L22)*('Эрсдэлийн матриц'!$C$28:$C$53>=L22)*('Эрсдэлийн матриц'!$D$28:$D$53<=K22)*('Эрсдэлийн матриц'!$E$28:$E$53>=K22)*('Эрсдэлийн матриц'!$F$28:$F$53)),'Эрсдэлийн матриц'!$F$28:$F$53,0)),0))","v":"-"}]
[null,null,null,null,null,null,null,null,{"$f":"IFERROR((((INDEX(Таамаглал!$F$28:$F$38,MATCH(E23,Vulnerabilties,0))*Таамаглал!$F$10)+(INDEX(Таамаглал!$F$28:$F$38,MATCH(F23,Vulnerabilties,0))*Таамаглал!$F$10)+(INDEX(Таамаглал!$F$28:$F$38,MATCH(G23,Vulnerabilties,0))*Таамаглал!$F$10)+(INDEX(Таамаглал!$F$28:$F$38,MATCH(H23,Vulnerabilties,0))*Таамаглал!$F$10))*Таамаглал!$F$9),0)","v":0},null,{"$f":"IFERROR(INDEX(Таамаглал!$F$15:$F$25,MATCH(D23,Exposures,0)*Таамаглал!$F$8+(I23/Таамаглал!$F$9)*Таамаглал!$F$8),0)","v":0},{"$f":"IFERROR((K23*Таамаглал!$F$9)-(INDEX(Таамаглал!$F$41:$F$51,MATCH(J23,Levels_of_response,0))*Таамаглал!$F$9),0)","v":0},{"$f":"IF(L23=0,\"-\",IFERROR(INDEX('Эрсдэлийн матриц'!$G$28:$G$53,MATCH(SUMPRODUCT(('Эрсдэлийн матриц'!$B$28:$B$53<=L23)*('Эрсдэлийн матриц'!$C$28:$C$53>=L23)*('Эрсдэлийн матриц'!$D$28:$D$53<=K23)*('Эрсдэлийн матриц'!$E$28:$E$53>=K23)*('Эрсдэлийн матриц'!$F$28:$F$53)),'Эрсдэлийн матриц'!$F$28:$F$53,0)),0))","v":"-"}]
[null,null,null,null,null,null,null,null,{"$f":"IFERROR((((INDEX(Таамаглал!$F$28:$F$38,MATCH(E24,Vulnerabilties,0))*Таамаглал!$F$10)+(INDEX(Таамаглал!$F$28:$F$38,MATCH(F24,Vulnerabilties,0))*Таамаглал!$F$10)+(INDEX(Таамаглал!$F$28:$F$38,MATCH(G24,Vulnerabilties,0))*Таамаглал!$F$10)+(INDEX(Таамаглал!$F$28:$F$38,MATCH(H24,Vulnerabilties,0))*Таамаглал!$F$10))*Таамаглал!$F$9),0)","v":0},null,{"$f":"IFERROR(INDEX(Таамаглал!$F$15:$F$25,MATCH(D24,Exposures,0)*Таамаглал!$F$8+(I24/Таамаглал!$F$9)*Таамаглал!$F$8),0)","v":0},{"$f":"IFERROR((K24*Таамаглал!$F$9)-(INDEX(Таамаглал!$F$41:$F$51,MATCH(J24,Levels_of_response,0))*Таамаглал!$F$9),0)","v":0},{"$f":"IF(L24=0,\"-\",IFERROR(INDEX('Эрсдэлийн матриц'!$G$28:$G$53,MATCH(SUMPRODUCT(('Эрсдэлийн матриц'!$B$28:$B$53<=L24)*('Эрсдэлийн матриц'!$C$28:$C$53>=L24)*('Эрсдэлийн матриц'!$D$28:$D$53<=K24)*('Эрсдэлийн матриц'!$E$28:$E$53>=K24)*('Эрсдэлийн матриц'!$F$28:$F$53)),'Эрсдэлийн матриц'!$F$28:$F$53,0)),0))","v":"-"}]
[null,"H4 - Уур амьсгалаас үүдэлтэй аюул"]
[null,null,null,null,null,null,null,null,{"$f":"IFERROR((((INDEX(Таамаглал!$F$28:$F$38,MATCH(E26,Vulnerabilties,0))*Таамаглал!$F$10)+(INDEX(Таамаглал!$F$28:$F$38,MATCH(F26,Vulnerabilties,0))*Таамаглал!$F$10)+(INDEX(Таамаглал!$F$28:$F$38,MATCH(G26,Vulnerabilties,0))*Таамаглал!$F$10)+(INDEX(Таамаглал!$F$28:$F$38,MATCH(H26,Vulnerabilties,0))*Таамаглал!$F$10))*Таамаглал!$F$9),0)","v":0},null,{"$f":"IFERROR(INDEX(Таамаглал!$F$15:$F$25,MATCH(D26,Exposures,0)*Таамаглал!$F$8+(I26/Таамаглал!$F$9)*Таамаглал!$F$8),0)","v":0},{"$f":"IFERROR((K26*Таамаглал!$F$9)-(INDEX(Таамаглал!$F$41:$F$51,MATCH(J26,Levels_of_response,0))*Таамаглал!$F$9),0)","v":0},{"$f":"IF(L26=0,\"-\",IFERROR(INDEX('Эрсдэлийн матриц'!$G$28:$G$53,MATCH(SUMPRODUCT(('Эрсдэлийн матриц'!$B$28:$B$53<=L26)*('Эрсдэлийн матриц'!$C$28:$C$53>=L26)*('Эрсдэлийн матриц'!$D$28:$D$53<=K26)*('Эрсдэлийн матриц'!$E$28:$E$53>=K26)*('Эрсдэлийн матриц'!$F$28:$F$53)),'Эрсдэлийн матриц'!$F$28:$F$53,0)),0))","v":"-"}]
[null,null,null,null,null,null,null,null,{"$f":"IFERROR((((INDEX(Таамаглал!$F$28:$F$38,MATCH(E27,Vulnerabilties,0))*Таамаглал!$F$10)+(INDEX(Таамаглал!$F$28:$F$38,MATCH(F27,Vulnerabilties,0))*Таамаглал!$F$10)+(INDEX(Таамаглал!$F$28:$F$38,MATCH(G27,Vulnerabilties,0))*Таамаглал!$F$10)+(INDEX(Таамаглал!$F$28:$F$38,MATCH(H27,Vulnerabilties,0))*Таамаглал!$F$10))*Таамаглал!$F$9),0)","v":0},null,{"$f":"IFERROR(INDEX(Таамаглал!$F$15:$F$25,MATCH(D27,Exposures,0)*Таамаглал!$F$8+(I27/Таамаглал!$F$9)*Таамаглал!$F$8),0)","v":0},{"$f":"IFERROR((K27*Таамаглал!$F$9)-(INDEX(Таамаглал!$F$41:$F$51,MATCH(J27,Levels_of_response,0))*Таамаглал!$F$9),0)","v":0},{"$f":"IF(L27=0,\"-\",IFERROR(INDEX('Эрсдэлийн матриц'!$G$28:$G$53,MATCH(SUMPRODUCT(('Эрсдэлийн матриц'!$B$28:$B$53<=L27)*('Эрсдэлийн матриц'!$C$28:$C$53>=L27)*('Эрсдэлийн матриц'!$D$28:$D$53<=K27)*('Эрсдэлийн матриц'!$E$28:$E$53>=K27)*('Эрсдэлийн матриц'!$F$28:$F$53)),'Эрсдэлийн матриц'!$F$28:$F$53,0)),0))","v":"-"}]
[null,null,null,null,null,null,null,null,{"$f":"IFERROR((((INDEX(Таамаглал!$F$28:$F$38,MATCH(E28,Vulnerabilties,0))*Таамаглал!$F$10)+(INDEX(Таамаглал!$F$28:$F$38,MATCH(F28,Vulnerabilties,0))*Таамаглал!$F$10)+(INDEX(Таамаглал!$F$28:$F$38,MATCH(G28,Vulnerabilties,0))*Таамаглал!$F$10)+(INDEX(Таамаглал!$F$28:$F$38,MATCH(H28,Vulnerabilties,0))*Таамаглал!$F$10))*Таамаглал!$F$9),0)","v":0},null,{"$f":"IFERROR(INDEX(Таамаглал!$F$15:$F$25,MATCH(D28,Exposures,0)*Таамаглал!$F$8+(I28/Таамаглал!$F$9)*Таамаглал!$F$8),0)","v":0},{"$f":"IFERROR((K28*Таамаглал!$F$9)-(INDEX(Таамаглал!$F$41:$F$51,MATCH(J28,Levels_of_response,0))*Таамаглал!$F$9),0)","v":0},{"$f":"IF(L28=0,\"-\",IFERROR(INDEX('Эрсдэлийн матриц'!$G$28:$G$53,MATCH(SUMPRODUCT(('Эрсдэлийн матриц'!$B$28:$B$53<=L28)*('Эрсдэлийн матриц'!$C$28:$C$53>=L28)*('Эрсдэлийн матриц'!$D$28:$D$53<=K28)*('Эрсдэлийн матриц'!$E$28:$E$53>=K28)*('Эрсдэлийн матриц'!$F$28:$F$53)),'Эрсдэлийн матриц'!$F$28:$F$53,0)),0))","v":"-"}]
[null,null,null,null,null,null,null,null,{"$f":"IFERROR((((INDEX(Таамаглал!$F$28:$F$38,MATCH(E29,Vulnerabilties,0))*Таамаглал!$F$10)+(INDEX(Таамаглал!$F$28:$F$38,MATCH(F29,Vulnerabilties,0))*Таамаглал!$F$10)+(INDEX(Таамаглал!$F$28:$F$38,MATCH(G29,Vulnerabilties,0))*Таамаглал!$F$10)+(INDEX(Таамаглал!$F$28:$F$38,MATCH(H29,Vulnerabilties,0))*Таамаглал!$F$10))*Таамаглал!$F$9),0)","v":0},null,{"$f":"IFERROR(INDEX(Таамаглал!$F$15:$F$25,MATCH(D29,Exposures,0)*Таамаглал!$F$8+(I29/Таамаглал!$F$9)*Таамаглал!$F$8),0)","v":0},{"$f":"IFERROR((K29*Таамаглал!$F$9)-(INDEX(Таамаглал!$F$41:$F$51,MATCH(J29,Levels_of_response,0))*Таамаглал!$F$9),0)","v":0},{"$f":"IF(L29=0,\"-\",IFERROR(INDEX('Эрсдэлийн матриц'!$G$28:$G$53,MATCH(SUMPRODUCT(('Эрсдэлийн матриц'!$B$28:$B$53<=L29)*('Эрсдэлийн матриц'!$C$28:$C$53>=L29)*('Эрсдэлийн матриц'!$D$28:$D$53<=K29)*('Эрсдэлийн матриц'!$E$28:$E$53>=K29)*('Эрсдэлийн матриц'!$F$28:$F$53)),'Эрсдэлийн матриц'!$F$28:$F$53,0)),0))","v":"-"}]
[null,null,null,null,null,null,null,null,{"$f":"IFERROR((((INDEX(Таамаглал!$F$28:$F$38,MATCH(E30,Vulnerabilties,0))*Таамаглал!$F$10)+(INDEX(Таамаглал!$F$28:$F$38,MATCH(F30,Vulnerabilties,0))*Таамаглал!$F$10)+(INDEX(Таамаглал!$F$28:$F$38,MATCH(G30,Vulnerabilties,0))*Таамаглал!$F$10)+(INDEX(Таамаглал!$F$28:$F$38,MATCH(H30,Vulnerabilties,0))*Таамаглал!$F$10))*Таамаглал!$F$9),0)","v":0},null,{"$f":"IFERROR(INDEX(Таамаглал!$F$15:$F$25,MATCH(D30,Exposures,0)*Таамаглал!$F$8+(I30/Таамаглал!$F$9)*Таамаглал!$F$8),0)","v":0},{"$f":"IFERROR((K30*Таамаглал!$F$9)-(INDEX(Таамаглал!$F$41:$F$51,MATCH(J30,Levels_of_response,0))*Таамаглал!$F$9),0)","v":0},{"$f":"IF(L30=0,\"-\",IFERROR(INDEX('Эрсдэлийн матриц'!$G$28:$G$53,MATCH(SUMPRODUCT(('Эрсдэлийн матриц'!$B$28:$B$53<=L30)*('Эрсдэлийн матриц'!$C$28:$C$53>=L30)*('Эрсдэлийн матриц'!$D$28:$D$53<=K30)*('Эрсдэлийн матриц'!$E$28:$E$53>=K30)*('Эрсдэлийн матриц'!$F$28:$F$53)),'Эрсдэлийн матриц'!$F$28:$F$53,0)),0))","v":"-"}]
[null,"H5 -Биологийн гаралтай аюул"]
[null,null,null,null,null,null,null,null,{"$f":"IFERROR((((INDEX(Таамаглал!$F$28:$F$38,MATCH(E32,Vulnerabilties,0))*Таамаглал!$F$10)+(INDEX(Таамаглал!$F$28:$F$38,MATCH(F32,Vulnerabilties,0))*Таамаглал!$F$10)+(INDEX(Таамаглал!$F$28:$F$38,MATCH(G32,Vulnerabilties,0))*Таамаглал!$F$10)+(INDEX(Таамаглал!$F$28:$F$38,MATCH(H32,Vulnerabilties,0))*Таамаглал!$F$10))*Таамаглал!$F$9),0)","v":0},null,{"$f":"IFERROR(INDEX(Таамаглал!$F$15:$F$25,MATCH(D32,Exposures,0)*Таамаглал!$F$8+(I32/Таамаглал!$F$9)*Таамаглал!$F$8),0)","v":0},{"$f":"IFERROR((K32*Таамаглал!$F$9)-(INDEX(Таамаглал!$F$41:$F$51,MATCH(J32,Levels_of_response,0))*Таамаглал!$F$9),0)","v":0},{"$f":"IF(L32=0,\"-\",IFERROR(INDEX('Эрсдэлийн матриц'!$G$28:$G$53,MATCH(SUMPRODUCT(('Эрсдэлийн матриц'!$B$28:$B$53<=L32)*('Эрсдэлийн матриц'!$C$28:$C$53>=L32)*('Эрсдэлийн матриц'!$D$28:$D$53<=K32)*('Эрсдэлийн матриц'!$E$28:$E$53>=K32)*('Эрсдэлийн матриц'!$F$28:$F$53)),'Эрсдэлийн матриц'!$F$28:$F$53,0)),0))","v":"-"}]
[null,null,null,null,null,null,null,null,{"$f":"IFERROR((((INDEX(Таамаглал!$F$28:$F$38,MATCH(E33,Vulnerabilties,0))*Таамаглал!$F$10)+(INDEX(Таамаглал!$F$28:$F$38,MATCH(F33,Vulnerabilties,0))*Таамаглал!$F$10)+(INDEX(Таамаглал!$F$28:$F$38,MATCH(G33,Vulnerabilties,0))*Таамаглал!$F$10)+(INDEX(Таамаглал!$F$28:$F$38,MATCH(H33,Vulnerabilties,0))*Таамаглал!$F$10))*Таамаглал!$F$9),0)","v":0},null,{"$f":"IFERROR(INDEX(Таамаглал!$F$15:$F$25,MATCH(D33,Exposures,0)*Таамаглал!$F$8+(I33/Таамаглал!$F$9)*Таамаглал!$F$8),0)","v":0},{"$f":"IFERROR((K33*Таамаглал!$F$9)-(INDEX(Таамаглал!$F$41:$F$51,MATCH(J33,Levels_of_response,0))*Таамаглал!$F$9),0)","v":0},{"$f":"IF(L33=0,\"-\",IFERROR(INDEX('Эрсдэлийн матриц'!$G$28:$G$53,MATCH(SUMPRODUCT(('Эрсдэлийн матриц'!$B$28:$B$53<=L33)*('Эрсдэлийн матриц'!$C$28:$C$53>=L33)*('Эрсдэлийн матриц'!$D$28:$D$53<=K33)*('Эрсдэлийн матриц'!$E$28:$E$53>=K33)*('Эрсдэлийн матриц'!$F$28:$F$53)),'Эрсдэлийн матриц'!$F$28:$F$53,0)),0))","v":"-"}]
[null,null,null,null,null,null,null,null,{"$f":"IFERROR((((INDEX(Таамаглал!$F$28:$F$38,MATCH(E34,Vulnerabilties,0))*Таамаглал!$F$10)+(INDEX(Таамаглал!$F$28:$F$38,MATCH(F34,Vulnerabilties,0))*Таамаглал!$F$10)+(INDEX(Таамаглал!$F$28:$F$38,MATCH(G34,Vulnerabilties,0))*Таамаглал!$F$10)+(INDEX(Таамаглал!$F$28:$F$38,MATCH(H34,Vulnerabilties,0))*Таамаглал!$F$10))*Таамаглал!$F$9),0)","v":0},null,{"$f":"IFERROR(INDEX(Таамаглал!$F$15:$F$25,MATCH(D34,Exposures,0)*Таамаглал!$F$8+(I34/Таамаглал!$F$9)*Таамаглал!$F$8),0)","v":0},{"$f":"IFERROR((K34*Таамаглал!$F$9)-(INDEX(Таамаглал!$F$41:$F$51,MATCH(J34,Levels_of_response,0))*Таамаглал!$F$9),0)","v":0},{"$f":"IF(L34=0,\"-\",IFERROR(INDEX('Эрсдэлийн матриц'!$G$28:$G$53,MATCH(SUMPRODUCT(('Эрсдэлийн матриц'!$B$28:$B$53<=L34)*('Эрсдэлийн матриц'!$C$28:$C$53>=L34)*('Эрсдэлийн матриц'!$D$28:$D$53<=K34)*('Эрсдэлийн матриц'!$E$28:$E$53>=K34)*('Эрсдэлийн матриц'!$F$28:$F$53)),'Эрсдэлийн матриц'!$F$28:$F$53,0)),0))","v":"-"}]
[null,null,null,null,null,null,null,null,{"$f":"IFERROR((((INDEX(Таамаглал!$F$28:$F$38,MATCH(E35,Vulnerabilties,0))*Таамаглал!$F$10)+(INDEX(Таамаглал!$F$28:$F$38,MATCH(F35,Vulnerabilties,0))*Таамаглал!$F$10)+(INDEX(Таамаглал!$F$28:$F$38,MATCH(G35,Vulnerabilties,0))*Таамаглал!$F$10)+(INDEX(Таамаглал!$F$28:$F$38,MATCH(H35,Vulnerabilties,0))*Таамаглал!$F$10))*Таамаглал!$F$9),0)","v":0},null,{"$f":"IFERROR(INDEX(Таамаглал!$F$15:$F$25,MATCH(D35,Exposures,0)*Таамаглал!$F$8+(I35/Таамаглал!$F$9)*Таамаглал!$F$8),0)","v":0},{"$f":"IFERROR((K35*Таамаглал!$F$9)-(INDEX(Таамаглал!$F$41:$F$51,MATCH(J35,Levels_of_response,0))*Таамаглал!$F$9),0)","v":0},{"$f":"IF(L35=0,\"-\",IFERROR(INDEX('Эрсдэлийн матриц'!$G$28:$G$53,MATCH(SUMPRODUCT(('Эрсдэлийн матриц'!$B$28:$B$53<=L35)*('Эрсдэлийн матриц'!$C$28:$C$53>=L35)*('Эрсдэлийн матриц'!$D$28:$D$53<=K35)*('Эрсдэлийн матриц'!$E$28:$E$53>=K35)*('Эрсдэлийн матриц'!$F$28:$F$53)),'Эрсдэлийн матриц'!$F$28:$F$53,0)),0))","v":"-"}]
[null,null,null,null,null,null,null,null,{"$f":"IFERROR((((INDEX(Таамаглал!$F$28:$F$38,MATCH(E36,Vulnerabilties,0))*Таамаглал!$F$10)+(INDEX(Таамаглал!$F$28:$F$38,MATCH(F36,Vulnerabilties,0))*Таамаглал!$F$10)+(INDEX(Таамаглал!$F$28:$F$38,MATCH(G36,Vulnerabilties,0))*Таамаглал!$F$10)+(INDEX(Таамаглал!$F$28:$F$38,MATCH(H36,Vulnerabilties,0))*Таамаглал!$F$10))*Таамаглал!$F$9),0)","v":0},null,{"$f":"IFERROR(INDEX(Таамаглал!$F$15:$F$25,MATCH(D36,Exposures,0)*Таамаглал!$F$8+(I36/Таамаглал!$F$9)*Таамаглал!$F$8),0)","v":0},{"$f":"IFERROR((K36*Таамаглал!$F$9)-(INDEX(Таамаглал!$F$41:$F$51,MATCH(J36,Levels_of_response,0))*Таамаглал!$F$9),0)","v":0},{"$f":"IF(L36=0,\"-\",IFERROR(INDEX('Эрсдэлийн матриц'!$G$28:$G$53,MATCH(SUMPRODUCT(('Эрсдэлийн матриц'!$B$28:$B$53<=L36)*('Эрсдэлийн матриц'!$C$28:$C$53>=L36)*('Эрсдэлийн матриц'!$D$28:$D$53<=K36)*('Эрсдэлийн матриц'!$E$28:$E$53>=K36)*('Эрсдэлийн матриц'!$F$28:$F$53)),'Эрсдэлийн матриц'!$F$28:$F$53,0)),0))","v":"-"}]
[null,"H6 - Дэлхийгээс гадна орших биетийн аюул"]
[null,null,null,null,null,null,null,null,{"$f":"IFERROR((((INDEX(Таамаглал!$F$28:$F$38,MATCH(E38,Vulnerabilties,0))*Таамаглал!$F$10)+(INDEX(Таамаглал!$F$28:$F$38,MATCH(F38,Vulnerabilties,0))*Таамаглал!$F$10)+(INDEX(Таамаглал!$F$28:$F$38,MATCH(G38,Vulnerabilties,0))*Таамаглал!$F$10)+(INDEX(Таамаглал!$F$28:$F$38,MATCH(H38,Vulnerabilties,0))*Таамаглал!$F$10))*Таамаглал!$F$9),0)","v":0},null,{"$f":"IFERROR(INDEX(Таамаглал!$F$15:$F$25,MATCH(D38,Exposures,0)*Таамаглал!$F$8+(I38/Таамаглал!$F$9)*Таамаглал!$F$8),0)","v":0},{"$f":"IFERROR((K38*Таамаглал!$F$9)-(INDEX(Таамаглал!$F$41:$F$51,MATCH(J38,Levels_of_response,0))*Таамаглал!$F$9),0)","v":0},{"$f":"IF(L38=0,\"-\",IFERROR(INDEX('Эрсдэлийн матриц'!$G$28:$G$53,MATCH(SUMPRODUCT(('Эрсдэлийн матриц'!$B$28:$B$53<=L38)*('Эрсдэлийн матриц'!$C$28:$C$53>=L38)*('Эрсдэлийн матриц'!$D$28:$D$53<=K38)*('Эрсдэлийн матриц'!$E$28:$E$53>=K38)*('Эрсдэлийн матриц'!$F$28:$F$53)),'Эрсдэлийн матриц'!$F$28:$F$53,0)),0))","v":"-"}]
[null,null,null,null,null,null,null,null,{"$f":"IFERROR((((INDEX(Таамаглал!$F$28:$F$38,MATCH(E39,Vulnerabilties,0))*Таамаглал!$F$10)+(INDEX(Таамаглал!$F$28:$F$38,MATCH(F39,Vulnerabilties,0))*Таамаглал!$F$10)+(INDEX(Таамаглал!$F$28:$F$38,MATCH(G39,Vulnerabilties,0))*Таамаглал!$F$10)+(INDEX(Таамаглал!$F$28:$F$38,MATCH(H39,Vulnerabilties,0))*Таамаглал!$F$10))*Таамаглал!$F$9),0)","v":0},null,{"$f":"IFERROR(INDEX(Таамаглал!$F$15:$F$25,MATCH(D39,Exposures,0)*Таамаглал!$F$8+(I39/Таамаглал!$F$9)*Таамаглал!$F$8),0)","v":0},{"$f":"IFERROR((K39*Таамаглал!$F$9)-(INDEX(Таамаглал!$F$41:$F$51,MATCH(J39,Levels_of_response,0))*Таамаглал!$F$9),0)","v":0},{"$f":"IF(L39=0,\"-\",IFERROR(INDEX('Эрсдэлийн матриц'!$G$28:$G$53,MATCH(SUMPRODUCT(('Эрсдэлийн матриц'!$B$28:$B$53<=L39)*('Эрсдэлийн матриц'!$C$28:$C$53>=L39)*('Эрсдэлийн матриц'!$D$28:$D$53<=K39)*('Эрсдэлийн матриц'!$E$28:$E$53>=K39)*('Эрсдэлийн матриц'!$F$28:$F$53)),'Эрсдэлийн матриц'!$F$28:$F$53,0)),0))","v":"-"}]
[null,null,null,null,null,null,null,null,{"$f":"IFERROR((((INDEX(Таамаглал!$F$28:$F$38,MATCH(E40,Vulnerabilties,0))*Таамаглал!$F$10)+(INDEX(Таамаглал!$F$28:$F$38,MATCH(F40,Vulnerabilties,0))*Таамаглал!$F$10)+(INDEX(Таамаглал!$F$28:$F$38,MATCH(G40,Vulnerabilties,0))*Таамаглал!$F$10)+(INDEX(Таамаглал!$F$28:$F$38,MATCH(H40,Vulnerabilties,0))*Таамаглал!$F$10))*Таамаглал!$F$9),0)","v":0},null,{"$f":"IFERROR(INDEX(Таамаглал!$F$15:$F$25,MATCH(D40,Exposures,0)*Таамаглал!$F$8+(I40/Таамаглал!$F$9)*Таамаглал!$F$8),0)","v":0},{"$f":"IFERROR((K40*Таамаглал!$F$9)-(INDEX(Таамаглал!$F$41:$F$51,MATCH(J40,Levels_of_response,0))*Таамаглал!$F$9),0)","v":0},{"$f":"IF(L40=0,\"-\",IFERROR(INDEX('Эрсдэлийн матриц'!$G$28:$G$53,MATCH(SUMPRODUCT(('Эрсдэлийн матриц'!$B$28:$B$53<=L40)*('Эрсдэлийн матриц'!$C$28:$C$53>=L40)*('Эрсдэлийн матриц'!$D$28:$D$53<=K40)*('Эрсдэлийн матриц'!$E$28:$E$53>=K40)*('Эрсдэлийн матриц'!$F$28:$F$53)),'Эрсдэлийн матриц'!$F$28:$F$53,0)),0))","v":"-"}]
[null,null,null,null,null,null,null,null,{"$f":"IFERROR((((INDEX(Таамаглал!$F$28:$F$38,MATCH(E41,Vulnerabilties,0))*Таамаглал!$F$10)+(INDEX(Таамаглал!$F$28:$F$38,MATCH(F41,Vulnerabilties,0))*Таамаглал!$F$10)+(INDEX(Таамаглал!$F$28:$F$38,MATCH(G41,Vulnerabilties,0))*Таамаглал!$F$10)+(INDEX(Таамаглал!$F$28:$F$38,MATCH(H41,Vulnerabilties,0))*Таамаглал!$F$10))*Таамаглал!$F$9),0)","v":0},null,{"$f":"IFERROR(INDEX(Таамаглал!$F$15:$F$25,MATCH(D41,Exposures,0)*Таамаглал!$F$8+(I41/Таамаглал!$F$9)*Таамаглал!$F$8),0)","v":0},{"$f":"IFERROR((K41*Таамаглал!$F$9)-(INDEX(Таамаглал!$F$41:$F$51,MATCH(J41,Levels_of_response,0))*Таамаглал!$F$9),0)","v":0},{"$f":"IF(L41=0,\"-\",IFERROR(INDEX('Эрсдэлийн матриц'!$G$28:$G$53,MATCH(SUMPRODUCT(('Эрсдэлийн матриц'!$B$28:$B$53<=L41)*('Эрсдэлийн матриц'!$C$28:$C$53>=L41)*('Эрсдэлийн матриц'!$D$28:$D$53<=K41)*('Эрсдэлийн матриц'!$E$28:$E$53>=K41)*('Эрсдэлийн матриц'!$F$28:$F$53)),'Эрсдэлийн матриц'!$F$28:$F$53,0)),0))","v":"-"}]
[null,null,null,null,null,null,null,null,{"$f":"IFERROR((((INDEX(Таамаглал!$F$28:$F$38,MATCH(E42,Vulnerabilties,0))*Таамаглал!$F$10)+(INDEX(Таамаглал!$F$28:$F$38,MATCH(F42,Vulnerabilties,0))*Таамаглал!$F$10)+(INDEX(Таамаглал!$F$28:$F$38,MATCH(G42,Vulnerabilties,0))*Таамаглал!$F$10)+(INDEX(Таамаглал!$F$28:$F$38,MATCH(H42,Vulnerabilties,0))*Таамаглал!$F$10))*Таамаглал!$F$9),0)","v":0},null,{"$f":"IFERROR(INDEX(Таамаглал!$F$15:$F$25,MATCH(D42,Exposures,0)*Таамаглал!$F$8+(I42/Таамаглал!$F$9)*Таамаглал!$F$8),0)","v":0},{"$f":"IFERROR((K42*Таамаглал!$F$9)-(INDEX(Таамаглал!$F$41:$F$51,MATCH(J42,Levels_of_response,0))*Таамаглал!$F$9),0)","v":0},{"$f":"IF(L42=0,\"-\",IFERROR(INDEX('Эрсдэлийн матриц'!$G$28:$G$53,MATCH(SUMPRODUCT(('Эрсдэлийн матриц'!$B$28:$B$53<=L42)*('Эрсдэлийн матриц'!$C$28:$C$53>=L42)*('Эрсдэлийн матриц'!$D$28:$D$53<=K42)*('Эрсдэлийн матриц'!$E$28:$E$53>=K42)*('Эрсдэлийн матриц'!$F$28:$F$53)),'Эрсдэлийн матриц'!$F$28:$F$53,0)),0))","v":"-"}]
[null,"H7 - Хүний үйл ажиллагаатай холбоотой аюул"]
[null,null,null,null,null,null,null,null,{"$f":"IFERROR((((INDEX(Таамаглал!$F$28:$F$38,MATCH(E44,Vulnerabilties,0))*Таамаглал!$F$10)+(INDEX(Таамаглал!$F$28:$F$38,MATCH(F44,Vulnerabilties,0))*Таамаглал!$F$10)+(INDEX(Таамаглал!$F$28:$F$38,MATCH(G44,Vulnerabilties,0))*Таамаглал!$F$10)+(INDEX(Таамаглал!$F$28:$F$38,MATCH(H44,Vulnerabilties,0))*Таамаглал!$F$10))*Таамаглал!$F$9),0)","v":0},null,{"$f":"IFERROR(INDEX(Таамаглал!$F$15:$F$25,MATCH(D44,Exposures,0)*Таамаглал!$F$8+(I44/Таамаглал!$F$9)*Таамаглал!$F$8),0)","v":0},{"$f":"IFERROR((K44*Таамаглал!$F$9)-(INDEX(Таамаглал!$F$41:$F$51,MATCH(J44,Levels_of_response,0))*Таамаглал!$F$9),0)","v":0},{"$f":"IF(L44=0,\"-\",IFERROR(INDEX('Эрсдэлийн матриц'!$G$28:$G$53,MATCH(SUMPRODUCT(('Эрсдэлийн матриц'!$B$28:$B$53<=L44)*('Эрсдэлийн матриц'!$C$28:$C$53>=L44)*('Эрсдэлийн матриц'!$D$28:$D$53<=K44)*('Эрсдэлийн матриц'!$E$28:$E$53>=K44)*('Эрсдэлийн матриц'!$F$28:$F$53)),'Эрсдэлийн матриц'!$F$28:$F$53,0)),0))","v":"-"}]
[null,null,null,null,null,null,null,null,{"$f":"IFERROR((((INDEX(Таамаглал!$F$28:$F$38,MATCH(E45,Vulnerabilties,0))*Таамаглал!$F$10)+(INDEX(Таамаглал!$F$28:$F$38,MATCH(F45,Vulnerabilties,0))*Таамаглал!$F$10)+(INDEX(Таамаглал!$F$28:$F$38,MATCH(G45,Vulnerabilties,0))*Таамаглал!$F$10)+(INDEX(Таамаглал!$F$28:$F$38,MATCH(H45,Vulnerabilties,0))*Таамаглал!$F$10))*Таамаглал!$F$9),0)","v":0},null,{"$f":"IFERROR(INDEX(Таамаглал!$F$15:$F$25,MATCH(D45,Exposures,0)*Таамаглал!$F$8+(I45/Таамаглал!$F$9)*Таамаглал!$F$8),0)","v":0},{"$f":"IFERROR((K45*Таамаглал!$F$9)-(INDEX(Таамаглал!$F$41:$F$51,MATCH(J45,Levels_of_response,0))*Таамаглал!$F$9),0)","v":0},{"$f":"IF(L45=0,\"-\",IFERROR(INDEX('Эрсдэлийн матриц'!$G$28:$G$53,MATCH(SUMPRODUCT(('Эрсдэлийн матриц'!$B$28:$B$53<=L45)*('Эрсдэлийн матриц'!$C$28:$C$53>=L45)*('Эрсдэлийн матриц'!$D$28:$D$53<=K45)*('Эрсдэлийн матриц'!$E$28:$E$53>=K45)*('Эрсдэлийн матриц'!$F$28:$F$53)),'Эрсдэлийн матриц'!$F$28:$F$53,0)),0))","v":"-"}]
[null,null,null,null,null,null,null,null,{"$f":"IFERROR((((INDEX(Таамаглал!$F$28:$F$38,MATCH(E46,Vulnerabilties,0))*Таамаглал!$F$10)+(INDEX(Таамаглал!$F$28:$F$38,MATCH(F46,Vulnerabilties,0))*Таамаглал!$F$10)+(INDEX(Таамаглал!$F$28:$F$38,MATCH(G46,Vulnerabilties,0))*Таамаглал!$F$10)+(INDEX(Таамаглал!$F$28:$F$38,MATCH(H46,Vulnerabilties,0))*Таамаглал!$F$10))*Таамаглал!$F$9),0)","v":0},null,{"$f":"IFERROR(INDEX(Таамаглал!$F$15:$F$25,MATCH(D46,Exposures,0)*Таамаглал!$F$8+(I46/Таамаглал!$F$9)*Таамаглал!$F$8),0)","v":0},{"$f":"IFERROR((K46*Таамаглал!$F$9)-(INDEX(Таамаглал!$F$41:$F$51,MATCH(J46,Levels_of_response,0))*Таамаглал!$F$9),0)","v":0},{"$f":"IF(L46=0,\"-\",IFERROR(INDEX('Эрсдэлийн матриц'!$G$28:$G$53,MATCH(SUMPRODUCT(('Эрсдэлийн матриц'!$B$28:$B$53<=L46)*('Эрсдэлийн матриц'!$C$28:$C$53>=L46)*('Эрсдэлийн матриц'!$D$28:$D$53<=K46)*('Эрсдэлийн матриц'!$E$28:$E$53>=K46)*('Эрсдэлийн матриц'!$F$28:$F$53)),'Эрсдэлийн матриц'!$F$28:$F$53,0)),0))","v":"-"}]
[null,null,null,null,null,null,null,null,{"$f":"IFERROR((((INDEX(Таамаглал!$F$28:$F$38,MATCH(E47,Vulnerabilties,0))*Таамаглал!$F$10)+(INDEX(Таамаглал!$F$28:$F$38,MATCH(F47,Vulnerabilties,0))*Таамаглал!$F$10)+(INDEX(Таамаглал!$F$28:$F$38,MATCH(G47,Vulnerabilties,0))*Таамаглал!$F$10)+(INDEX(Таамаглал!$F$28:$F$38,MATCH(H47,Vulnerabilties,0))*Таамаглал!$F$10))*Таамаглал!$F$9),0)","v":0},null,{"$f":"IFERROR(INDEX(Таамаглал!$F$15:$F$25,MATCH(D47,Exposures,0)*Таамаглал!$F$8+(I47/Таамаглал!$F$9)*Таамаглал!$F$8),0)","v":0},{"$f":"IFERROR((K47*Таамаглал!$F$9)-(INDEX(Таамаглал!$F$41:$F$51,MATCH(J47,Levels_of_response,0))*Таамаглал!$F$9),0)","v":0},{"$f":"IF(L47=0,\"-\",IFERROR(INDEX('Эрсдэлийн матриц'!$G$28:$G$53,MATCH(SUMPRODUCT(('Эрсдэлийн матриц'!$B$28:$B$53<=L47)*('Эрсдэлийн матриц'!$C$28:$C$53>=L47)*('Эрсдэлийн матриц'!$D$28:$D$53<=K47)*('Эрсдэлийн матриц'!$E$28:$E$53>=K47)*('Эрсдэлийн матриц'!$F$28:$F$53)),'Эрсдэлийн матриц'!$F$28:$F$53,0)),0))","v":"-"}]
[null,null,null,null,null,null,null,null,{"$f":"IFERROR((((INDEX(Таамаглал!$F$28:$F$38,MATCH(E48,Vulnerabilties,0))*Таамаглал!$F$10)+(INDEX(Таамаглал!$F$28:$F$38,MATCH(F48,Vulnerabilties,0))*Таамаглал!$F$10)+(INDEX(Таамаглал!$F$28:$F$38,MATCH(G48,Vulnerabilties,0))*Таамаглал!$F$10)+(INDEX(Таамаглал!$F$28:$F$38,MATCH(H48,Vulnerabilties,0))*Таамаглал!$F$10))*Таамаглал!$F$9),0)","v":0},null,{"$f":"IFERROR(INDEX(Таамаглал!$F$15:$F$25,MATCH(D48,Exposures,0)*Таамаглал!$F$8+(I48/Таамаглал!$F$9)*Таамаглал!$F$8),0)","v":0},{"$f":"IFERROR((K48*Таамаглал!$F$9)-(INDEX(Таамаглал!$F$41:$F$51,MATCH(J48,Levels_of_response,0))*Таамаглал!$F$9),0)","v":0},{"$f":"IF(L48=0,\"-\",IFERROR(INDEX('Эрсдэлийн матриц'!$G$28:$G$53,MATCH(SUMPRODUCT(('Эрсдэлийн матриц'!$B$28:$B$53<=L48)*('Эрсдэлийн матриц'!$C$28:$C$53>=L48)*('Эрсдэлийн матриц'!$D$28:$D$53<=K48)*('Эрсдэлийн матриц'!$E$28:$E$53>=K48)*('Эрсдэлийн матриц'!$F$28:$F$53)),'Эрсдэлийн матриц'!$F$28:$F$53,0)),0))","v":"-"}]
[null,"H8 - Бусад аюул (To be completed by User)"]
[null,null,null,null,null,null,null,null,{"$f":"IFERROR((((INDEX(Таамаглал!$F$28:$F$38,MATCH(E50,Vulnerabilties,0))*Таамаглал!$F$10)+(INDEX(Таамаглал!$F$28:$F$38,MATCH(F50,Vulnerabilties,0))*Таамаглал!$F$10)+(INDEX(Таамаглал!$F$28:$F$38,MATCH(G50,Vulnerabilties,0))*Таамаглал!$F$10)+(INDEX(Таамаглал!$F$28:$F$38,MATCH(H50,Vulnerabilties,0))*Таамаглал!$F$10))*Таамаглал!$F$9),0)","v":0},null,{"$f":"IFERROR(INDEX(Таамаглал!$F$15:$F$25,MATCH(D50,Exposures,0)*Таамаглал!$F$8+(I50/Таамаглал!$F$9)*Таамаглал!$F$8),0)","v":0},{"$f":"IFERROR((K50*Таамаглал!$F$9)-(INDEX(Таамаглал!$F$41:$F$51,MATCH(J50,Levels_of_response,0))*Таамаглал!$F$9),0)","v":0},{"$f":"IF(L50=0,\"-\",IFERROR(INDEX('Эрсдэлийн матриц'!$G$28:$G$53,MATCH(SUMPRODUCT(('Эрсдэлийн матриц'!$B$28:$B$53<=L50)*('Эрсдэлийн матриц'!$C$28:$C$53>=L50)*('Эрсдэлийн матриц'!$D$28:$D$53<=K50)*('Эрсдэлийн матриц'!$E$28:$E$53>=K50)*('Эрсдэлийн матриц'!$F$28:$F$53)),'Эрсдэлийн матриц'!$F$28:$F$53,0)),0))","v":"-"}]
[null,null,null,null,null,null,null,null,{"$f":"IFERROR((((INDEX(Таамаглал!$F$28:$F$38,MATCH(E51,Vulnerabilties,0))*Таамаглал!$F$10)+(INDEX(Таамаглал!$F$28:$F$38,MATCH(F51,Vulnerabilties,0))*Таамаглал!$F$10)+(INDEX(Таамаглал!$F$28:$F$38,MATCH(G51,Vulnerabilties,0))*Таамаглал!$F$10)+(INDEX(Таамаглал!$F$28:$F$38,MATCH(H51,Vulnerabilties,0))*Таамаглал!$F$10))*Таамаглал!$F$9),0)","v":0},null,{"$f":"IFERROR(INDEX(Таамаглал!$F$15:$F$25,MATCH(D51,Exposures,0)*Таамаглал!$F$8+(I51/Таамаглал!$F$9)*Таамаглал!$F$8),0)","v":0},{"$f":"IFERROR((K51*Таамаглал!$F$9)-(INDEX(Таамаглал!$F$41:$F$51,MATCH(J51,Levels_of_response,0))*Таамаглал!$F$9),0)","v":0},{"$f":"IF(L51=0,\"-\",IFERROR(INDEX('Эрсдэлийн матриц'!$G$28:$G$53,MATCH(SUMPRODUCT(('Эрсдэлийн матриц'!$B$28:$B$53<=L51)*('Эрсдэлийн матриц'!$C$28:$C$53>=L51)*('Эрсдэлийн матриц'!$D$28:$D$53<=K51)*('Эрсдэлийн матриц'!$E$28:$E$53>=K51)*('Эрсдэлийн матриц'!$F$28:$F$53)),'Эрсдэлийн матриц'!$F$28:$F$53,0)),0))","v":"-"}]
[null,null,null,null,null,null,null,null,{"$f":"IFERROR((((INDEX(Таамаглал!$F$28:$F$38,MATCH(E52,Vulnerabilties,0))*Таамаглал!$F$10)+(INDEX(Таамаглал!$F$28:$F$38,MATCH(F52,Vulnerabilties,0))*Таамаглал!$F$10)+(INDEX(Таамаглал!$F$28:$F$38,MATCH(G52,Vulnerabilties,0))*Таамаглал!$F$10)+(INDEX(Таамаглал!$F$28:$F$38,MATCH(H52,Vulnerabilties,0))*Таамаглал!$F$10))*Таамаглал!$F$9),0)","v":0},null,{"$f":"IFERROR(INDEX(Таамаглал!$F$15:$F$25,MATCH(D52,Exposures,0)*Таамаглал!$F$8+(I52/Таамаглал!$F$9)*Таамаглал!$F$8),0)","v":0},{"$f":"IFERROR((K52*Таамаглал!$F$9)-(INDEX(Таамаглал!$F$41:$F$51,MATCH(J52,Levels_of_response,0))*Таамаглал!$F$9),0)","v":0},{"$f":"IF(L52=0,\"-\",IFERROR(INDEX('Эрсдэлийн матриц'!$G$28:$G$53,MATCH(SUMPRODUCT(('Эрсдэлийн матриц'!$B$28:$B$53<=L52)*('Эрсдэлийн матриц'!$C$28:$C$53>=L52)*('Эрсдэлийн матриц'!$D$28:$D$53<=K52)*('Эрсдэлийн матриц'!$E$28:$E$53>=K52)*('Эрсдэлийн матриц'!$F$28:$F$53)),'Эрсдэлийн матриц'!$F$28:$F$53,0)),0))","v":"-"}]
[null,null,null,null,null,null,null,null,{"$f":"IFERROR((((INDEX(Таамаглал!$F$28:$F$38,MATCH(E53,Vulnerabilties,0))*Таамаглал!$F$10)+(INDEX(Таамаглал!$F$28:$F$38,MATCH(F53,Vulnerabilties,0))*Таамаглал!$F$10)+(INDEX(Таамаглал!$F$28:$F$38,MATCH(G53,Vulnerabilties,0))*Таамаглал!$F$10)+(INDEX(Таамаглал!$F$28:$F$38,MATCH(H53,Vulnerabilties,0))*Таамаглал!$F$10))*Таамаглал!$F$9),0)","v":0},null,{"$f":"IFERROR(INDEX(Таамаглал!$F$15:$F$25,MATCH(D53,Exposures,0)*Таамаглал!$F$8+(I53/Таамаглал!$F$9)*Таамаглал!$F$8),0)","v":0},{"$f":"IFERROR((K53*Таамаглал!$F$9)-(INDEX(Таамаглал!$F$41:$F$51,MATCH(J53,Levels_of_response,0))*Таамаглал!$F$9),0)","v":0},{"$f":"IF(L53=0,\"-\",IFERROR(INDEX('Эрсдэлийн матриц'!$G$28:$G$53,MATCH(SUMPRODUCT(('Эрсдэлийн матриц'!$B$28:$B$53<=L53)*('Эрсдэлийн матриц'!$C$28:$C$53>=L53)*('Эрсдэлийн матриц'!$D$28:$D$53<=K53)*('Эрсдэлийн матриц'!$E$28:$E$53>=K53)*('Эрсдэлийн матриц'!$F$28:$F$53)),'Эрсдэлийн матриц'!$F$28:$F$53,0)),0))","v":"-"}]
[null,null,null,null,null,null,null,null,{"$f":"IFERROR((((INDEX(Таамаглал!$F$28:$F$38,MATCH(E54,Vulnerabilties,0))*Таамаглал!$F$10)+(INDEX(Таамаглал!$F$28:$F$38,MATCH(F54,Vulnerabilties,0))*Таамаглал!$F$10)+(INDEX(Таамаглал!$F$28:$F$38,MATCH(G54,Vulnerabilties,0))*Таамаглал!$F$10)+(INDEX(Таамаглал!$F$28:$F$38,MATCH(H54,Vulnerabilties,0))*Таамаглал!$F$10))*Таамаглал!$F$9),0)","v":0},null,{"$f":"IFERROR(INDEX(Таамаглал!$F$15:$F$25,MATCH(D54,Exposures,0)*Таамаглал!$F$8+(I54/Таамаглал!$F$9)*Таамаглал!$F$8),0)","v":0},{"$f":"IFERROR((K54*Таамаглал!$F$9)-(INDEX(Таамаглал!$F$41:$F$51,MATCH(J54,Levels_of_response,0))*Таамаглал!$F$9),0)","v":0},{"$f":"IF(L54=0,\"-\",IFERROR(INDEX('Эрсдэлийн матриц'!$G$28:$G$53,MATCH(SUMPRODUCT(('Эрсдэлийн матриц'!$B$28:$B$53<=L54)*('Эрсдэлийн матриц'!$C$28:$C$53>=L54)*('Эрсдэлийн матриц'!$D$28:$D$53<=K54)*('Эрсдэлийн матриц'!$E$28:$E$53>=K54)*('Эрсдэлийн матриц'!$F$28:$F$53)),'Эрсдэлийн матриц'!$F$28:$F$53,0)),0))","v":"-"}]

{"sheet":"Үнэлгээний оноо","index":7,"n_rows":48,"n_cols":13,"rows_kept":48,"cut":false,"hidden":false,"merged":[[25,1,29,1],[30,1,34,1],[35,1,39,1],[40,1,44,1],[5,0,6,0],[5,1,9,1],[10,1,14,1],[15,1,19,1],[20,1,24,1]]}
[{"$f":"MdlTle","v":"Гамшгийн эрсдэлийг тооцоолох түргэвчилсэн арга"}]
[{"$f":"MID(CELL(\"filename\",A1),FIND(\"]\",CELL(\"filename\",A1))+1,255)","v":"Үнэлгээний оноо"}]
[]
[]
[null,"Аюулын бүлэг/ дэд бүлэг","Гамшиг","Үүсэх аюулт үзэгдэл осол","Өртөнгийн зэрэглэл (1-10)",{"$f":"'Эрсдэлийн үнэлгээ'!E6","v":"Дэд бүтэц"},{"$f":"'Эрсдэлийн үнэлгээ'!F6","v":"Үйлдвэрлэлийн салбар"},{"$f":"'Эрсдэлийн үнэлгээ'!G6","v":"Тусгай болон үндсэн хэрэгцээний үйлчилгээ"},{"$f":"'Эрсдэлийн үнэлгээ'!H6","v":"Хүн ам, нийгмийн байдал"},"Нийт дүн - Эмзэг байдлын зэрэглэл\n(1-100)","Хариу арга хэмжээний өнөөгийн түвшин, чадавх      (1-10)","Магадлалын зэрэглэлийн оноо \n(1-10)","Учрах хор уршгийн зэрэглэл \n(1-100)"]
[null,{"$f":"'Эрсдэлийн үнэлгээ'!$B$7","v":"H1-Геофизикийн гаралтай аюул"},{"$f":"'Эрсдэлийн үнэлгээ'!B8","v":0},{"$f":"'Эрсдэлийн үнэлгээ'!C8","v":0},{"$f":"IFERROR(INDEX(Таамаглал!$F$15:$F$25,MATCH('Эрсдэлийн үнэлгээ'!D8,Exposures,0)),0)","v":0},{"$f":"IFERROR(INDEX(Таамаглал!$F$15:$F$25,MATCH('Эрсдэлийн үнэлгээ'!E8,Exposures,0)),0)","v":0},{"$f":"IFERROR(INDEX(Таамаглал!$F$15:$F$25,MATCH('Эрсдэлийн үнэлгээ'!F8,Exposures,0)),0)","v":0},{"$f":"IFERROR(INDEX(Таамаглал!$F$15:$F$25,MATCH('Эрсдэлийн үнэлгээ'!G8,Exposures,0)),0)","v":0},{"$f":"IFERROR(INDEX(Таамаглал!$F$15:$F$25,MATCH('Эрсдэлийн үнэлгээ'!H8,Exposures,0)),0)","v":0},{"$f":"'Эрсдэлийн үнэлгээ'!I8","v":0},{"$f":"IFERROR(INDEX(Таамаглал!$F$41:$F$51,MATCH('Эрсдэлийн үнэлгээ'!J8,Levels_of_response,0)),0)","v":0},{"$f":"'Эрсдэлийн үнэлгээ'!K8","v":0},{"$f":"'Эрсдэлийн үнэлгээ'!L8","v":0}]
[null,null,{"$f":"'Эрсдэлийн үнэлгээ'!B9","v":0},{"$f":"'Эрсдэлийн үнэлгээ'!C9","v":0},{"$f":"IFERROR(INDEX(Таамаглал!$F$15:$F$25,MATCH('Эрсдэлийн үнэлгээ'!D9,Exposures,0)),0)","v":0},{"$f":"IFERROR(INDEX(Таамаглал!$F$15:$F$25,MATCH('Эрсдэлийн үнэлгээ'!E9,Exposures,0)),0)","v":0},{"$f":"IFERROR(INDEX(Таамаглал!$F$15:$F$25,MATCH('Эрсдэлийн үнэлгээ'!F9,Exposures,0)),0)","v":0},{"$f":"IFERROR(INDEX(Таамаглал!$F$15:$F$25,MATCH('Эрсдэлийн үнэлгээ'!G9,Exposures,0)),0)","v":0},{"$f":"IFERROR(INDEX(Таамаглал!$F$15:$F$25,MATCH('Эрсдэлийн үнэлгээ'!H9,Exposures,0)),0)","v":0},{"$f":"'Эрсдэлийн үнэлгээ'!I9","v":0},{"$f":"IFERROR(INDEX(Таамаглал!$F$41:$F$51,MATCH('Эрсдэлийн үнэлгээ'!J9,Levels_of_response,0)),0)","v":0},{"$f":"'Эрсдэлийн үнэлгээ'!K9","v":0},{"$f":"'Эрсдэлийн үнэлгээ'!L9","v":0}]
[null,null,{"$f":"'Эрсдэлийн үнэлгээ'!B10","v":0},{"$f":"'Эрсдэлийн үнэлгээ'!C10","v":0},{"$f":"IFERROR(INDEX(Таамаглал!$F$15:$F$25,MATCH('Эрсдэлийн үнэлгээ'!D10,Exposures,0)),0)","v":0},{"$f":"IFERROR(INDEX(Таамаглал!$F$15:$F$25,MATCH('Эрсдэлийн үнэлгээ'!E10,Exposures,0)),0)","v":0},{"$f":"IFERROR(INDEX(Таамаглал!$F$15:$F$25,MATCH('Эрсдэлийн үнэлгээ'!F10,Exposures,0)),0)","v":0},{"$f":"IFERROR(INDEX(Таамаглал!$F$15:$F$25,MATCH('Эрсдэлийн үнэлгээ'!G10,Exposures,0)),0)","v":0},{"$f":"IFERROR(INDEX(Таамаглал!$F$15:$F$25,MATCH('Эрсдэлийн үнэлгээ'!H10,Exposures,0)),0)","v":0},{"$f":"'Эрсдэлийн үнэлгээ'!I10","v":0},{"$f":"IFERROR(INDEX(Таамаглал!$F$41:$F$51,MATCH('Эрсдэлийн үнэлгээ'!J10,Levels_of_response,0)),0)","v":0},{"$f":"'Эрсдэлийн үнэлгээ'!K10","v":0},{"$f":"'Эрсдэлийн үнэлгээ'!L10","v":0}]
[null,null,{"$f":"'Эрсдэлийн үнэлгээ'!B11","v":0},{"$f":"'Эрсдэлийн үнэлгээ'!C11","v":0},{"$f":"IFERROR(INDEX(Таамаглал!$F$15:$F$25,MATCH('Эрсдэлийн үнэлгээ'!D11,Exposures,0)),0)","v":0},{"$f":"IFERROR(INDEX(Таамаглал!$F$15:$F$25,MATCH('Эрсдэлийн үнэлгээ'!E11,Exposures,0)),0)","v":0},{"$f":"IFERROR(INDEX(Таамаглал!$F$15:$F$25,MATCH('Эрсдэлийн үнэлгээ'!F11,Exposures,0)),0)","v":0},{"$f":"IFERROR(INDEX(Таамаглал!$F$15:$F$25,MATCH('Эрсдэлийн үнэлгээ'!G11,Exposures,0)),0)","v":0},{"$f":"IFERROR(INDEX(Таамаглал!$F$15:$F$25,MATCH('Эрсдэлийн үнэлгээ'!H11,Exposures,0)),0)","v":0},{"$f":"'Эрсдэлийн үнэлгээ'!I11","v":0},{"$f":"IFERROR(INDEX(Таамаглал!$F$41:$F$51,MATCH('Эрсдэлийн үнэлгээ'!J11,Levels_of_response,0)),0)","v":0},{"$f":"'Эрсдэлийн үнэлгээ'!K11","v":0},{"$f":"'Эрсдэлийн үнэлгээ'!L11","v":0}]
[null,null,{"$f":"'Эрсдэлийн үнэлгээ'!B12","v":0},{"$f":"'Эрсдэлийн үнэлгээ'!C12","v":0},{"$f":"IFERROR(INDEX(Таамаглал!$F$15:$F$25,MATCH('Эрсдэлийн үнэлгээ'!D12,Exposures,0)),0)","v":0},{"$f":"IFERROR(INDEX(Таамаглал!$F$15:$F$25,MATCH('Эрсдэлийн үнэлгээ'!E12,Exposures,0)),0)","v":0},{"$f":"IFERROR(INDEX(Таамаглал!$F$15:$F$25,MATCH('Эрсдэлийн үнэлгээ'!F12,Exposures,0)),0)","v":0},{"$f":"IFERROR(INDEX(Таамаглал!$F$15:$F$25,MATCH('Эрсдэлийн үнэлгээ'!G12,Exposures,0)),0)","v":0},{"$f":"IFERROR(INDEX(Таамаглал!$F$15:$F$25,MATCH('Эрсдэлийн үнэлгээ'!H12,Exposures,0)),0)","v":0},{"$f":"'Эрсдэлийн үнэлгээ'!I12","v":0},{"$f":"IFERROR(INDEX(Таамаглал!$F$41:$F$51,MATCH('Эрсдэлийн үнэлгээ'!J12,Levels_of_response,0)),0)","v":0},{"$f":"'Эрсдэлийн үнэлгээ'!K12","v":0},{"$f":"'Эрсдэлийн үнэлгээ'!L12","v":0}]
[null,{"$f":"'Эрсдэлийн үнэлгээ'!$B$13","v":"H2-Ус зүйн гаралтай аюул"},null,{"$f":"'Эрсдэлийн үнэлгээ'!C14","v":0},{"$f":"IFERROR(INDEX(Таамаглал!$F$15:$F$25,MATCH('Эрсдэлийн үнэлгээ'!D14,Exposures,0)),0)","v":0},{"$f":"IFERROR(INDEX(Таамаглал!$F$15:$F$25,MATCH('Эрсдэлийн үнэлгээ'!E14,Exposures,0)),0)","v":0},{"$f":"IFERROR(INDEX(Таамаглал!$F$15:$F$25,MATCH('Эрсдэлийн үнэлгээ'!F14,Exposures,0)),0)","v":0},{"$f":"IFERROR(INDEX(Таамаглал!$F$15:$F$25,MATCH('Эрсдэлийн үнэлгээ'!G14,Exposures,0)),0)","v":0},{"$f":"IFERROR(INDEX(Таамаглал!$F$15:$F$25,MATCH('Эрсдэлийн үнэлгээ'!H14,Exposures,0)),0)","v":0},{"$f":"'Эрсдэлийн үнэлгээ'!I14","v":0},{"$f":"IFERROR(INDEX(Таамаглал!$F$41:$F$51,MATCH('Эрсдэлийн үнэлгээ'!J14,Levels_of_response,0)),0)","v":0},{"$f":"'Эрсдэлийн үнэлгээ'!K14","v":0},{"$f":"'Эрсдэлийн үнэлгээ'!L14","v":0}]
[null,null,null,{"$f":"'Эрсдэлийн үнэлгээ'!C15","v":0},{"$f":"IFERROR(INDEX(Таамаглал!$F$15:$F$25,MATCH('Эрсдэлийн үнэлгээ'!D15,Exposures,0)),0)","v":0},{"$f":"IFERROR(INDEX(Таамаглал!$F$15:$F$25,MATCH('Эрсдэлийн үнэлгээ'!E15,Exposures,0)),0)","v":0},{"$f":"IFERROR(INDEX(Таамаглал!$F$15:$F$25,MATCH('Эрсдэлийн үнэлгээ'!F15,Exposures,0)),0)","v":0},{"$f":"IFERROR(INDEX(Таамаглал!$F$15:$F$25,MATCH('Эрсдэлийн үнэлгээ'!G15,Exposures,0)),0)","v":0},{"$f":"IFERROR(INDEX(Таамаглал!$F$15:$F$25,MATCH('Эрсдэлийн үнэлгээ'!H15,Exposures,0)),0)","v":0},{"$f":"'Эрсдэлийн үнэлгээ'!I15","v":0},{"$f":"IFERROR(INDEX(Таамаглал!$F$41:$F$51,MATCH('Эрсдэлийн үнэлгээ'!J15,Levels_of_response,0)),0)","v":0},{"$f":"'Эрсдэлийн үнэлгээ'!K15","v":0},{"$f":"'Эрсдэлийн үнэлгээ'!L15","v":0}]
[null,null,null,{"$f":"'Эрсдэлийн үнэлгээ'!C16","v":0},{"$f":"IFERROR(INDEX(Таамаглал!$F$15:$F$25,MATCH('Эрсдэлийн үнэлгээ'!D16,Exposures,0)),0)","v":0},{"$f":"IFERROR(INDEX(Таамаглал!$F$15:$F$25,MATCH('Эрсдэлийн үнэлгээ'!E16,Exposures,0)),0)","v":0},{"$f":"IFERROR(INDEX(Таамаглал!$F$15:$F$25,MATCH('Эрсдэлийн үнэлгээ'!F16,Exposures,0)),0)","v":0},{"$f":"IFERROR(INDEX(Таамаглал!$F$15:$F$25,MATCH('Эрсдэлийн үнэлгээ'!G16,Exposures,0)),0)","v":0},{"$f":"IFERROR(INDEX(Таамаглал!$F$15:$F$25,MATCH('Эрсдэлийн үнэлгээ'!H16,Exposures,0)),0)","v":0},{"$f":"'Эрсдэлийн үнэлгээ'!I16","v":0},{"$f":"IFERROR(INDEX(Таамаглал!$F$41:$F$51,MATCH('Эрсдэлийн үнэлгээ'!J16,Levels_of_response,0)),0)","v":0},{"$f":"'Эрсдэлийн үнэлгээ'!K16","v":0},{"$f":"'Эрсдэлийн үнэлгээ'!L16","v":0}]
[null,null,null,{"$f":"'Эрсдэлийн үнэлгээ'!C17","v":0},{"$f":"IFERROR(INDEX(Таамаглал!$F$15:$F$25,MATCH('Эрсдэлийн үнэлгээ'!D17,Exposures,0)),0)","v":0},{"$f":"IFERROR(INDEX(Таамаглал!$F$15:$F$25,MATCH('Эрсдэлийн үнэлгээ'!E17,Exposures,0)),0)","v":0},{"$f":"IFERROR(INDEX(Таамаглал!$F$15:$F$25,MATCH('Эрсдэлийн үнэлгээ'!F17,Exposures,0)),0)","v":0},{"$f":"IFERROR(INDEX(Таамаглал!$F$15:$F$25,MATCH('Эрсдэлийн үнэлгээ'!G17,Exposures,0)),0)","v":0},{"$f":"IFERROR(INDEX(Таамаглал!$F$15:$F$25,MATCH('Эрсдэлийн үнэлгээ'!H17,Exposures,0)),0)","v":0},{"$f":"'Эрсдэлийн үнэлгээ'!I17","v":0},{"$f":"IFERROR(INDEX(Таамаглал!$F$41:$F$51,MATCH('Эрсдэлийн үнэлгээ'!J17,Levels_of_response,0)),0)","v":0},{"$f":"'Эрсдэлийн үнэлгээ'!K17","v":0},{"$f":"'Эрсдэлийн үнэлгээ'!L17","v":0}]
[null,null,null,{"$f":"'Эрсдэлийн үнэлгээ'!C18","v":0},{"$f":"IFERROR(INDEX(Таамаглал!$F$15:$F$25,MATCH('Эрсдэлийн үнэлгээ'!D18,Exposures,0)),0)","v":0},{"$f":"IFERROR(INDEX(Таамаглал!$F$15:$F$25,MATCH('Эрсдэлийн үнэлгээ'!E18,Exposures,0)),0)","v":0},{"$f":"IFERROR(INDEX(Таамаглал!$F$15:$F$25,MATCH('Эрсдэлийн үнэлгээ'!F18,Exposures,0)),0)","v":0},{"$f":"IFERROR(INDEX(Таамаглал!$F$15:$F$25,MATCH('Эрсдэлийн үнэлгээ'!G18,Exposures,0)),0)","v":0},{"$f":"IFERROR(INDEX(Таамаглал!$F$15:$F$25,MATCH('Эрсдэлийн үнэлгээ'!H18,Exposures,0)),0)","v":0},{"$f":"'Эрсдэлийн үнэлгээ'!I18","v":0},{"$f":"IFERROR(INDEX(Таамаглал!$F$41:$F$51,MATCH('Эрсдэлийн үнэлгээ'!J18,Levels_of_response,0)),0)","v":0},{"$f":"'Эрсдэлийн үнэлгээ'!K18","v":0},{"$f":"'Эрсдэлийн үнэлгээ'!L18","v":0}]
[null,{"$f":"'Эрсдэлийн үнэлгээ'!$B$19","v":"H3 - Цаг агаарын гаралтай аюул"},null,{"$f":"'Эрсдэлийн үнэлгээ'!C20","v":0},{"$f":"IFERROR(INDEX(Таамаглал!$F$15:$F$25,MATCH('Эрсдэлийн үнэлгээ'!D20,Exposures,0)),0)","v":0},{"$f":"IFERROR(INDEX(Таамаглал!$F$15:$F$25,MATCH('Эрсдэлийн үнэлгээ'!E20,Exposures,0)),0)","v":0},{"$f":"IFERROR(INDEX(Таамаглал!$F$15:$F$25,MATCH('Эрсдэлийн үнэлгээ'!F20,Exposures,0)),0)","v":0},{"$f":"IFERROR(INDEX(Таамаглал!$F$15:$F$25,MATCH('Эрсдэлийн үнэлгээ'!G20,Exposures,0)),0)","v":0},{"$f":"IFERROR(INDEX(Таамаглал!$F$15:$F$25,MATCH('Эрсдэлийн үнэлгээ'!H20,Exposures,0)),0)","v":0},{"$f":"'Эрсдэлийн үнэлгээ'!I20","v":0},{"$f":"IFERROR(INDEX(Таамаглал!$F$41:$F$51,MATCH('Эрсдэлийн үнэлгээ'!J20,Levels_of_response,0)),0)","v":0},{"$f":"'Эрсдэлийн үнэлгээ'!K20","v":0},{"$f":"'Эрсдэлийн үнэлгээ'!L20","v":0}]
[null,null,null,{"$f":"'Эрсдэлийн үнэлгээ'!C21","v":0},{"$f":"IFERROR(INDEX(Таамаглал!$F$15:$F$25,MATCH('Эрсдэлийн үнэлгээ'!D21,Exposures,0)),0)","v":0},{"$f":"IFERROR(INDEX(Таамаглал!$F$15:$F$25,MATCH('Эрсдэлийн үнэлгээ'!E21,Exposures,0)),0)","v":0},{"$f":"IFERROR(INDEX(Таамаглал!$F$15:$F$25,MATCH('Эрсдэлийн үнэлгээ'!F21,Exposures,0)),0)","v":0},{"$f":"IFERROR(INDEX(Таамаглал!$F$15:$F$25,MATCH('Эрсдэлийн үнэлгээ'!G21,Exposures,0)),0)","v":0},{"$f":"IFERROR(INDEX(Таамаглал!$F$15:$F$25,MATCH('Эрсдэлийн үнэлгээ'!H21,Exposures,0)),0)","v":0},{"$f":"'Эрсдэлийн үнэлгээ'!I21","v":0},{"$f":"IFERROR(INDEX(Таамаглал!$F$41:$F$51,MATCH('Эрсдэлийн үнэлгээ'!J21,Levels_of_response,0)),0)","v":0},{"$f":"'Эрсдэлийн үнэлгээ'!K21","v":0},{"$f":"'Эрсдэлийн үнэлгээ'!L21","v":0}]
[null,null,null,{"$f":"'Эрсдэлийн үнэлгээ'!C22","v":0},{"$f":"IFERROR(INDEX(Таамаглал!$F$15:$F$25,MATCH('Эрсдэлийн үнэлгээ'!D22,Exposures,0)),0)","v":0},{"$f":"IFERROR(INDEX(Таамаглал!$F$15:$F$25,MATCH('Эрсдэлийн үнэлгээ'!E22,Exposures,0)),0)","v":0},{"$f":"IFERROR(INDEX(Таамаглал!$F$15:$F$25,MATCH('Эрсдэлийн үнэлгээ'!F22,Exposures,0)),0)","v":0},{"$f":"IFERROR(INDEX(Таамаглал!$F$15:$F$25,MATCH('Эрсдэлийн үнэлгээ'!G22,Exposures,0)),0)","v":0},{"$f":"IFERROR(INDEX(Таамаглал!$F$15:$F$25,MATCH('Эрсдэлийн үнэлгээ'!H22,Exposures,0)),0)","v":0},{"$f":"'Эрсдэлийн үнэлгээ'!I22","v":0},{"$f":"IFERROR(INDEX(Таамаглал!$F$41:$F$51,MATCH('Эрсдэлийн үнэлгээ'!J22,Levels_of_response,0)),0)","v":0},{"$f":"'Эрсдэлийн үнэлгээ'!K22","v":0},{"$f":"'Эрсдэлийн үнэлгээ'!L22","v":0}]
[null,null,null,{"$f":"'Эрсдэлийн үнэлгээ'!C23","v":0},{"$f":"IFERROR(INDEX(Таамаглал!$F$15:$F$25,MATCH('Эрсдэлийн үнэлгээ'!D23,Exposures,0)),0)","v":0},{"$f":"IFERROR(INDEX(Таамаглал!$F$15:$F$25,MATCH('Эрсдэлийн үнэлгээ'!E23,Exposures,0)),0)","v":0},{"$f":"IFERROR(INDEX(Таамаглал!$F$15:$F$25,MATCH('Эрсдэлийн үнэлгээ'!F23,Exposures,0)),0)","v":0},{"$f":"IFERROR(INDEX(Таамаглал!$F$15:$F$25,MATCH('Эрсдэлийн үнэлгээ'!G23,Exposures,0)),0)","v":0},{"$f":"IFERROR(INDEX(Таамаглал!$F$15:$F$25,MATCH('Эрсдэлийн үнэлгээ'!H23,Exposures,0)),0)","v":0},{"$f":"'Эрсдэлийн үнэлгээ'!I23","v":0},{"$f":"IFERROR(INDEX(Таамаглал!$F$41:$F$51,MATCH('Эрсдэлийн үнэлгээ'!J23,Levels_of_response,0)),0)","v":0},{"$f":"'Эрсдэлийн үнэлгээ'!K23","v":0},{"$f":"'Эрсдэлийн үнэлгээ'!L23","v":0}]
[null,null,null,{"$f":"'Эрсдэлийн үнэлгээ'!C24","v":0},{"$f":"IFERROR(INDEX(Таамаглал!$F$15:$F$25,MATCH('Эрсдэлийн үнэлгээ'!D24,Exposures,0)),0)","v":0},{"$f":"IFERROR(INDEX(Таамаглал!$F$15:$F$25,MATCH('Эрсдэлийн үнэлгээ'!E24,Exposures,0)),0)","v":0},{"$f":"IFERROR(INDEX(Таамаглал!$F$15:$F$25,MATCH('Эрсдэлийн үнэлгээ'!F24,Exposures,0)),0)","v":0},{"$f":"IFERROR(INDEX(Таамаглал!$F$15:$F$25,MATCH('Эрсдэлийн үнэлгээ'!G24,Exposures,0)),0)","v":0},{"$f":"IFERROR(INDEX(Таамаглал!$F$15:$F$25,MATCH('Эрсдэлийн үнэлгээ'!H24,Exposures,0)),0)","v":0},{"$f":"'Эрсдэлийн үнэлгээ'!I24","v":0},{"$f":"IFERROR(INDEX(Таамаглал!$F$41:$F$51,MATCH('Эрсдэлийн үнэлгээ'!J24,Levels_of_response,0)),0)","v":0},{"$f":"'Эрсдэлийн үнэлгээ'!K24","v":0},{"$f":"'Эрсдэлийн үнэлгээ'!L24","v":0}]
[null,{"$f":"'Эрсдэлийн үнэлгээ'!B25","v":"H4 - Уур амьсгалаас үүдэлтэй аюул"},null,{"$f":"'Эрсдэлийн үнэлгээ'!C26","v":0},{"$f":"IFERROR(INDEX(Таамаглал!$F$15:$F$25,MATCH('Эрсдэлийн үнэлгээ'!D26,Exposures,0)),0)","v":0},{"$f":"IFERROR(INDEX(Таамаглал!$F$15:$F$25,MATCH('Эрсдэлийн үнэлгээ'!E26,Exposures,0)),0)","v":0},{"$f":"IFERROR(INDEX(Таамаглал!$F$15:$F$25,MATCH('Эрсдэлийн үнэлгээ'!F26,Exposures,0)),0)","v":0},{"$f":"IFERROR(INDEX(Таамаглал!$F$15:$F$25,MATCH('Эрсдэлийн үнэлгээ'!G26,Exposures,0)),0)","v":0},{"$f":"IFERROR(INDEX(Таамаглал!$F$15:$F$25,MATCH('Эрсдэлийн үнэлгээ'!H26,Exposures,0)),0)","v":0},{"$f":"'Эрсдэлийн үнэлгээ'!I26","v":0},{"$f":"IFERROR(INDEX(Таамаглал!$F$41:$F$51,MATCH('Эрсдэлийн үнэлгээ'!J26,Levels_of_response,0)),0)","v":0},{"$f":"'Эрсдэлийн үнэлгээ'!K26","v":0},{"$f":"'Эрсдэлийн үнэлгээ'!L26","v":0}]
[null,null,null,{"$f":"'Эрсдэлийн үнэлгээ'!C27","v":0},{"$f":"IFERROR(INDEX(Таамаглал!$F$15:$F$25,MATCH('Эрсдэлийн үнэлгээ'!D27,Exposures,0)),0)","v":0},{"$f":"IFERROR(INDEX(Таамаглал!$F$15:$F$25,MATCH('Эрсдэлийн үнэлгээ'!E27,Exposures,0)),0)","v":0},{"$f":"IFERROR(INDEX(Таамаглал!$F$15:$F$25,MATCH('Эрсдэлийн үнэлгээ'!F27,Exposures,0)),0)","v":0},{"$f":"IFERROR(INDEX(Таамаглал!$F$15:$F$25,MATCH('Эрсдэлийн үнэлгээ'!G27,Exposures,0)),0)","v":0},{"$f":"IFERROR(INDEX(Таамаглал!$F$15:$F$25,MATCH('Эрсдэлийн үнэлгээ'!H27,Exposures,0)),0)","v":0},{"$f":"'Эрсдэлийн үнэлгээ'!I27","v":0},{"$f":"IFERROR(INDEX(Таамаглал!$F$41:$F$51,MATCH('Эрсдэлийн үнэлгээ'!J27,Levels_of_response,0)),0)","v":0},{"$f":"'Эрсдэлийн үнэлгээ'!K27","v":0},{"$f":"'Эрсдэлийн үнэлгээ'!L27","v":0}]
[null,null,null,{"$f":"'Эрсдэлийн үнэлгээ'!C28","v":0},{"$f":"IFERROR(INDEX(Таамаглал!$F$15:$F$25,MATCH('Эрсдэлийн үнэлгээ'!D28,Exposures,0)),0)","v":0},{"$f":"IFERROR(INDEX(Таамаглал!$F$15:$F$25,MATCH('Эрсдэлийн үнэлгээ'!E28,Exposures,0)),0)","v":0},{"$f":"IFERROR(INDEX(Таамаглал!$F$15:$F$25,MATCH('Эрсдэлийн үнэлгээ'!F28,Exposures,0)),0)","v":0},{"$f":"IFERROR(INDEX(Таамаглал!$F$15:$F$25,MATCH('Эрсдэлийн үнэлгээ'!G28,Exposures,0)),0)","v":0},{"$f":"IFERROR(INDEX(Таамаглал!$F$15:$F$25,MATCH('Эрсдэлийн үнэлгээ'!H28,Exposures,0)),0)","v":0},{"$f":"'Эрсдэлийн үнэлгээ'!I28","v":0},{"$f":"IFERROR(INDEX(Таамаглал!$F$41:$F$51,MATCH('Эрсдэлийн үнэлгээ'!J28,Levels_of_response,0)),0)","v":0},{"$f":"'Эрсдэлийн үнэлгээ'!K28","v":0},{"$f":"'Эрсдэлийн үнэлгээ'!L28","v":0}]
[null,null,null,{"$f":"'Эрсдэлийн үнэлгээ'!C29","v":0},{"$f":"IFERROR(INDEX(Таамаглал!$F$15:$F$25,MATCH('Эрсдэлийн үнэлгээ'!D29,Exposures,0)),0)","v":0},{"$f":"IFERROR(INDEX(Таамаглал!$F$15:$F$25,MATCH('Эрсдэлийн үнэлгээ'!E29,Exposures,0)),0)","v":0},{"$f":"IFERROR(INDEX(Таамаглал!$F$15:$F$25,MATCH('Эрсдэлийн үнэлгээ'!F29,Exposures,0)),0)","v":0},{"$f":"IFERROR(INDEX(Таамаглал!$F$15:$F$25,MATCH('Эрсдэлийн үнэлгээ'!G29,Exposures,0)),0)","v":0},{"$f":"IFERROR(INDEX(Таамаглал!$F$15:$F$25,MATCH('Эрсдэлийн үнэлгээ'!H29,Exposures,0)),0)","v":0},{"$f":"'Эрсдэлийн үнэлгээ'!I29","v":0},{"$f":"IFERROR(INDEX(Таамаглал!$F$41:$F$51,MATCH('Эрсдэлийн үнэлгээ'!J29,Levels_of_response,0)),0)","v":0},{"$f":"'Эрсдэлийн үнэлгээ'!K29","v":0},{"$f":"'Эрсдэлийн үнэлгээ'!L29","v":0}]
[null,null,null,{"$f":"'Эрсдэлийн үнэлгээ'!C30","v":0},{"$f":"IFERROR(INDEX(Таамаглал!$F$15:$F$25,MATCH('Эрсдэлийн үнэлгээ'!D30,Exposures,0)),0)","v":0},{"$f":"IFERROR(INDEX(Таамаглал!$F$15:$F$25,MATCH('Эрсдэлийн үнэлгээ'!E30,Exposures,0)),0)","v":0},{"$f":"IFERROR(INDEX(Таамаглал!$F$15:$F$25,MATCH('Эрсдэлийн үнэлгээ'!F30,Exposures,0)),0)","v":0},{"$f":"IFERROR(INDEX(Таамаглал!$F$15:$F$25,MATCH('Эрсдэлийн үнэлгээ'!G30,Exposures,0)),0)","v":0},{"$f":"IFERROR(INDEX(Таамаглал!$F$15:$F$25,MATCH('Эрсдэлийн үнэлгээ'!H30,Exposures,0)),0)","v":0},{"$f":"'Эрсдэлийн үнэлгээ'!I30","v":0},{"$f":"IFERROR(INDEX(Таамаглал!$F$41:$F$51,MATCH('Эрсдэлийн үнэлгээ'!J30,Levels_of_response,0)),0)","v":0},{"$f":"'Эрсдэлийн үнэлгээ'!K30","v":0},{"$f":"'Эрсдэлийн үнэлгээ'!L30","v":0}]
[null,{"$f":"'Эрсдэлийн үнэлгээ'!$B$31","v":"H5 -Биологийн гаралтай аюул"},{"$f":"'Эрсдэлийн үнэлгээ'!B32","v":0},{"$f":"'Эрсдэлийн үнэлгээ'!C32","v":0},{"$f":"IFERROR(INDEX(Таамаглал!$F$15:$F$25,MATCH('Эрсдэлийн үнэлгээ'!D32,Exposures,0)),0)","v":0},{"$f":"IFERROR(INDEX(Таамаглал!$F$15:$F$25,MATCH('Эрсдэлийн үнэлгээ'!E32,Exposures,0)),0)","v":0},{"$f":"IFERROR(INDEX(Таамаглал!$F$15:$F$25,MATCH('Эрсдэлийн үнэлгээ'!F32,Exposures,0)),0)","v":0},{"$f":"IFERROR(INDEX(Таамаглал!$F$15:$F$25,MATCH('Эрсдэлийн үнэлгээ'!G32,Exposures,0)),0)","v":0},{"$f":"IFERROR(INDEX(Таамаглал!$F$15:$F$25,MATCH('Эрсдэлийн үнэлгээ'!H32,Exposures,0)),0)","v":0},{"$f":"'Эрсдэлийн үнэлгээ'!I32","v":0},{"$f":"IFERROR(INDEX(Таамаглал!$F$41:$F$51,MATCH('Эрсдэлийн үнэлгээ'!J32,Levels_of_response,0)),0)","v":0},{"$f":"'Эрсдэлийн үнэлгээ'!K32","v":0},{"$f":"'Эрсдэлийн үнэлгээ'!L32","v":0}]
[null,null,{"$f":"'Эрсдэлийн үнэлгээ'!B33","v":0},{"$f":"'Эрсдэлийн үнэлгээ'!C33","v":0},{"$f":"IFERROR(INDEX(Таамаглал!$F$15:$F$25,MATCH('Эрсдэлийн үнэлгээ'!D33,Exposures,0)),0)","v":0},{"$f":"IFERROR(INDEX(Таамаглал!$F$15:$F$25,MATCH('Эрсдэлийн үнэлгээ'!E33,Exposures,0)),0)","v":0},{"$f":"IFERROR(INDEX(Таамаглал!$F$15:$F$25,MATCH('Эрсдэлийн үнэлгээ'!F33,Exposures,0)),0)","v":0},{"$f":"IFERROR(INDEX(Таамаглал!$F$15:$F$25,MATCH('Эрсдэлийн үнэлгээ'!G33,Exposures,0)),0)","v":0},{"$f":"IFERROR(INDEX(Таамаглал!$F$15:$F$25,MATCH('Эрсдэлийн үнэлгээ'!H33,Exposures,0)),0)","v":0},{"$f":"'Эрсдэлийн үнэлгээ'!I33","v":0},{"$f":"IFERROR(INDEX(Таамаглал!$F$41:$F$51,MATCH('Эрсдэлийн үнэлгээ'!J33,Levels_of_response,0)),0)","v":0},{"$f":"'Эрсдэлийн үнэлгээ'!K33","v":0},{"$f":"'Эрсдэлийн үнэлгээ'!L33","v":0}]
[null,null,{"$f":"'Эрсдэлийн үнэлгээ'!B34","v":0},{"$f":"'Эрсдэлийн үнэлгээ'!C34","v":0},{"$f":"IFERROR(INDEX(Таамаглал!$F$15:$F$25,MATCH('Эрсдэлийн үнэлгээ'!D34,Exposures,0)),0)","v":0},{"$f":"IFERROR(INDEX(Таамаглал!$F$15:$F$25,MATCH('Эрсдэлийн үнэлгээ'!E34,Exposures,0)),0)","v":0},{"$f":"IFERROR(INDEX(Таамаглал!$F$15:$F$25,MATCH('Эрсдэлийн үнэлгээ'!F34,Exposures,0)),0)","v":0},{"$f":"IFERROR(INDEX(Таамаглал!$F$15:$F$25,MATCH('Эрсдэлийн үнэлгээ'!G34,Exposures,0)),0)","v":0},{"$f":"IFERROR(INDEX(Таамаглал!$F$15:$F$25,MATCH('Эрсдэлийн үнэлгээ'!H34,Exposures,0)),0)","v":0},{"$f":"'Эрсдэлийн үнэлгээ'!I34","v":0},{"$f":"IFERROR(INDEX(Таамаглал!$F$41:$F$51,MATCH('Эрсдэлийн үнэлгээ'!J34,Levels_of_response,0)),0)","v":0},{"$f":"'Эрсдэлийн үнэлгээ'!K34","v":0},{"$f":"'Эрсдэлийн үнэлгээ'!L34","v":0}]
[null,null,{"$f":"'Эрсдэлийн үнэлгээ'!B35","v":0},{"$f":"'Эрсдэлийн үнэлгээ'!C35","v":0},{"$f":"IFERROR(INDEX(Таамаглал!$F$15:$F$25,MATCH('Эрсдэлийн үнэлгээ'!D35,Exposures,0)),0)","v":0},{"$f":"IFERROR(INDEX(Таамаглал!$F$15:$F$25,MATCH('Эрсдэлийн үнэлгээ'!E35,Exposures,0)),0)","v":0},{"$f":"IFERROR(INDEX(Таамаглал!$F$15:$F$25,MATCH('Эрсдэлийн үнэлгээ'!F35,Exposures,0)),0)","v":0},{"$f":"IFERROR(INDEX(Таамаглал!$F$15:$F$25,MATCH('Эрсдэлийн үнэлгээ'!G35,Exposures,0)),0)","v":0},{"$f":"IFERROR(INDEX(Таамаглал!$F$15:$F$25,MATCH('Эрсдэлийн үнэлгээ'!H35,Exposures,0)),0)","v":0},{"$f":"'Эрсдэлийн үнэлгээ'!I35","v":0},{"$f":"IFERROR(INDEX(Таамаглал!$F$41:$F$51,MATCH('Эрсдэлийн үнэлгээ'!J35,Levels_of_response,0)),0)","v":0},{"$f":"'Эрсдэлийн үнэлгээ'!K35","v":0},{"$f":"'Эрсдэлийн үнэлгээ'!L35","v":0}]
[null,null,{"$f":"'Эрсдэлийн үнэлгээ'!B36","v":0},{"$f":"'Эрсдэлийн үнэлгээ'!C36","v":0},{"$f":"IFERROR(INDEX(Таамаглал!$F$15:$F$25,MATCH('Эрсдэлийн үнэлгээ'!D36,Exposures,0)),0)","v":0},{"$f":"IFERROR(INDEX(Таамаглал!$F$15:$F$25,MATCH('Эрсдэлийн үнэлгээ'!E36,Exposures,0)),0)","v":0},{"$f":"IFERROR(INDEX(Таамаглал!$F$15:$F$25,MATCH('Эрсдэлийн үнэлгээ'!F36,Exposures,0)),0)","v":0},{"$f":"IFERROR(INDEX(Таамаглал!$F$15:$F$25,MATCH('Эрсдэлийн үнэлгээ'!G36,Exposures,0)),0)","v":0},{"$f":"IFERROR(INDEX(Таамаглал!$F$15:$F$25,MATCH('Эрсдэлийн үнэлгээ'!H36,Exposures,0)),0)","v":0},{"$f":"'Эрсдэлийн үнэлгээ'!I36","v":0},{"$f":"IFERROR(INDEX(Таамаглал!$F$41:$F$51,MATCH('Эрсдэлийн үнэлгээ'!J36,Levels_of_response,0)),0)","v":0},{"$f":"'Эрсдэлийн үнэлгээ'!K36","v":0},{"$f":"'Эрсдэлийн үнэлгээ'!L36","v":0}]
[null,{"$f":"'Эрсдэлийн үнэлгээ'!$B$37","v":"H6 - Дэлхийгээс гадна орших биетийн аюул"},{"$f":"'Эрсдэлийн үнэлгээ'!B38","v":0},{"$f":"'Эрсдэлийн үнэлгээ'!C38","v":0},{"$f":"IFERROR(INDEX(Таамаглал!$F$15:$F$25,MATCH('Эрсдэлийн үнэлгээ'!D38,Exposures,0)),0)","v":0},{"$f":"IFERROR(INDEX(Таамаглал!$F$15:$F$25,MATCH('Эрсдэлийн үнэлгээ'!E38,Exposures,0)),0)","v":0},{"$f":"IFERROR(INDEX(Таамаглал!$F$15:$F$25,MATCH('Эрсдэлийн үнэлгээ'!F38,Exposures,0)),0)","v":0},{"$f":"IFERROR(INDEX(Таамаглал!$F$15:$F$25,MATCH('Эрсдэлийн үнэлгээ'!G38,Exposures,0)),0)","v":0},{"$f":"IFERROR(INDEX(Таамаглал!$F$15:$F$25,MATCH('Эрсдэлийн үнэлгээ'!H38,Exposures,0)),0)","v":0},{"$f":"'Эрсдэлийн үнэлгээ'!I38","v":0},{"$f":"IFERROR(INDEX(Таамаглал!$F$41:$F$51,MATCH('Эрсдэлийн үнэлгээ'!J38,Levels_of_response,0)),0)","v":0},{"$f":"'Эрсдэлийн үнэлгээ'!K38","v":0},{"$f":"'Эрсдэлийн үнэлгээ'!L38","v":0}]
[null,null,{"$f":"'Эрсдэлийн үнэлгээ'!B39","v":0},{"$f":"'Эрсдэлийн үнэлгээ'!C39","v":0},{"$f":"IFERROR(INDEX(Таамаглал!$F$15:$F$25,MATCH('Эрсдэлийн үнэлгээ'!D39,Exposures,0)),0)","v":0},{"$f":"IFERROR(INDEX(Таамаглал!$F$15:$F$25,MATCH('Эрсдэлийн үнэлгээ'!E39,Exposures,0)),0)","v":0},{"$f":"IFERROR(INDEX(Таамаглал!$F$15:$F$25,MATCH('Эрсдэлийн үнэлгээ'!F39,Exposures,0)),0)","v":0},{"$f":"IFERROR(INDEX(Таамаглал!$F$15:$F$25,MATCH('Эрсдэлийн үнэлгээ'!G39,Exposures,0)),0)","v":0},{"$f":"IFERROR(INDEX(Таамаглал!$F$15:$F$25,MATCH('Эрсдэлийн үнэлгээ'!H39,Exposures,0)),0)","v":0},{"$f":"'Эрсдэлийн үнэлгээ'!I39","v":0},{"$f":"IFERROR(INDEX(Таамаглал!$F$41:$F$51,MATCH('Эрсдэлийн үнэлгээ'!J39,Levels_of_response,0)),0)","v":0},{"$f":"'Эрсдэлийн үнэлгээ'!K39","v":0},{"$f":"'Эрсдэлийн үнэлгээ'!L39","v":0}]
[null,null,{"$f":"'Эрсдэлийн үнэлгээ'!B40","v":0},{"$f":"'Эрсдэлийн үнэлгээ'!C40","v":0},{"$f":"IFERROR(INDEX(Таамаглал!$F$15:$F$25,MATCH('Эрсдэлийн үнэлгээ'!D40,Exposures,0)),0)","v":0},{"$f":"IFERROR(INDEX(Таамаглал!$F$15:$F$25,MATCH('Эрсдэлийн үнэлгээ'!E40,Exposures,0)),0)","v":0},{"$f":"IFERROR(INDEX(Таамаглал!$F$15:$F$25,MATCH('Эрсдэлийн үнэлгээ'!F40,Exposures,0)),0)","v":0},{"$f":"IFERROR(INDEX(Таамаглал!$F$15:$F$25,MATCH('Эрсдэлийн үнэлгээ'!G40,Exposures,0)),0)","v":0},{"$f":"IFERROR(INDEX(Таамаглал!$F$15:$F$25,MATCH('Эрсдэлийн үнэлгээ'!H40,Exposures,0)),0)","v":0},{"$f":"'Эрсдэлийн үнэлгээ'!I40","v":0},{"$f":"IFERROR(INDEX(Таамаглал!$F$41:$F$51,MATCH('Эрсдэлийн үнэлгээ'!J40,Levels_of_response,0)),0)","v":0},{"$f":"'Эрсдэлийн үнэлгээ'!K40","v":0},{"$f":"'Эрсдэлийн үнэлгээ'!L40","v":0}]
[null,null,{"$f":"'Эрсдэлийн үнэлгээ'!B41","v":0},{"$f":"'Эрсдэлийн үнэлгээ'!C41","v":0},{"$f":"IFERROR(INDEX(Таамаглал!$F$15:$F$25,MATCH('Эрсдэлийн үнэлгээ'!D41,Exposures,0)),0)","v":0},{"$f":"IFERROR(INDEX(Таамаглал!$F$15:$F$25,MATCH('Эрсдэлийн үнэлгээ'!E41,Exposures,0)),0)","v":0},{"$f":"IFERROR(INDEX(Таамаглал!$F$15:$F$25,MATCH('Эрсдэлийн үнэлгээ'!F41,Exposures,0)),0)","v":0},{"$f":"IFERROR(INDEX(Таамаглал!$F$15:$F$25,MATCH('Эрсдэлийн үнэлгээ'!G41,Exposures,0)),0)","v":0},{"$f":"IFERROR(INDEX(Таамаглал!$F$15:$F$25,MATCH('Эрсдэлийн үнэлгээ'!H41,Exposures,0)),0)","v":0},{"$f":"'Эрсдэлийн үнэлгээ'!I41","v":0},{"$f":"IFERROR(INDEX(Таамаглал!$F$41:$F$51,MATCH('Эрсдэлийн үнэлгээ'!J41,Levels_of_response,0)),0)","v":0},{"$f":"'Эрсдэлийн үнэлгээ'!K41","v":0},{"$f":"'Эрсдэлийн үнэлгээ'!L41","v":0}]
[null,null,{"$f":"'Эрсдэлийн үнэлгээ'!B42","v":0},{"$f":"'Эрсдэлийн үнэлгээ'!C42","v":0},{"$f":"IFERROR(INDEX(Таамаглал!$F$15:$F$25,MATCH('Эрсдэлийн үнэлгээ'!D42,Exposures,0)),0)","v":0},{"$f":"IFERROR(INDEX(Таамаглал!$F$15:$F$25,MATCH('Эрсдэлийн үнэлгээ'!E42,Exposures,0)),0)","v":0},{"$f":"IFERROR(INDEX(Таамаглал!$F$15:$F$25,MATCH('Эрсдэлийн үнэлгээ'!F42,Exposures,0)),0)","v":0},{"$f":"IFERROR(INDEX(Таамаглал!$F$15:$F$25,MATCH('Эрсдэлийн үнэлгээ'!G42,Exposures,0)),0)","v":0},{"$f":"IFERROR(INDEX(Таамаглал!$F$15:$F$25,MATCH('Эрсдэлийн үнэлгээ'!H42,Exposures,0)),0)","v":0},{"$f":"'Эрсдэлийн үнэлгээ'!I42","v":0},{"$f":"IFERROR(INDEX(Таамаглал!$F$41:$F$51,MATCH('Эрсдэлийн үнэлгээ'!J42,Levels_of_response,0)),0)","v":0},{"$f":"'Эрсдэлийн үнэлгээ'!K42","v":0},{"$f":"'Эрсдэлийн үнэлгээ'!L42","v":0}]
[null,{"$f":"'Эрсдэлийн үнэлгээ'!$B$43","v":"H7 - Хүний үйл ажиллагаатай холбоотой аюул"},{"$f":"'Эрсдэлийн үнэлгээ'!B44","v":0},{"$f":"'Эрсдэлийн үнэлгээ'!C44","v":0},{"$f":"IFERROR(INDEX(Таамаглал!$F$15:$F$25,MATCH('Эрсдэлийн үнэлгээ'!D44,Exposures,0)),0)","v":0},{"$f":"IFERROR(INDEX(Таамаглал!$F$15:$F$25,MATCH('Эрсдэлийн үнэлгээ'!E44,Exposures,0)),0)","v":0},{"$f":"IFERROR(INDEX(Таамаглал!$F$15:$F$25,MATCH('Эрсдэлийн үнэлгээ'!F44,Exposures,0)),0)","v":0},{"$f":"IFERROR(INDEX(Таамаглал!$F$15:$F$25,MATCH('Эрсдэлийн үнэлгээ'!G44,Exposures,0)),0)","v":0},{"$f":"IFERROR(INDEX(Таамаглал!$F$15:$F$25,MATCH('Эрсдэлийн үнэлгээ'!H44,Exposures,0)),0)","v":0},{"$f":"'Эрсдэлийн үнэлгээ'!I44","v":0},{"$f":"IFERROR(INDEX(Таамаглал!$F$41:$F$51,MATCH('Эрсдэлийн үнэлгээ'!J44,Levels_of_response,0)),0)","v":0},{"$f":"'Эрсдэлийн үнэлгээ'!K44","v":0},{"$f":"'Эрсдэлийн үнэлгээ'!L44","v":0}]
[null,null,{"$f":"'Эрсдэлийн үнэлгээ'!B45","v":0},{"$f":"'Эрсдэлийн үнэлгээ'!C45","v":0},{"$f":"IFERROR(INDEX(Таамаглал!$F$15:$F$25,MATCH('Эрсдэлийн үнэлгээ'!D45,Exposures,0)),0)","v":0},{"$f":"IFERROR(INDEX(Таамаглал!$F$15:$F$25,MATCH('Эрсдэлийн үнэлгээ'!E45,Exposures,0)),0)","v":0},{"$f":"IFERROR(INDEX(Таамаглал!$F$15:$F$25,MATCH('Эрсдэлийн үнэлгээ'!F45,Exposures,0)),0)","v":0},{"$f":"IFERROR(INDEX(Таамаглал!$F$15:$F$25,MATCH('Эрсдэлийн үнэлгээ'!G45,Exposures,0)),0)","v":0},{"$f":"IFERROR(INDEX(Таамаглал!$F$15:$F$25,MATCH('Эрсдэлийн үнэлгээ'!H45,Exposures,0)),0)","v":0},{"$f":"'Эрсдэлийн үнэлгээ'!I45","v":0},{"$f":"IFERROR(INDEX(Таамаглал!$F$41:$F$51,MATCH('Эрсдэлийн үнэлгээ'!J45,Levels_of_response,0)),0)","v":0},{"$f":"'Эрсдэлийн үнэлгээ'!K45","v":0},{"$f":"'Эрсдэлийн үнэлгээ'!L45","v":0}]
[null,null,{"$f":"'Эрсдэлийн үнэлгээ'!B46","v":0},{"$f":"'Эрсдэлийн үнэлгээ'!C46","v":0},{"$f":"IFERROR(INDEX(Таамаглал!$F$15:$F$25,MATCH('Эрсдэлийн үнэлгээ'!D46,Exposures,0)),0)","v":0},{"$f":"IFERROR(INDEX(Таамаглал!$F$15:$F$25,MATCH('Эрсдэлийн үнэлгээ'!E46,Exposures,0)),0)","v":0},{"$f":"IFERROR(INDEX(Таамаглал!$F$15:$F$25,MATCH('Эрсдэлийн үнэлгээ'!F46,Exposures,0)),0)","v":0},{"$f":"IFERROR(INDEX(Таамаглал!$F$15:$F$25,MATCH('Эрсдэлийн үнэлгээ'!G46,Exposures,0)),0)","v":0},{"$f":"IFERROR(INDEX(Таамаглал!$F$15:$F$25,MATCH('Эрсдэлийн үнэлгээ'!H46,Exposures,0)),0)","v":0},{"$f":"'Эрсдэлийн үнэлгээ'!I46","v":0},{"$f":"IFERROR(INDEX(Таамаглал!$F$41:$F$51,MATCH('Эрсдэлийн үнэлгээ'!J46,Levels_of_response,0)),0)","v":0},{"$f":"'Эрсдэлийн үнэлгээ'!K46","v":0},{"$f":"'Эрсдэлийн үнэлгээ'!L46","v":0}]
[null,null,{"$f":"'Эрсдэлийн үнэлгээ'!B47","v":0},{"$f":"'Эрсдэлийн үнэлгээ'!C47","v":0},{"$f":"IFERROR(INDEX(Таамаглал!$F$15:$F$25,MATCH('Эрсдэлийн үнэлгээ'!D47,Exposures,0)),0)","v":0},{"$f":"IFERROR(INDEX(Таамаглал!$F$15:$F$25,MATCH('Эрсдэлийн үнэлгээ'!E47,Exposures,0)),0)","v":0},{"$f":"IFERROR(INDEX(Таамаглал!$F$15:$F$25,MATCH('Эрсдэлийн үнэлгээ'!F47,Exposures,0)),0)","v":0},{"$f":"IFERROR(INDEX(Таамаглал!$F$15:$F$25,MATCH('Эрсдэлийн үнэлгээ'!G47,Exposures,0)),0)","v":0},{"$f":"IFERROR(INDEX(Таамаглал!$F$15:$F$25,MATCH('Эрсдэлийн үнэлгээ'!H47,Exposures,0)),0)","v":0},{"$f":"'Эрсдэлийн үнэлгээ'!I47","v":0},{"$f":"IFERROR(INDEX(Таамаглал!$F$41:$F$51,MATCH('Эрсдэлийн үнэлгээ'!J47,Levels_of_response,0)),0)","v":0},{"$f":"'Эрсдэлийн үнэлгээ'!K47","v":0},{"$f":"'Эрсдэлийн үнэлгээ'!L47","v":0}]
[null,null,{"$f":"'Эрсдэлийн үнэлгээ'!B48","v":0},{"$f":"'Эрсдэлийн үнэлгээ'!C48","v":0},{"$f":"IFERROR(INDEX(Таамаглал!$F$15:$F$25,MATCH('Эрсдэлийн үнэлгээ'!D48,Exposures,0)),0)","v":0},{"$f":"IFERROR(INDEX(Таамаглал!$F$15:$F$25,MATCH('Эрсдэлийн үнэлгээ'!E48,Exposures,0)),0)","v":0},{"$f":"IFERROR(INDEX(Таамаглал!$F$15:$F$25,MATCH('Эрсдэлийн үнэлгээ'!F48,Exposures,0)),0)","v":0},{"$f":"IFERROR(INDEX(Таамаглал!$F$15:$F$25,MATCH('Эрсдэлийн үнэлгээ'!G48,Exposures,0)),0)","v":0},{"$f":"IFERROR(INDEX(Таамаглал!$F$15:$F$25,MATCH('Эрсдэлийн үнэлгээ'!H48,Exposures,0)),0)","v":0},{"$f":"'Эрсдэлийн үнэлгээ'!I48","v":0},{"$f":"IFERROR(INDEX(Таамаглал!$F$41:$F$51,MATCH('Эрсдэлийн үнэлгээ'!J48,Levels_of_response,0)),0)","v":0},{"$f":"'Эрсдэлийн үнэлгээ'!K48","v":0},{"$f":"'Эрсдэлийн үнэлгээ'!L48","v":0}]
[null,{"$f":"'Эрсдэлийн үнэлгээ'!$B$49","v":"H8 - Бусад аюул (To be completed by User)"},{"$f":"'Эрсдэлийн үнэлгээ'!B50","v":0},{"$f":"'Эрсдэлийн үнэлгээ'!C50","v":0},{"$f":"IFERROR(INDEX(Таамаглал!$F$15:$F$25,MATCH('Эрсдэлийн үнэлгээ'!D50,Exposures,0)),0)","v":0},{"$f":"IFERROR(INDEX(Таамаглал!$F$15:$F$25,MATCH('Эрсдэлийн үнэлгээ'!E50,Exposures,0)),0)","v":0},{"$f":"IFERROR(INDEX(Таамаглал!$F$15:$F$25,MATCH('Эрсдэлийн үнэлгээ'!F50,Exposures,0)),0)","v":0},{"$f":"IFERROR(INDEX(Таамаглал!$F$15:$F$25,MATCH('Эрсдэлийн үнэлгээ'!G50,Exposures,0)),0)","v":0},{"$f":"IFERROR(INDEX(Таамаглал!$F$15:$F$25,MATCH('Эрсдэлийн үнэлгээ'!H50,Exposures,0)),0)","v":0},{"$f":"'Эрсдэлийн үнэлгээ'!I50","v":0},{"$f":"IFERROR(INDEX(Таамаглал!$F$41:$F$51,MATCH('Эрсдэлийн үнэлгээ'!J50,Levels_of_response,0)),0)","v":0},{"$f":"'Эрсдэлийн үнэлгээ'!K50","v":0},{"$f":"'Эрсдэлийн үнэлгээ'!L50","v":0}]
[null,null,{"$f":"'Эрсдэлийн үнэлгээ'!B51","v":0},{"$f":"'Эрсдэлийн үнэлгээ'!C51","v":0},{"$f":"IFERROR(INDEX(Таамаглал!$F$15:$F$25,MATCH('Эрсдэлийн үнэлгээ'!D51,Exposures,0)),0)","v":0},{"$f":"IFERROR(INDEX(Таамаглал!$F$15:$F$25,MATCH('Эрсдэлийн үнэлгээ'!E51,Exposures,0)),0)","v":0},{"$f":"IFERROR(INDEX(Таамаглал!$F$15:$F$25,MATCH('Эрсдэлийн үнэлгээ'!F51,Exposures,0)),0)","v":0},{"$f":"IFERROR(INDEX(Таамаглал!$F$15:$F$25,MATCH('Эрсдэлийн үнэлгээ'!G51,Exposures,0)),0)","v":0},{"$f":"IFERROR(INDEX(Таамаглал!$F$15:$F$25,MATCH('Эрсдэлийн үнэлгээ'!H51,Exposures,0)),0)","v":0},{"$f":"'Эрсдэлийн үнэлгээ'!I51","v":0},{"$f":"IFERROR(INDEX(Таамаглал!$F$41:$F$51,MATCH('Эрсдэлийн үнэлгээ'!J51,Levels_of_response,0)),0)","v":0},{"$f":"'Эрсдэлийн үнэлгээ'!K51","v":0},{"$f":"'Эрсдэлийн үнэлгээ'!L51","v":0}]
[null,null,{"$f":"'Эрсдэлийн үнэлгээ'!B52","v":0},{"$f":"'Эрсдэлийн үнэлгээ'!C52","v":0},{"$f":"IFERROR(INDEX(Таамаглал!$F$15:$F$25,MATCH('Эрсдэлийн үнэлгээ'!D52,Exposures,0)),0)","v":0},{"$f":"IFERROR(INDEX(Таамаглал!$F$15:$F$25,MATCH('Эрсдэлийн үнэлгээ'!E52,Exposures,0)),0)","v":0},{"$f":"IFERROR(INDEX(Таамаглал!$F$15:$F$25,MATCH('Эрсдэлийн үнэлгээ'!F52,Exposures,0)),0)","v":0},{"$f":"IFERROR(INDEX(Таамаглал!$F$15:$F$25,MATCH('Эрсдэлийн үнэлгээ'!G52,Exposures,0)),0)","v":0},{"$f":"IFERROR(INDEX(Таамаглал!$F$15:$F$25,MATCH('Эрсдэлийн үнэлгээ'!H52,Exposures,0)),0)","v":0},{"$f":"'Эрсдэлийн үнэлгээ'!I52","v":0},{"$f":"IFERROR(INDEX(Таамаглал!$F$41:$F$51,MATCH('Эрсдэлийн үнэлгээ'!J52,Levels_of_response,0)),0)","v":0},{"$f":"'Эрсдэлийн үнэлгээ'!K52","v":0},{"$f":"'Эрсдэлийн үнэлгээ'!L52","v":0}]
[null,null,{"$f":"'Эрсдэлийн үнэлгээ'!B53","v":0},{"$f":"'Эрсдэлийн үнэлгээ'!C53","v":0},{"$f":"IFERROR(INDEX(Таамаглал!$F$15:$F$25,MATCH('Эрсдэлийн үнэлгээ'!D53,Exposures,0)),0)","v":0},{"$f":"IFERROR(INDEX(Таамаглал!$F$15:$F$25,MATCH('Эрсдэлийн үнэлгээ'!E53,Exposures,0)),0)","v":0},{"$f":"IFERROR(INDEX(Таамаглал!$F$15:$F$25,MATCH('Эрсдэлийн үнэлгээ'!F53,Exposures,0)),0)","v":0},{"$f":"IFERROR(INDEX(Таамаглал!$F$15:$F$25,MATCH('Эрсдэлийн үнэлгээ'!G53,Exposures,0)),0)","v":0},{"$f":"IFERROR(INDEX(Таамаглал!$F$15:$F$25,MATCH('Эрсдэлийн үнэлгээ'!H53,Exposures,0)),0)","v":0},{"$f":"'Эрсдэлийн үнэлгээ'!I53","v":0},{"$f":"IFERROR(INDEX(Таамаглал!$F$41:$F$51,MATCH('Эрсдэлийн үнэлгээ'!J53,Levels_of_response,0)),0)","v":0},{"$f":"'Эрсдэлийн үнэлгээ'!K53","v":0},{"$f":"'Эрсдэлийн үнэлгээ'!L53","v":0}]
[null,null,{"$f":"'Эрсдэлийн үнэлгээ'!B54","v":0},{"$f":"'Эрсдэлийн үнэлгээ'!C54","v":0},{"$f":"IFERROR(INDEX(Таамаглал!$F$15:$F$25,MATCH('Эрсдэлийн үнэлгээ'!D54,Exposures,0)),0)","v":0},{"$f":"IFERROR(INDEX(Таамаглал!$F$15:$F$25,MATCH('Эрсдэлийн үнэлгээ'!E54,Exposures,0)),0)","v":0},{"$f":"IFERROR(INDEX(Таамаглал!$F$15:$F$25,MATCH('Эрсдэлийн үнэлгээ'!F54,Exposures,0)),0)","v":0},{"$f":"IFERROR(INDEX(Таамаглал!$F$15:$F$25,MATCH('Эрсдэлийн үнэлгээ'!G54,Exposures,0)),0)","v":0},{"$f":"IFERROR(INDEX(Таамаглал!$F$15:$F$25,MATCH('Эрсдэлийн үнэлгээ'!H54,Exposures,0)),0)","v":0},{"$f":"'Эрсдэлийн үнэлгээ'!I54","v":0},{"$f":"IFERROR(INDEX(Таамаглал!$F$41:$F$51,MATCH('Эрсдэлийн үнэлгээ'!J54,Levels_of_response,0)),0)","v":0},{"$f":"'Эрсдэлийн үнэлгээ'!K54","v":0},{"$f":"'Эрсдэлийн үнэлгээ'!L54","v":0}]
[]
[]
[null,"End"]

{"sheet":"Эрсдэлийн дүн","index":8,"n_rows":9,"n_cols":3,"rows_kept":9,"cut":false,"hidden":false,"merged":[]}
[null,{"$f":"MdlTle","v":"Гамшгийн эрсдэлийг тооцоолох түргэвчилсэн арга"}]
[null,{"$f":"MID(CELL(\"filename\",B1),FIND(\"]\",CELL(\"filename\",B1))+1,255)","v":"Эрсдэлийн дүн"}]
[]
[]
[null,{"$f":"Мэдээлэл!C15","v":"Байршил/Аймаг, хотын нэр:"},{"$f":"Мэдээлэл!$L$15","v":0}]
[null,{"$f":"Мэдээлэл!C17","v":"Үнэлгээ хийж буй газрын нэр (сум, дүүрэг, баг, хороо):"},{"$f":"Мэдээлэл!$L$17","v":0}]
[null,{"$f":"Мэдээлэл!C19","v":"Үнэлгээний ажлыг удирдаж гүйцэтгэсэн:"},{"$f":"Мэдээлэл!$L$19","v":0}]
[null,{"$f":"Мэдээлэл!C21","v":"Үнэлгээ гүйцэтгэсэн огноо:"}]
[null,{"$f":"Мэдээлэл!C23","v":"Давтан үнэлгээ хийх огноо:"}]

{"sheet":"Эмзэг байдлын тайлан","index":9,"n_rows":55,"n_cols":3,"rows_kept":55,"cut":false,"hidden":false,"merged":[]}
[null,{"$f":"MdlTle","v":"Гамшгийн эрсдэлийг тооцоолох түргэвчилсэн арга"}]
[null,{"$f":"MID(CELL(\"filename\",B1),FIND(\"]\",CELL(\"filename\",B1))+1,255)","v":"Эмзэг байдлын тайлан"}]
[]
[]
[null,{"$f":"Мэдээлэл!C15","v":"Байршил/Аймаг, хотын нэр:"},{"$f":"Мэдээлэл!$L$15","v":0}]
[null,{"$f":"Мэдээлэл!C17","v":"Үнэлгээ хийж буй газрын нэр (сум, дүүрэг, баг, хороо):"},{"$f":"Мэдээлэл!$L$17","v":0}]
[null,{"$f":"Мэдээлэл!C19","v":"Үнэлгээний ажлыг удирдаж гүйцэтгэсэн:"},{"$f":"Мэдээлэл!$L$19","v":0}]
[null,{"$f":"Мэдээлэл!C21","v":"Үнэлгээ гүйцэтгэсэн огноо:"}]
[null,{"$f":"Мэдээлэл!C23","v":"Давтан үнэлгээ хийх огноо:"}]
[]
[]
[]
[]
[]
[]
[]
[]
[]
[]
[]
[]
[]
[]
[]
[]
[]
[]
[]
[]
[]
[]
[]
[]
[]
[]
[]
[]
[]
[]
[]
[]
[]
[]
[]
[]
[]
[]
[]
[]
[]
[]
[]
[]
[null,{"$f":"MdlTle","v":"Гамшгийн эрсдэлийг тооцоолох түргэвчилсэн арга"}]
[null,{"$f":"MID(CELL(\"filename\",B54),FIND(\"]\",CELL(\"filename\",B54))+1,255)","v":"Эмзэг байдлын тайлан"}]